Directorate,Department,Expenditure Type,Ref.Doc.1,Vendor Name,Expenditure Amount (exc VAT),Payment Date
Assurance,Assurance,Subscriptions,0060092385,ASSOCIATION OF ELECTORAL ADMINISTRA,47.50,19/12/2017
Assurance,Assurance,Subscriptions,0060092461,ASSOCIATION OF ELECTORAL ADMINISTRA,"2,220.00",21/12/2017
Assurance,Assurance,Software Licences & Support,0060092272,DEMOCRACY COUNTS LIMITED,"34,500.00",14/12/2017
Assurance,Assurance,Postage,0060092918,ROYAL MAIL GROUP LIMITED,"1,289.11",04/12/2017
Assurance,Assurance,Postage,0060093457,ROYAL MAIL GROUP LIMITED,752.15,12/12/2017
Assurance,Assurance,Postage,0060093472,ROYAL MAIL GROUP LIMITED,"2,765.46",12/12/2017
Assurance,Assurance,Postage,0060093483,ROYAL MAIL GROUP LIMITED,95.00,12/12/2017
Assurance,Assurance,Subscriptions,0060093495,DEMOCRACY COUNTS LIMITED,375.00,12/12/2017
Assurance,Assurance,Subscriptions,0080014178,INFORMATION COMMISSIONER,35.00,08/12/2017
Assurance,Assurance,Postage,0060093484,ROYAL MAIL GROUP LIMITED,"17,989.28",15/12/2017
Assurance,Assurance,Training,0060091829,ASSOCIATION OF DEMOCRATIC SERVICES OFFIC,247.50,07/12/2017
Assurance,Assurance,Ttl IT & Comms,0060094276,BRITISH TELECOM PLC,"5,331.14",21/12/2017
Assurance,Assurance,Training,0080014118,SKILLS TRAINING,299.00,01/12/2017
Assurance,Assurance,Other Indirect Employee Expens,0080014098,THE MAYOR OF EALING,100.00,01/12/2017
Assurance,Assurance,Other Indirect Employee Expens,0080014112,PUBLISH - REDACT NAME,341.39,01/12/2017
Assurance,Assurance,Other Indirect Employee Expens,0080014206,PUBLISH - REDACT NAME,200.00,08/12/2017
Assurance,Assurance,Equipment and Materials Purcha,0080014491,EXPRESS SHUTT,152.00,22/12/2017
Assurance,Assurance,Vehicle Running Costs,0080014567,LASER ENERGY B,59.72,22/12/2017
Assurance,Assurance,Transport Hire Charges,0080014579,S7 CHAUFFEURS,555.00,27/12/2017
Assurance,Assurance,Publications,0060093270,BRITISH TELECOM PLC,"5,701.64",08/12/2017
Assurance,Assurance,Rents,0060093387,NEW BARNET COMMUNITY ASSOCIATION,360.00,15/12/2017
Assurance,Assurance,Professional Services,0080014492,ST JOHN AMBULANCE,92.00,22/12/2017
Assurance,Assurance,Professional Services,0060092333,PRICEWATERHOUSE COOPERS,"30,973.44",21/12/2017
Assurance,Assurance,Translation Exp / Interpret,0060091860,PUBLISH - REDACT NAME,900.00,11/12/2017
Assurance,Assurance,Subscriptions,0060092222,COMPANIES HOUSE,4.00,15/12/2017
Assurance,Assurance,Subscriptions,0060092690,NATIONAL CRIME AGENCY,536.00,20/12/2017
Assurance,Assurance,Subscriptions,0060092913,INTEC FOR BUSINESS LIMITED,13.65,04/12/2017
Assurance,Assurance,Subscriptions,0060093446,INTEC FOR BUSINESS LIMITED,400.00,11/12/2017
Balance Sheet,Balance Sheet,Car Lease,0020035311,ZENITH VEHICLE CONTRACTS LTD,516.18,14/12/2017
Central Expenses,Central Expenses,Other Establishments - Third P,0060092908,CITY OF LONDON,"94,147.00",06/12/2017
Central Expenses,Central Expenses,Other Establishments - Third P,EBX0204048,LEE VALLEY REGIONAL PARK AUTH.,"30,430.52",14/12/2017
Central Expenses,Central Expenses,Professional Services,0080013963,CAPITA TREASURY,485.00,06/12/2017
Central Expenses,Central Expenses,Bank Charges,0080014298,PAYPOINT NETWORK LIMITED,653.20,12/12/2017
Central Expenses,Central Expenses,Bank Charges,0080014299,PAYPOINT NETWORK LIMITED,947.14,12/12/2017
Central Expenses,Central Expenses,Bank Charges,0080014430,PAYPOINT NETWORK LTD,"1,620.58",21/12/2017
Central Expenses,Central Expenses,Insurance Claims,0080014141,CUNNINGHAM BLAKE SOLICITORS,"37,500.00",06/12/2017
Central Expenses,Central Expenses,Insurance Claims,0060092007,WEIGHTMANS LLP,600.00,14/12/2017
Central Expenses,Central Expenses,Insurance Claims,0060092818,CLYDE & CO LLP,"5,433.53",04/12/2017
Central Expenses,Central Expenses,Insurance Claims,0060092829,GRISTWOOD & TOM LTD,136.00,01/12/2017
Central Expenses,Central Expenses,Insurance Claims,0060092837,CLYDE & CO LLP,"1,770.00",01/12/2017
Central Expenses,Central Expenses,Insurance Claims,0060092839,CLYDE & CO LLP,"14,955.00",01/12/2017
Central Expenses,Central Expenses,Insurance Claims,0060092849,CLYDE & CO LLP,"5,130.95",06/12/2017
Central Expenses,Central Expenses,Insurance Claims,0060092856,CLYDE & CO LLP,"11,790.00",01/12/2017
Central Expenses,Central Expenses,Insurance Claims,0060092863,CLYDE & CO LLP,"10,535.00",04/12/2017
Central Expenses,Central Expenses,Insurance Claims,0060092881,CLYDE & CO LLP,"2,298.86",01/12/2017
Central Expenses,Central Expenses,Insurance Claims,0060092889,CLYDE & CO LLP,"1,560.00",01/12/2017
Central Expenses,Central Expenses,Insurance Claims,0060092890,CLYDE & CO LLP,"1,260.00",01/12/2017
Central Expenses,Central Expenses,Insurance Claims,0060093004,BROWNE JACOBSON SOLS.,"2,488.50",05/12/2017
Central Expenses,Central Expenses,Insurance Claims,0060093461,BROWNE JACOBSON SOLS.,443.00,13/12/2017
Central Expenses,Central Expenses,Insurance Claims,0060093463,BROWNE JACOBSON SOLS.,491.50,13/12/2017
Central Expenses,Central Expenses,Insurance Claims,0060093465,BROWNE JACOBSON SOLS.,313.50,13/12/2017
Central Expenses,Central Expenses,Insurance Claims,0060093475,BROWNE JACOBSON SOLS.,664.50,13/12/2017
Central Expenses,Central Expenses,Insurance Claims,0060093481,BROWNE JACOBSON SOLS.,339.00,12/12/2017
Central Expenses,Central Expenses,Insurance Claims,0060093516,BROWNE JACOBSON SOLS.,660.00,13/12/2017
Central Expenses,Central Expenses,Insurance Claims,0060094136,GLENDALE COUNTRYSIDE LTD,308.40,27/12/2017
Central Expenses,Central Expenses,Insurance Claims,0060094146,GRISTWOOD & TOM LTD,118.00,27/12/2017
Central Expenses,Central Expenses,Insurance Claims,0060094474,TREESUBS LTD,"5,230.00",27/12/2017
Central Expenses,Central Expenses,Insurance Claims,0080014067,PLEXUS LAW LTD,"18,500.00",01/12/2017
Central Expenses,Central Expenses,Insurance Claims,0080014074,HUGH JAMES SOLICITORS,"4,750.00",01/12/2017
Central Expenses,Central Expenses,Insurance Claims,0080014085,BERRYMANS LAC,"1,932.50",01/12/2017
Central Expenses,Central Expenses,Insurance Claims,0080014092,PUBLISH - REDACT NAME,900.00,01/12/2017
Central Expenses,Central Expenses,Insurance Claims,0080014114,PUBLISH - REDACT NAME,250.00,04/12/2017
Central Expenses,Central Expenses,Insurance Claims,0080014115,PRINCIPIAL LAW,"2,000.00",04/12/2017
Central Expenses,Central Expenses,Insurance Claims,0080014116,SLATER & GORDON,"2,439.00",01/12/2017
Central Expenses,Central Expenses,Insurance Claims,0080014131,GARVINS SOLICITORS,"1,514.40",01/12/2017
Central Expenses,Central Expenses,Insurance Claims,0080014139,RSA,824.47,01/12/2017
Central Expenses,Central Expenses,Insurance Claims,0080014143,PUBLISH - REDACT NAME,324.00,04/12/2017
Central Expenses,Central Expenses,Insurance Claims,0080014167,LEIGH DAY SOLICITORS,"7,000.00",05/12/2017
Central Expenses,Central Expenses,Insurance Claims,0080014241,PLEXUS LAW LTD,"7,500.00",08/12/2017
Central Expenses,Central Expenses,Insurance Claims,0080014242,PLEXUS LAW LTD,250.00,12/12/2017
Central Expenses,Central Expenses,Insurance Claims,0080014247,PUBLISH - REDACT NAME,"2,234.00",12/12/2017
Central Expenses,Central Expenses,Insurance Claims,0080014261,SLATER & GORDON,379.70,12/12/2017
Central Expenses,Central Expenses,Insurance Claims,0080014275,OGR STOCK DENTON,405.00,12/12/2017
Central Expenses,Central Expenses,Insurance Claims,0080014297,PUBLISH - REDACT NAME,"5,850.00",12/12/2017
Central Expenses,Central Expenses,Insurance Claims,0080014332,OGR STOCK DENTON,"12,814.00",18/12/2017
Central Expenses,Central Expenses,Insurance Claims,0080014333,DWP COMPENSATION RECOVERY UNIT,866.00,18/12/2017
Central Expenses,Central Expenses,Insurance Claims,0080014423,PLEXUS LAW LTD,"20,000.00",19/12/2017
Central Expenses,Central Expenses,Insurance Claims,0080014426,LEIGH DAY SOLICITORS,"1,212.00",19/12/2017
Central Expenses,Central Expenses,Insurance Claims,0080014431,PUBLISH - REDACT NAME,800.00,19/12/2017
Central Expenses,Central Expenses,Insurance Claims,0080014436,OGR STOCK DENTON,"1,122.00",19/12/2017
Central Expenses,Central Expenses,Insurance Claims,0080014437,PUBLISH - REDACT NAME,278.00,19/12/2017
Central Expenses,Central Expenses,Insurance Claims,0080014439,RSA,"3,216.43",19/12/2017
Central Expenses,Central Expenses,Insurance Claims,0080014443,PUBLISH - REDACT NAME,"2,500.00",19/12/2017
Commercial,Customer Support Group,Building Repairs & Maintenance,0060092504,AJS LTD,296.87,20/12/2017
Commercial,Customer Support Group,Building Repairs & Maintenance,0060093147,RGE SERVICES,71.87,27/12/2017
Commercial,Customer Support Group,Building Repairs & Maintenance,0060093170,RGE SERVICES,269.43,27/12/2017
Commercial,Customer Support Group,Building Repairs & Maintenance,0060093203,RGE SERVICES,47.03,27/12/2017
Commercial,Customer Support Group,Building Repairs & Maintenance,0060093252,RGE SERVICES,141.08,27/12/2017
Commercial,Customer Support Group,Building Repairs & Maintenance,0060093286,RGE SERVICES,511.95,27/12/2017
Commercial,Customer Support Group,Building Repairs & Maintenance,0060093294,RGE SERVICES,149.63,27/12/2017
Commercial,Customer Support Group,Building Repairs & Maintenance,0060093462,HERTEL (UK) LTD,34.91,13/12/2017
Commercial,Customer Support Group,Building Repairs & Maintenance,0060093499,HERTEL (UK) LTD,34.91,13/12/2017
Commercial,Customer Support Group,Building Repairs & Maintenance,0060093515,AJS LTD,296.87,12/12/2017
Commercial,Customer Support Group,Building Repairs & Maintenance,0060093527,HERTEL (UK) LTD,34.91,13/12/2017
Commercial,Customer Support Group,Building Repairs & Maintenance,0060093552,AJS LTD,196.00,13/12/2017
Commercial,Customer Support Group,Building Repairs & Maintenance,0060093559,HERTEL (UK) LTD,34.91,13/12/2017
Commercial,Customer Support Group,Building Repairs & Maintenance,0060093573,AJS LTD,266.56,13/12/2017
Commercial,Customer Support Group,Building Repairs & Maintenance,0060093593,AJS LTD,564.48,13/12/2017
Commercial,Customer Support Group,Building Repairs & Maintenance,0060093594,HERTEL (UK) LTD,34.91,13/12/2017
Commercial,Customer Support Group,Building Repairs & Maintenance,0060094243,HERTEL (UK) LTD,34.91,21/12/2017
Commercial,Customer Support Group,Building Repairs & Maintenance,0060094321,HERTEL (UK) LTD,34.91,22/12/2017
Commercial,Customer Support Group,Building Repairs & Maintenance,0060094325,HERTEL (UK) LTD,34.91,22/12/2017
Commercial,Customer Support Group,Building Repairs & Maintenance,0060094338,HERTEL (UK) LTD,34.91,22/12/2017
Commercial,Customer Support Group,Building Repairs & Maintenance,0060094350,HERTEL (UK) LTD,34.91,27/12/2017
Commercial,Customer Support Group,Building Repairs & Maintenance,0060094353,HERTEL (UK) LTD,34.91,27/12/2017
Commercial,Customer Support Group,Building Repairs & Maintenance,0060094376,HERTEL (UK) LTD,34.91,22/12/2017
Commercial,Customer Support Group,Building Repairs & Maintenance,0060094406,HERTEL (UK) LTD,34.91,22/12/2017
Commercial,Customer Support Group,Building Repairs & Maintenance,0060094413,HERTEL (UK) LTD,34.91,22/12/2017
Commercial,Customer Support Group,Building Repairs & Maintenance,0060094418,HERTEL (UK) LTD,34.91,22/12/2017
Commercial,Customer Support Group,Equipment and Materials Purcha,0060092885,DAY PLANT HIRE CO LIMITED,58.46,01/12/2017
Commercial,Customer Support Group,Building Repairs & Maintenance,0060093027,AJS LTD,"2,025.00",05/12/2017
Commercial,Customer Support Group,Building Repairs & Maintenance,0060093770,RGE SERVICES,62.00,15/12/2017
Commercial,Customer Support Group,Other Services,0010013934,BLUE 9 SECURITY LIMITED,"21,607.24",19/12/2017
Commercial,Customer Support Group,Electricity,0020035213,KENT COUNTY COUNCIL (KCS),"5,304.06",01/12/2017
Commercial,Customer Support Group,Building Repairs & Maintenance,0060090809,GEESINK NORBA LTD,249.49,19/12/2017
Commercial,Customer Support Group,Building Repairs & Maintenance,0060092301,LIFT & ENGINEERING SERVICES LTD,215.07,14/12/2017
Commercial,Customer Support Group,Building Repairs & Maintenance,0060092320,S W BRUCE & CO LTD,85.50,14/12/2017
Commercial,Customer Support Group,Building Repairs & Maintenance,0060092352,S W BRUCE & CO LTD,57.00,14/12/2017
Commercial,Customer Support Group,Building Repairs & Maintenance,0060092374,S W BRUCE & CO LTD,219.65,14/12/2017
Commercial,Customer Support Group,Building Repairs & Maintenance,0060092391,S W BRUCE & CO LTD,196.54,14/12/2017
Commercial,Customer Support Group,Building Repairs & Maintenance,0060092434,S W BRUCE & CO LTD,101.44,14/12/2017
Commercial,Customer Support Group,Building Repairs & Maintenance,0060092491,S W BRUCE & CO LTD,69.68,14/12/2017
Commercial,Customer Support Group,Gas,0060092576,KENT COUNTY COUNCIL (KCS),"4,087.51",05/12/2017
Commercial,Customer Support Group,Electricity,0060092763,KENT COUNTY COUNCIL (KCS),"5,404.14",11/12/2017
Commercial,Customer Support Group,Water Services,0060092783,AFFINITY WATER LIMITED,392.87,07/12/2017
Commercial,Customer Support Group,Rubbish Collection,0060092905,PEARCE RECYCLING CO. LTD,41.00,04/12/2017
Commercial,Customer Support Group,Other Services,0060093042,LEASING PROGRAMMES LIMITED,"1,235.00",27/12/2017
Commercial,Customer Support Group,Building Repairs & Maintenance,0060093078,S W BRUCE & CO LTD,"11,759.21",27/12/2017
Commercial,Customer Support Group,Rubbish Collection,0060093129,PEARCE RECYCLING CO. LTD,25.00,06/12/2017
Commercial,Customer Support Group,Building Repairs & Maintenance,0060093311,RGE SERVICES,147.50,27/12/2017
Commercial,Customer Support Group,Building Repairs & Maintenance,0060093320,RGE SERVICES,62.00,27/12/2017
Commercial,Customer Support Group,Water Services,0060093398,ANGEL SPRINGS LTD,138.00,27/12/2017
Commercial,Customer Support Group,Cleaning and domestic material,0060093401,HERTFORDSHIRE COUNTY COUNCIL,"1,506.54",11/12/2017
Commercial,Customer Support Group,Building Repairs & Maintenance,0060093422,RGE SERVICES,65.12,27/12/2017
Commercial,Customer Support Group,Cleaning and domestic material,0060093436,HERTFORDSHIRE COUNTY COUNCIL,40.00,11/12/2017
Commercial,Customer Support Group,Water Services,0060093443,ANGEL SPRINGS LTD,75.00,27/12/2017
Commercial,Customer Support Group,Building Repairs & Maintenance,0060093476,HERTEL (UK) LTD,34.91,13/12/2017
Commercial,Customer Support Group,Building Repairs & Maintenance,0060093487,HERTEL (UK) LTD,179.55,13/12/2017
Commercial,Customer Support Group,Building Repairs & Maintenance,0060093521,AJS LTD,400.00,12/12/2017
Commercial,Customer Support Group,Building Repairs & Maintenance,0060093523,HERTEL (UK) LTD,34.91,13/12/2017
Commercial,Customer Support Group,Furniture-Purchase-Repair,0060093524,SCREWFIX DIRECT LTD,5.29,15/12/2017
Commercial,Customer Support Group,Rubbish Collection,0060093549,PEARCE RECYCLING CO. LTD,43.50,27/12/2017
Commercial,Customer Support Group,Building Repairs & Maintenance,0060093723,RGE SERVICES,124.00,15/12/2017
Commercial,Customer Support Group,Furniture-Purchase-Repair,0060093757,SCREWFIX DIRECT LTD,123.81,20/12/2017
Commercial,Customer Support Group,Rents,0060093763,MONTAGU EVANS LLP,"186,250.00",15/12/2017
Commercial,Customer Support Group,Consultants Fees,0060094141,ZIPPORAH LTD,"4,298.23",20/12/2017
Commercial,Customer Support Group,Gas,0060094222,KENT COUNTY COUNCIL (KCS),"5,297.40",27/12/2017
Commercial,Customer Support Group,Electricity,0060094313,KENT COUNTY COUNCIL (KCS),"6,040.07",27/12/2017
Commercial,Customer Support Group,Other Services,0010013929,BLUE 9 SECURITY LIMITED,"2,835.36",14/12/2017
Commercial,Customer Support Group,Building Repairs & Maintenance,0060091559,OAKRAY LIMITED,432.00,01/12/2017
Commercial,Customer Support Group,Books-CDs-Audio-Video,0060091861,SM ELECTRICAL SERVICES,300.00,01/12/2017
Commercial,Customer Support Group,Building Repairs & Maintenance,0060092384,S W BRUCE & CO LTD,136.65,14/12/2017
Commercial,Customer Support Group,Building Repairs & Maintenance,0060093038,AJS LTD,156.80,06/12/2017
Commercial,Customer Support Group,Other Services,0060093197,BLUE 9 SECURITY LIMITED,"6,234.57",08/12/2017
Commercial,Customer Support Group,Water Services,0060093359,ANGEL SPRINGS LTD,142.00,27/12/2017
Commercial,Customer Support Group,Building Repairs & Maintenance,0060094305,HERTEL (UK) LTD,34.91,21/12/2017
Commercial,Customer Support Group,Building Repairs & Maintenance,0060092294,LIFT & ENGINEERING SERVICES LTD,179.23,14/12/2017
Commercial,Customer Support Group,Gas,0060092656,KENT COUNTY COUNCIL (KCS),366.73,06/12/2017
Commercial,Customer Support Group,Electricity,0060092784,KENT COUNTY COUNCIL (KCS),180.66,12/12/2017
Commercial,Customer Support Group,Building Repairs & Maintenance,0060093505,S W BRUCE & CO LTD,"1,421.00",27/12/2017
Commercial,Customer Support Group,Building Repairs & Maintenance,0060093794,RGE SERVICES,109.26,19/12/2017
Commercial,Customer Support Group,Electricity,0060093809,KENT COUNTY COUNCIL (KCS),959.41,21/12/2017
Commercial,Customer Support Group,Electricity,0060093841,KENT COUNTY COUNCIL (KCS),"1,047.92",21/12/2017
Commercial,Customer Support Group,Building Repairs & Maintenance,0060094251,HERTEL (UK) LTD,34.91,21/12/2017
Commercial,Customer Support Group,Building Repairs & Maintenance,0060094440,HERTEL (UK) LTD,34.91,22/12/2017
Commercial,Customer Support Group,Water Services,0060092858,AFFINITY WATER LIMITED,"4,419.53",01/12/2017
Commercial,Customer Support Group,Water Services,0060092886,AFFINITY WATER LIMITED,"3,266.66",01/12/2017
Commercial,Customer Support Group,Rubbish Collection,0060092901,PEARCE RECYCLING CO. LTD,25.00,04/12/2017
Commercial,Customer Support Group,Rubbish Collection,0060092906,PEARCE RECYCLING CO. LTD,25.00,04/12/2017
Commercial,Customer Support Group,Gas,0060093704,KENT COUNTY COUNCIL (KCS),473.45,22/12/2017
Commercial,Customer Support Group,Building Repairs & Maintenance,0060093838,RGE SERVICES,93.00,15/12/2017
Commercial,Customer Support Group,Books-CDs-Audio-Video,0060092797,SM ELECTRICAL SERVICES,100.00,22/12/2017
Commercial,Customer Support Group,Rubbish Collection,0060092916,PEARCE RECYCLING CO. LTD,25.00,04/12/2017
Commercial,Customer Support Group,Rubbish Collection,0060092929,PEARCE RECYCLING CO. LTD,25.00,04/12/2017
Commercial,Customer Support Group,Rubbish Collection,0060092934,PEARCE RECYCLING CO. LTD,32.00,04/12/2017
Commercial,Customer Support Group,Rubbish Collection,0060093103,PEARCE RECYCLING CO. LTD,25.00,27/12/2017
Commercial,Customer Support Group,Other Services,0060093171,BLUE 9 SECURITY LIMITED,"11,210.40",08/12/2017
Commercial,Customer Support Group,Cleaning and domestic material,0060093331,HERTFORDSHIRE COUNTY COUNCIL,"2,071.88",11/12/2017
Commercial,Customer Support Group,Rubbish Collection,0060093551,PEARCE RECYCLING CO. LTD,32.50,27/12/2017
Commercial,Customer Support Group,Electricity,0060094096,MIDDLESEX UNIVERSITY,"104,430.54",20/12/2017
Commercial,Customer Support Group,Building Repairs & Maintenance,0060094316,HERTEL (UK) LTD,179.55,22/12/2017
Commercial,Customer Support Group,Building Repairs & Maintenance,0060094289,HERTEL (UK) LTD,34.91,21/12/2017
Commercial,Customer Support Group,CSG Services Contract Payment,0060087871,CAPITA BUSINESS SERVICES LTD,"8,107.35",20/12/2017
Commercial,Customer Support Group,CSG Services Contract Payment,0060092879,CAPITA BUSINESS SERVICES LTD,"113,445.00",13/12/2017
Commercial,Customer Support Group,CSG Services Contract Payment,0060092989,CAPITA BUSINESS SERVICES LTD,"413,509.32",14/12/2017
Commercial,Customer Support Group,CSG Services Contract Payment,0060093562,CAPITA BUSINESS SERVICES LTD,"66,617.80",21/12/2017
Commercial,Customer Support Group,CSG Services Contract Payment,0060094187,CAPITA BUSINESS SERVICES LTD,"113,987.00",27/12/2017
Commercial,Customer Support Group,CSG Services Contract Payment,0060090721,CAPITA BUSINESS SERVICES LTD,"64,060.75",12/12/2017
Commercial,Customer Support Group,CSG Services Contract Payment,0060092877,CAPITA BUSINESS SERVICES LTD,"77,508.00",13/12/2017
Commercial,Customer Support Group,CSG Services Contract Payment,0060093310,CAPITA BUSINESS SERVICES LTD,"35,118.77",14/12/2017
Commercial,Customer Support Group,CSG Services Contract Payment,0060093804,CAPITA BUSINESS SERVICES LTD,"725,939.07",22/12/2017
Commercial,Customer Support Group,CSG Services Contract Payment,0060093810,CAPITA BUSINESS SERVICES LTD,"86,917.24",22/12/2017
Commercial,Customer Support Group,CSG Services Contract Payment,0060093822,CAPITA BUSINESS SERVICES LTD,"79,713.74",22/12/2017
Commercial,Customer Support Group,CSG Services Contract Payment,0060093834,CAPITA BUSINESS SERVICES LTD,"698,842.88",22/12/2017
Commercial,Customer Support Group,CSG Services Contract Payment,0060093853,CAPITA BUSINESS SERVICES LTD,"14,850.00",22/12/2017
Commercial,Customer Support Group,CSG Services Contract Payment,0060093991,CAPITA BUSINESS SERVICES LTD,"250,000.00",27/12/2017
Commercial,Customer Support Group,CSG Services Contract Payment,0060094040,CAPITA BUSINESS SERVICES LTD,"9,995.30",27/12/2017
Commercial,Customer Support Group,Fees and Charges,0080014438,PUBLISH - REDACT NAME,125.00,19/12/2017
Commercial,Customer Support Group,Fees and Charges,0080014440,PUBLISH - REDACT NAME,125.00,19/12/2017
Commercial,Customer Support Group,Other Services,0010013932,BLUE 9 SECURITY LIMITED,416.33,15/12/2017
Commercial,Customer Support Group,Electricity,0020035212,KENT COUNTY COUNCIL (KCS),808.62,01/12/2017
Commercial,Customer Support Group,Building Repairs & Maintenance,0060091451,P.C.C OF MONKEN HADLEY,"4,790.00",07/12/2017
Commercial,Customer Support Group,Building Repairs & Maintenance,0060091601,OAKRAY LIMITED,96.00,01/12/2017
Commercial,Customer Support Group,Building Repairs & Maintenance,0060091609,OAKRAY LIMITED,64.00,01/12/2017
Commercial,Customer Support Group,Building Repairs & Maintenance,0060091652,OAKRAY LIMITED,64.00,01/12/2017
Commercial,Customer Support Group,Building Repairs & Maintenance,0060091657,OAKRAY LIMITED,96.00,01/12/2017
Commercial,Customer Support Group,Building Repairs & Maintenance,0060091679,OAKRAY LIMITED,96.00,06/12/2017
Commercial,Customer Support Group,Building Repairs & Maintenance,0060091681,OAKRAY LIMITED,313.00,06/12/2017
Commercial,Customer Support Group,Building Repairs & Maintenance,0060091691,OAKRAY LIMITED,313.00,06/12/2017
Commercial,Customer Support Group,Building Repairs & Maintenance,0060092231,LIFT & ENGINEERING SERVICES LTD,66.94,19/12/2017
Commercial,Customer Support Group,Electricity,0060092307,KENT COUNTY COUNCIL (KCS),667.62,01/12/2017
Commercial,Customer Support Group,Building Repairs & Maintenance,0060092311,LIFT & ENGINEERING SERVICES LTD,203.00,14/12/2017
Commercial,Customer Support Group,Building Repairs & Maintenance,0060092337,S W BRUCE & CO LTD,57.00,14/12/2017
Commercial,Customer Support Group,Building Repairs & Maintenance,0060092400,S W BRUCE & CO LTD,57.00,14/12/2017
Commercial,Customer Support Group,Building Repairs & Maintenance,0060092409,S W BRUCE & CO LTD,57.00,14/12/2017
Commercial,Customer Support Group,Building Repairs & Maintenance,0060092427,S W BRUCE & CO LTD,"1,552.79",13/12/2017
Commercial,Customer Support Group,Building Repairs & Maintenance,0060092429,S W BRUCE & CO LTD,145.00,14/12/2017
Commercial,Customer Support Group,Building Repairs & Maintenance,0060092436,RGE SERVICES,47.03,13/12/2017
Commercial,Customer Support Group,Building Repairs & Maintenance,0060092439,RGE SERVICES,101.75,13/12/2017
Commercial,Customer Support Group,Building Repairs & Maintenance,0060092440,S W BRUCE & CO LTD,247.25,14/12/2017
Commercial,Customer Support Group,Building Repairs & Maintenance,0060092447,LIFT & ENGINEERING SERVICES LTD,116.00,12/12/2017
Commercial,Customer Support Group,Building Repairs & Maintenance,0060092507,S W BRUCE & CO LTD,112.14,14/12/2017
Commercial,Customer Support Group,Building Repairs & Maintenance,0060092549,S W BRUCE & CO LTD,248.00,20/12/2017
Commercial,Customer Support Group,Gas,0060092550,KENT COUNTY COUNCIL (KCS),81.53,06/12/2017
Commercial,Customer Support Group,Gas,0060092555,KENT COUNTY COUNCIL (KCS),340.79,06/12/2017
Commercial,Customer Support Group,Electricity,0060092599,KENT COUNTY COUNCIL (KCS),208.55,07/12/2017
Commercial,Customer Support Group,Gas,0060092622,KENT COUNTY COUNCIL (KCS),860.21,06/12/2017
Commercial,Customer Support Group,Gas,0060092628,KENT COUNTY COUNCIL (KCS),11.40,07/12/2017
Commercial,Customer Support Group,Gas,0060092643,KENT COUNTY COUNCIL (KCS),78.52,06/12/2017
Commercial,Customer Support Group,Electricity,0060092662,KENT COUNTY COUNCIL (KCS),237.37,07/12/2017
Commercial,Customer Support Group,Building Repairs & Maintenance,0060092672,RGE SERVICES,87.24,21/12/2017
Commercial,Customer Support Group,Building Repairs & Maintenance,0060092673,S W BRUCE & CO LTD,966.00,19/12/2017
Commercial,Customer Support Group,Building Repairs & Maintenance,0060092722,RGE SERVICES,72.70,21/12/2017
Commercial,Customer Support Group,Building Repairs & Maintenance,0060092725,RGE SERVICES,159.94,21/12/2017
Commercial,Customer Support Group,Building Repairs & Maintenance,0060092730,RGE SERVICES,87.24,21/12/2017
Commercial,Customer Support Group,Building Repairs & Maintenance,0060092735,RGE SERVICES,159.94,21/12/2017
Commercial,Customer Support Group,Building Repairs & Maintenance,0060092753,RGE SERVICES,169.23,21/12/2017
Commercial,Customer Support Group,Building Repairs & Maintenance,0060092756,RGE SERVICES,502.05,21/12/2017
Commercial,Customer Support Group,Gas,0060092795,KENT COUNTY COUNCIL (KCS),365.84,06/12/2017
Commercial,Customer Support Group,Building Repairs & Maintenance,0060092815,S W BRUCE & CO LTD,"3,112.96",27/12/2017
Commercial,Customer Support Group,Building Repairs & Maintenance,0060092821,S W BRUCE & CO LTD,406.49,27/12/2017
Commercial,Customer Support Group,Building Repairs & Maintenance,0060092909,LEE SECURITY LONDON LIMITED,351.00,04/12/2017
Commercial,Customer Support Group,Building Repairs & Maintenance,0060092931,LEE SECURITY LONDON LIMITED,484.00,04/12/2017
Commercial,Customer Support Group,Building Repairs & Maintenance,0060092935,LEE SECURITY LONDON LIMITED,166.00,04/12/2017
Commercial,Customer Support Group,Building Repairs & Maintenance,0060092972,AJS LTD,"1,425.00",05/12/2017
Commercial,Customer Support Group,Building Repairs & Maintenance,0060093022,S W BRUCE & CO LTD,254.56,27/12/2017
Commercial,Customer Support Group,Cleaning and domestic material,0060093080,CHURCHILL CONTRACT SERVICES,658.45,27/12/2017
Commercial,Customer Support Group,Building Repairs & Maintenance,0060093148,RGE SERVICES,247.18,27/12/2017
Commercial,Customer Support Group,Building Repairs & Maintenance,0060093153,RGE SERVICES,276.26,27/12/2017
Commercial,Customer Support Group,Building Repairs & Maintenance,0060093160,RGE SERVICES,189.02,27/12/2017
Commercial,Customer Support Group,Building Repairs & Maintenance,0060093188,RGE SERVICES,87.24,27/12/2017
Commercial,Customer Support Group,Building Repairs & Maintenance,0060093189,RGE SERVICES,58.16,27/12/2017
Commercial,Customer Support Group,Other Services,0060093194,THE KEYHOLDING CO LTD,39.38,07/12/2017
Commercial,Customer Support Group,Other Services,0060093207,THE KEYHOLDING CO LTD,365.00,07/12/2017
Commercial,Customer Support Group,Other Services,0060093231,BLUE 9 SECURITY LIMITED,26.86,14/12/2017
Commercial,Customer Support Group,Other Services,0060093241,BLUE 9 SECURITY LIMITED,255.17,14/12/2017
Commercial,Customer Support Group,Building Repairs & Maintenance,0060093271,RGE SERVICES,227.01,27/12/2017
Commercial,Customer Support Group,Other Services,0060093282,BLUE 9 SECURITY LIMITED,201.45,14/12/2017
Commercial,Customer Support Group,Building Repairs & Maintenance,0060093285,RGE SERVICES,132.53,27/12/2017
Commercial,Customer Support Group,Building Repairs & Maintenance,0060093338,RGE SERVICES,62.00,27/12/2017
Commercial,Customer Support Group,Water Services,0060093340,CASTLE WATER LTD,281.38,11/12/2017
Commercial,Customer Support Group,Water Services,0060093341,CASTLE WATER LTD,"1,113.67",13/12/2017
Commercial,Customer Support Group,Water Services,0060093363,CASTLE WATER LTD,760.14,13/12/2017
Commercial,Customer Support Group,Building Repairs & Maintenance,0060093392,RGE SERVICES,76.50,27/12/2017
Commercial,Customer Support Group,Building Repairs & Maintenance,0060093408,RGE SERVICES,93.00,27/12/2017
Commercial,Customer Support Group,Building Repairs & Maintenance,0060093412,RGE SERVICES,124.00,27/12/2017
Commercial,Customer Support Group,Water Services,0060093414,CASTLE WATER LTD,32.83,11/12/2017
Commercial,Customer Support Group,Building Repairs & Maintenance,0060093416,RGE SERVICES,93.53,11/12/2017
Commercial,Customer Support Group,Building Repairs & Maintenance,0060093423,RGE SERVICES,62.00,27/12/2017
Commercial,Customer Support Group,Building Repairs & Maintenance,0060093426,RGE SERVICES,62.00,27/12/2017
Commercial,Customer Support Group,Building Repairs & Maintenance,0060093429,AJS LTD,133.28,11/12/2017
Commercial,Customer Support Group,Water Services,0060093458,CASTLE WATER LTD,254.58,13/12/2017
Commercial,Customer Support Group,Building Repairs & Maintenance,0060093460,AJS LTD,54.88,12/12/2017
Commercial,Customer Support Group,Building Repairs & Maintenance,0060093480,AJS LTD,109.76,12/12/2017
Commercial,Customer Support Group,Water Services,0060093488,CASTLE WATER LTD,457.25,13/12/2017
Commercial,Customer Support Group,Building Repairs & Maintenance,0060093490,HERTEL (UK) LTD,34.91,13/12/2017
Commercial,Customer Support Group,Building Repairs & Maintenance,0060093500,RGE SERVICES,185.82,27/12/2017
Commercial,Customer Support Group,Building Repairs & Maintenance,0060093503,RGE SERVICES,75.72,27/12/2017
Commercial,Customer Support Group,Building Repairs & Maintenance,0060093511,HERTEL (UK) LTD,34.91,13/12/2017
Commercial,Customer Support Group,Building Repairs & Maintenance,0060093534,AJS LTD,376.32,13/12/2017
Commercial,Customer Support Group,Building Repairs & Maintenance,0060093590,AJS LTD,78.40,13/12/2017
Commercial,Customer Support Group,Building Repairs & Maintenance,0060093591,AJS LTD,94.08,13/12/2017
Commercial,Customer Support Group,Building Repairs & Maintenance,0060093650,HERTEL (UK) LTD,179.55,14/12/2017
Commercial,Customer Support Group,Building Repairs & Maintenance,0060093654,HERTEL (UK) LTD,34.91,14/12/2017
Commercial,Customer Support Group,Building Repairs & Maintenance,0060093671,LONDON BOROUGH OF HARROW,123.98,21/12/2017
Commercial,Customer Support Group,Building Repairs & Maintenance,0060093697,HERTEL (UK) LTD,34.91,15/12/2017
Commercial,Customer Support Group,Building Repairs & Maintenance,0060093707,HERTEL (UK) LTD,34.91,18/12/2017
Commercial,Customer Support Group,Building Repairs & Maintenance,0060093713,HERTEL (UK) LTD,34.91,18/12/2017
Commercial,Customer Support Group,Building Repairs & Maintenance,0060093717,HERTEL (UK) LTD,34.91,18/12/2017
Commercial,Customer Support Group,Building Repairs & Maintenance,0060093725,HERTEL (UK) LTD,34.91,18/12/2017
Commercial,Customer Support Group,Building Repairs & Maintenance,0060093734,HERTEL (UK) LTD,34.91,18/12/2017
Commercial,Customer Support Group,Building Repairs & Maintenance,0060093738,HERTEL (UK) LTD,34.91,15/12/2017
Commercial,Customer Support Group,Building Repairs & Maintenance,0060093743,HERTEL (UK) LTD,34.91,18/12/2017
Commercial,Customer Support Group,Building Repairs & Maintenance,0060093745,HERTEL (UK) LTD,34.91,18/12/2017
Commercial,Customer Support Group,Building Repairs & Maintenance,0060093746,RGE SERVICES,248.00,15/12/2017
Commercial,Customer Support Group,Building Repairs & Maintenance,0060093747,HERTEL (UK) LTD,34.91,18/12/2017
Commercial,Customer Support Group,Other Services,0060093748,BLUE 9 SECURITY LIMITED,53.72,15/12/2017
Commercial,Customer Support Group,Building Repairs & Maintenance,0060093753,HERTEL (UK) LTD,34.91,18/12/2017
Commercial,Customer Support Group,Building Repairs & Maintenance,0060093765,HERTEL (UK) LTD,34.91,15/12/2017
Commercial,Customer Support Group,Building Repairs & Maintenance,0060093768,HERTEL (UK) LTD,34.91,18/12/2017
Commercial,Customer Support Group,Building Repairs & Maintenance,0060093771,HERTEL (UK) LTD,34.91,18/12/2017
Commercial,Customer Support Group,Building Repairs & Maintenance,0060093780,HERTEL (UK) LTD,34.91,18/12/2017
Commercial,Customer Support Group,Building Repairs & Maintenance,0060093784,HERTEL (UK) LTD,34.91,15/12/2017
Commercial,Customer Support Group,Building Repairs & Maintenance,0060093788,HERTEL (UK) LTD,104.74,18/12/2017
Commercial,Customer Support Group,Building Repairs & Maintenance,0060093797,HERTEL (UK) LTD,34.91,18/12/2017
Commercial,Customer Support Group,Building Repairs & Maintenance,0060093811,HERTEL (UK) LTD,104.74,18/12/2017
Commercial,Customer Support Group,Building Repairs & Maintenance,0060093814,HERTEL (UK) LTD,34.91,18/12/2017
Commercial,Customer Support Group,Building Repairs & Maintenance,0060093818,HERTEL (UK) LTD,34.91,18/12/2017
Commercial,Customer Support Group,Gas,0060093828,TOTAL GAS & POWER LTD,880.84,15/12/2017
Commercial,Customer Support Group,Building Repairs & Maintenance,0060093846,HERTEL (UK) LTD,34.91,18/12/2017
Commercial,Customer Support Group,Other Services,0060093857,BLUE 9 SECURITY LIMITED,201.45,15/12/2017
Commercial,Customer Support Group,Building Repairs & Maintenance,0060093876,HERTEL (UK) LTD,34.91,18/12/2017
Commercial,Customer Support Group,Building Repairs & Maintenance,0060093877,HERTEL (UK) LTD,34.91,18/12/2017
Commercial,Customer Support Group,Gas,0060093881,KENT COUNTY COUNCIL (KCS),247.94,27/12/2017
Commercial,Customer Support Group,Other Services,0060093885,BLUE 9 SECURITY LIMITED,13.43,18/12/2017
Commercial,Customer Support Group,Other Services,0060093891,BLUE 9 SECURITY LIMITED,416.33,21/12/2017
Commercial,Customer Support Group,Other Services,0060093920,BLUE 9 SECURITY LIMITED,147.73,18/12/2017
Commercial,Customer Support Group,Other Services,0060093927,BLUE 9 SECURITY LIMITED,13.43,18/12/2017
Commercial,Customer Support Group,Other Services,0060093932,BLUE 9 SECURITY LIMITED,161.16,21/12/2017
Commercial,Customer Support Group,Other Services,0060093968,BLUE 9 SECURITY LIMITED,376.04,21/12/2017
Commercial,Customer Support Group,Other Services,0060093972,BLUE 9 SECURITY LIMITED,416.33,18/12/2017
Commercial,Customer Support Group,Building Repairs & Maintenance,0060094009,OAKRAY LIMITED,80.00,27/12/2017
Commercial,Customer Support Group,Building Repairs & Maintenance,0060094010,OAKRAY LIMITED,96.00,27/12/2017
Commercial,Customer Support Group,Building Repairs & Maintenance,0060094030,OAKRAY LIMITED,80.00,27/12/2017
Commercial,Customer Support Group,Building Repairs & Maintenance,0060094042,OAKRAY LIMITED,226.35,27/12/2017
Commercial,Customer Support Group,Building Repairs & Maintenance,0060094072,OAKRAY LIMITED,128.00,27/12/2017
Commercial,Customer Support Group,Building Repairs & Maintenance,0060094085,OAKRAY LIMITED,108.00,27/12/2017
Commercial,Customer Support Group,Building Repairs & Maintenance,0060094225,HERTEL (UK) LTD,34.91,21/12/2017
Commercial,Customer Support Group,Building Repairs & Maintenance,0060094232,HERTEL (UK) LTD,34.91,21/12/2017
Commercial,Customer Support Group,Building Repairs & Maintenance,0060094238,HERTEL (UK) LTD,34.91,21/12/2017
Commercial,Customer Support Group,Building Repairs & Maintenance,0060094242,HERTEL (UK) LTD,34.91,21/12/2017
Commercial,Customer Support Group,Building Repairs & Maintenance,0060094259,HERTEL (UK) LTD,34.91,21/12/2017
Commercial,Customer Support Group,Building Repairs & Maintenance,0060094264,HERTEL (UK) LTD,34.91,21/12/2017
Commercial,Customer Support Group,Building Repairs & Maintenance,0060094280,HERTEL (UK) LTD,104.74,21/12/2017
Commercial,Customer Support Group,Building Repairs & Maintenance,0060094287,HERTEL (UK) LTD,104.74,21/12/2017
Commercial,Customer Support Group,Building Repairs & Maintenance,0060094291,HERTEL (UK) LTD,34.91,21/12/2017
Commercial,Customer Support Group,Building Repairs & Maintenance,0060094292,HERTEL (UK) LTD,34.91,21/12/2017
Commercial,Customer Support Group,Building Repairs & Maintenance,0060094294,HERTEL (UK) LTD,34.91,21/12/2017
Commercial,Customer Support Group,Building Repairs & Maintenance,0060094297,HERTEL (UK) LTD,34.91,21/12/2017
Commercial,Customer Support Group,Building Repairs & Maintenance,0060094299,HERTEL (UK) LTD,34.91,21/12/2017
Commercial,Customer Support Group,Building Repairs & Maintenance,0060094302,HERTEL (UK) LTD,34.91,21/12/2017
Commercial,Customer Support Group,Building Repairs & Maintenance,0060094306,HERTEL (UK) LTD,34.91,21/12/2017
Commercial,Customer Support Group,Building Repairs & Maintenance,0060094329,HERTEL (UK) LTD,34.91,22/12/2017
Commercial,Customer Support Group,Gas,0060094337,KENT COUNTY COUNCIL (KCS),54.25,27/12/2017
Commercial,Customer Support Group,Gas,0060094352,KENT COUNTY COUNCIL (KCS),234.28,27/12/2017
Commercial,Customer Support Group,Gas,0060094358,KENT COUNTY COUNCIL (KCS),28.25,27/12/2017
Commercial,Customer Support Group,Building Repairs & Maintenance,0060094378,HERTEL (UK) LTD,34.91,22/12/2017
Commercial,Customer Support Group,Gas,0060094392,KENT COUNTY COUNCIL (KCS),552.48,27/12/2017
Commercial,Customer Support Group,Gas,0060094395,KENT COUNTY COUNCIL (KCS),55.50,27/12/2017
Commercial,Customer Support Group,Building Repairs & Maintenance,0060094396,HERTEL (UK) LTD,34.91,22/12/2017
Commercial,Customer Support Group,Gas,0060094397,KENT COUNTY COUNCIL (KCS),67.67,27/12/2017
Commercial,Customer Support Group,Other Services,0060094399,DATSCHA UK LTD,"10,000.00",22/12/2017
Commercial,Customer Support Group,Gas,0060094405,KENT COUNTY COUNCIL (KCS),13.71,27/12/2017
Commercial,Customer Support Group,Electricity,0060094408,KENT COUNTY COUNCIL (KCS),831.00,27/12/2017
Commercial,Customer Support Group,Gas,0060094411,KENT COUNTY COUNCIL (KCS),128.96,27/12/2017
Commercial,Customer Support Group,Electricity,0060094416,KENT COUNTY COUNCIL (KCS),358.62,27/12/2017
Commercial,Customer Support Group,Building Repairs & Maintenance,0060094425,HERTEL (UK) LTD,34.91,22/12/2017
Commercial,Customer Support Group,Gas,0060094431,KENT COUNTY COUNCIL (KCS),291.27,27/12/2017
Commercial,Customer Support Group,Building Repairs & Maintenance,0060094432,HERTEL (UK) LTD,34.91,22/12/2017
Commercial,Customer Support Group,Building Repairs & Maintenance,0060094448,HERTEL (UK) LTD,34.91,22/12/2017
Commercial,Customer Support Group,Building Repairs & Maintenance,0060094452,HERTEL (UK) LTD,34.91,22/12/2017
Commercial,Customer Support Group,Consultants Fees,0080014494,MICHAEL CHARLES LETTINGS,"1,250.00",21/12/2017
Commercial,Customer Support Group,Ttl IT & Comms,0060093467,VODAFONE LTD (BILLS ONLY),509.74,12/12/2017
Commercial,Customer Support Group,Ttl IT & Comms,0060094541,TELEFONICA UK LTD,"1,033.95",27/12/2017
Commercial,Customer Support Group,Ttl IT & Comms,0060094563,TELEFONICA UK LTD,"1,458.73",27/12/2017
Commercial,Customer Support Group,Ttl IT & Comms,0060094568,TELEFONICA UK LTD,62.25,27/12/2017
Commercial,Customer Support Group,Ttl IT & Comms,0060094586,TELEFONICA UK LTD,63.14,27/12/2017
Commercial,Customer Support Group,Ttl IT & Comms,0060094589,TELEFONICA UK LTD,60.00,27/12/2017
Commercial,Customer Support Group,Ttl IT & Comms,0060094595,TELEFONICA UK LTD,56.81,27/12/2017
Commercial,Customer Support Group,Ttl IT & Comms,0060094601,TELEFONICA UK LTD,58.45,27/12/2017
Commercial,Customer Support Group,Postage,0020035312,ROYAL MAIL GROUP LIMITED,331.38,15/12/2017
Commercial,Customer Support Group,Postage,0020035313,ROYAL MAIL GROUP LIMITED,331.38,15/12/2017
Commercial,Customer Support Group,Postage,0020035314,ROYAL MAIL GROUP LIMITED,331.38,15/12/2017
Commercial,Customer Support Group,Postage,0020035315,ROYAL MAIL GROUP LIMITED,331.38,19/12/2017
Commercial,Customer Support Group,Other Services,0020035332,LOOMIS UK LIMITED,905.96,20/12/2017
Commercial,Customer Support Group,Other Services,0020035333,LOOMIS UK LIMITED,101.92,20/12/2017
Commercial,Customer Support Group,Other Services,0020035334,LOOMIS UK LIMITED,51.92,20/12/2017
Commercial,Customer Support Group,Other Services,0020035335,LOOMIS UK LIMITED,905.96,20/12/2017
Commercial,Customer Support Group,Other Services,0020035336,LOOMIS UK LIMITED,905.96,20/12/2017
Commercial,Customer Support Group,Other Services,0020035337,LOOMIS UK LIMITED,51.92,20/12/2017
Commercial,Customer Support Group,Other Services,0020035338,LOOMIS UK LIMITED,905.96,20/12/2017
Commercial,Customer Support Group,Other Services,0020035339,LOOMIS UK LIMITED,51.92,20/12/2017
Commercial,Customer Support Group,Other Services,0020035340,LOOMIS UK LIMITED,905.96,20/12/2017
Commercial,Customer Support Group,Software Licences & Support,0080014387,ACCESS UK LTD,275.00,15/12/2017
Commercial,Customer Support Group,Postage,0060093072,ENVOPRINT,305.00,21/12/2017
Commercial,Customer Support Group,Postage,0060093123,ROYAL MAIL GROUP LIMITED,168.55,06/12/2017
Commercial,Customer Support Group,Postage,0060093817,WEMBLEY LAMINATIONS LTD:,180.00,15/12/2017
Commercial,Customer Support Group,Postage,0060094211,TABBERS,592.00,21/12/2017
Commercial,Customer Support Group,Postage,0060094483,ROYAL MAIL GROUP LIMITED,"5,513.00",27/12/2017
Commercial,Customer Support Group,Furniture-Purchase-Repair,0010013926,SCREWFIX DIRECT LTD,23.33,04/12/2017
Commercial,Customer Support Group,Furniture-Purchase-Repair,0060084553,SCREWFIX DIRECT LTD,196.90,04/12/2017
Commercial,Customer Support Group,Electricity,0060092521,KENT COUNTY COUNCIL (KCS),807.09,05/12/2017
Commercial,Customer Support Group,Electricity,0060092529,KENT COUNTY COUNCIL (KCS),133.04,05/12/2017
Commercial,Customer Support Group,Electricity,0060092580,KENT COUNTY COUNCIL (KCS),"1,285.07",05/12/2017
Commercial,Customer Support Group,Electricity,0060092595,KENT COUNTY COUNCIL (KCS),846.69,05/12/2017
Commercial,Customer Support Group,Electricity,0060092598,KENT COUNTY COUNCIL (KCS),"1,231.59",05/12/2017
Commercial,Customer Support Group,Gas,0060092613,KENT COUNTY COUNCIL (KCS),509.75,06/12/2017
Commercial,Customer Support Group,Rubbish Collection,0060092911,PEARCE RECYCLING CO. LTD,5.00,04/12/2017
Commercial,Customer Support Group,Rubbish Collection,0060092914,PEARCE RECYCLING CO. LTD,25.00,04/12/2017
Commercial,Customer Support Group,Rubbish Collection,0060092917,PEARCE RECYCLING CO. LTD,25.00,04/12/2017
Commercial,Customer Support Group,Rubbish Collection,0060093051,PEARCE RECYCLING CO. LTD,25.00,27/12/2017
Commercial,Customer Support Group,Grounds maintenance,0060093114,RIBBEX UK LTD,590.38,06/12/2017
Commercial,Customer Support Group,Other Services,0060093206,BLUE 9 SECURITY LIMITED,"22,039.20",08/12/2017
Commercial,Customer Support Group,Rents,0060093230,NETWORK RAIL ACCOUNTS RECEIVABLE,"4,500.00",08/12/2017
Commercial,Customer Support Group,Equipment and Materials Purcha,0060093377,HERTFORDSHIRE COUNTY COUNCIL,69.95,11/12/2017
Commercial,Customer Support Group,Water Services,0060093406,ANGEL SPRINGS LTD,329.00,27/12/2017
Commercial,Customer Support Group,Building Repairs & Maintenance,0060093536,AJS LTD,584.27,13/12/2017
Commercial,Customer Support Group,Rubbish Collection,0060093537,PEARCE RECYCLING CO. LTD,5.00,27/12/2017
Commercial,Customer Support Group,Building Repairs & Maintenance,0060093639,HERTEL (UK) LTD,34.91,14/12/2017
Commercial,Customer Support Group,Building Repairs & Maintenance,0060093645,HERTEL (UK) LTD,179.55,14/12/2017
Commercial,Customer Support Group,Gas,0060094349,KENT COUNTY COUNCIL (KCS),745.23,27/12/2017
Commercial,Customer Support Group,CSG Services Contract Payment,0010013937,CAPITA BUSINESS SERVICES LTD,"(18,500.00)",22/12/2017
Commercial,Customer Support Group,CSG Services Contract Payment,0060093424,CAPITA BUSINESS SERVICES LTD,"20,708.21",14/12/2017
Commercial,Customer Support Group,CSG Services Contract Payment,0060093473,CAPITA BUSINESS SERVICES LTD,"142,832.55",21/12/2017
Commercial,Customer Support Group,CSG Services Contract Payment,0060094461,CAPITA BUSINESS SERVICES LTD,"5,766.00",27/12/2017
Commercial,Customer Support Group,CSG Services Contract Payment,0060094463,CAPITA BUSINESS SERVICES LTD,"13,454.00",27/12/2017
Commercial,Customer Support Group,CSG Services Contract Payment,0060094481,CAPITA BUSINESS SERVICES LTD,"14,832.57",27/12/2017
Commercial,Customer Support Group,CSG Services Contract Payment,0060094495,CAPITA BUSINESS SERVICES LTD,"3,394.87",27/12/2017
Commercial,Customer Support Group,CSG Services Contract Payment,0060094497,CAPITA BUSINESS SERVICES LTD,"22,155.91",27/12/2017
Commercial,Customer Support Group,CSG Services Contract Payment,0060094505,CAPITA BUSINESS SERVICES LTD,"7,764.66",27/12/2017
Commercial,Customer Support Group,CSG Services Contract Payment,0060094559,CAPITA BUSINESS SERVICES LTD,"101,185.47",27/12/2017
Commercial,Customer Support Group,CSG Services Contract Payment,0060094560,CAPITA BUSINESS SERVICES LTD,"14,817.17",27/12/2017
Commercial,Customer Support Group,CSG Services Contract Payment,0060094573,CAPITA BUSINESS SERVICES LTD,"47,102.80",27/12/2017
Commercial,Customer Support Group,CSG Services Contract Payment,0060094590,CAPITA BUSINESS SERVICES LTD,"2,141.40",27/12/2017
Commercial,Customer Support Group,CSG Services Contract Payment,0060094600,CAPITA BUSINESS SERVICES LTD,"3,560.04",27/12/2017
Commercial,HB LAW,Legal and Court Fees,0060092939,LONDON BOROUGH OF HARROW,"195,325.00",06/12/2017
Commercial,HB LAW,Legal Disbursements,0060092960,LONDON BOROUGH OF HARROW,"151,565.91",06/12/2017
Commercial,HB LAW,Legal and Court Fees,0060092973,LONDON BOROUGH OF HARROW,"195,325.00",06/12/2017
Commercial,HB LAW,Legal Disbursements,0060092979,LONDON BOROUGH OF HARROW,"113,030.21",06/12/2017
Commercial,HB LAW,Legal Disbursements,0060093661,LONDON BOROUGH OF HARROW,"92,490.49",15/12/2017
Commercial,HB LAW,Legal and Court Fees,0060093662,LONDON BOROUGH OF HARROW,"195,325.00",15/12/2017
Commercial,Housing Needs Resources,Other Services,0060094196,THE BARNETGROUP LIMITED,"12,642.54",20/12/2017
Commercial,HRA,Consultants Fees,0060091817,PRIORITY ESTATES PROJECT LTD,"1,955.80",06/12/2017
Commercial,HRA,Consultants Fees,0060093021,PRIORITY ESTATES PROJECT LTD,"1,955.80",05/12/2017
Commercial,HRA,Professional Services,0060094219,BARNET LIGHTING SERVICES LTD,"2,549.60",21/12/2017
Commercial,HRA,Professional Services,0060094256,BARNET LIGHTING SERVICES LTD,"3,824.43",21/12/2017
Commercial,HRA,Advertising,0060093561,TMP (UK) LTD,800.00,14/12/2017
Commercial,HRA,Advertising,0060093566,TMP (UK) LTD,512.00,14/12/2017
Commercial,HRA,Advertising,0060093584,TMP (UK) LTD,944.00,14/12/2017
Commercial,HRA,Advertising,0060093585,TMP (UK) LTD,444.50,14/12/2017
Commercial,HRA,Consultants Fees,0060094060,PRIORITY ESTATES PROJECT LTD,"2,863.85",27/12/2017
Commercial,HRA,Advertising,0060094205,TMP (UK) LTD,720.00,21/12/2017
Commercial,HRA,Advertising,0060094267,TMP (UK) LTD,864.00,21/12/2017
Commercial,HRA,Private Contractors - Third Pa,0020035208,OPTIVOHOUSIN,345.09,01/12/2017
Commercial,HRA,Consultants Fees,0060092503,GVA GRIMLEY LTD,"7,000.00",19/12/2017
Commercial,HRA,Professional Services,0060092657,THAMES WATER UTILITIES LIMITED,770.00,01/12/2017
Commercial,Parking & Infrastructure,Equipment and Materials Repair,0060092789,RM COUNTRYSIDE SERVICES LTD,"3,050.00",01/12/2017
Commercial,Parking & Infrastructure,Equipment and Materials Repair,0060092915,RM COUNTRYSIDE SERVICES LTD,"3,050.00",07/12/2017
Commercial,Parking & Infrastructure,Equipment and Materials Purcha,0060093911,BARNET LOCK CENTRE LTD.,170.50,19/12/2017
Commercial,Parking & Infrastructure,Equipment and Materials Purcha,0060093924,BARNET LOCK CENTRE LTD.,12.75,19/12/2017
Commercial,Parking & Infrastructure,Equipment and Materials Purcha,0060093929,BARNET LOCK CENTRE LTD.,42.25,19/12/2017
Commercial,Parking & Infrastructure,Equipment and Materials Purcha,0060091605,LAFARGE TARMAC TRADING LIMITED,288.90,05/12/2017
Commercial,Parking & Infrastructure,Equipment and Materials Purcha,0060091715,LAFARGE TARMAC TRADING LIMITED,95.65,05/12/2017
Commercial,Parking & Infrastructure,Equipment and Materials Purcha,0060092059,GREENHAM TRADING LIMITED,460.23,13/12/2017
Commercial,Parking & Infrastructure,Equipment and Materials Purcha,0060092298,LAFARGE TARMAC TRADING LIMITED,268.40,12/12/2017
Commercial,Parking & Infrastructure,Equipment and Materials Purcha,0060092903,RENNICK UK LTD,566.60,27/12/2017
Commercial,Parking & Infrastructure,Equipment and Materials Purcha,0060092922,LAFARGE TARMAC TRADING LIMITED,103.46,21/12/2017
Commercial,Parking & Infrastructure,Equipment and Materials Purcha,0060092933,LAFARGE TARMAC TRADING LIMITED,89.79,22/12/2017
Commercial,Parking & Infrastructure,Equipment and Materials Purcha,0060092999,LAFARGE TARMAC TRADING LIMITED,122.98,27/12/2017
Commercial,Parking & Infrastructure,Equipment and Materials Purcha,0060093020,GREENHAM TRADING LIMITED,133.40,27/12/2017
Commercial,Parking & Infrastructure,Equipment and Materials Purcha,0060093158,KB INDUSTRIES UK LTD,600.00,27/12/2017
Commercial,Parking & Infrastructure,Equipment and Materials Purcha,0060093437,LAFARGE TARMAC TRADING LIMITED,128.83,27/12/2017
Commercial,Parking & Infrastructure,Equipment and Materials Purcha,0060093452,KLOECKNER METALS UK,44.00,27/12/2017
Commercial,Parking & Infrastructure,Equipment and Materials Purcha,0060093455,KLOECKNER METALS UK,132.00,27/12/2017
Commercial,Parking & Infrastructure,Equipment and Materials Purcha,0060093874,LAFARGE TARMAC TRADING LIMITED,99.55,27/12/2017
Commercial,Parking & Infrastructure,Equipment and Materials Purcha,0060093915,AGGREGATE INDUSTRIES UK LTD T/A SPADEOAK,"2,106.80",18/12/2017
Commercial,Parking & Infrastructure,Equipment and Materials Purcha,0060094229,WM SMITH & SONS LIMITED,"1,740.65",21/12/2017
Commercial,Parking & Infrastructure,Equipment and Materials Purcha,0060094277,WM SMITH & SONS LIMITED,443.75,21/12/2017
Commercial,Parking & Infrastructure,Equipment and Materials Purcha,0060094300,WM SMITH & SONS LIMITED,32.50,21/12/2017
Commercial,Parking & Infrastructure,Equipment and Materials Purcha,0060091779,GREENHAM TRADING LIMITED,795.35,07/12/2017
Commercial,Parking & Infrastructure,Equipment and Materials Purcha,0060091837,CONSTRUCTION & CLADDING SERVICES LTD,"20,686.00",07/12/2017
Commercial,Parking & Infrastructure,Equipment and Materials Purcha,0060092125,GREENHAM TRADING LIMITED,946.02,14/12/2017
Commercial,Parking & Infrastructure,Equipment and Materials Purcha,0060092205,GLASDON UK LTD,"1,597.03",14/12/2017
Commercial,Parking & Infrastructure,Equipment and Materials Purcha,0060093909,KLOECKNER METALS UK,81.40,18/12/2017
Commercial,Parking & Infrastructure,Other Services,0060086779,PARKEON LIMITED,"7,886.70",12/12/2017
Commercial,Parking & Infrastructure,Other Services,0060091684,LONDON COUNCILS,"6,920.00",07/12/2017
Commercial,Parking & Infrastructure,Equipment and Materials Purcha,0060091946,CONWAY AECOM LTD,"9,272.69",06/12/2017
Commercial,Parking & Infrastructure,Other Services,0060092245,PARKEON LIMITED,"2,345.76",19/12/2017
Commercial,Parking & Infrastructure,Miscellaneous Expenses,0060092831,OPENVIEW SECURITY SOLUTIONS LTD,"6,388.43",21/12/2017
Commercial,Parking & Infrastructure,Miscellaneous Expenses,0060092834,OAKLAWN CONSULTING LTD,"1,850.00",21/12/2017
Commercial,Parking & Infrastructure,Miscellaneous Expenses,0060092846,OPENVIEW SECURITY SOLUTIONS LTD,"6,388.43",21/12/2017
Commercial,Parking & Infrastructure,Other Services,0060092848,PARKEON LIMITED,810.00,21/12/2017
Commercial,Parking & Infrastructure,Advertising,0060092936,NEWSQUEST (LONDON) LIMITED,817.92,22/12/2017
Commercial,Parking & Infrastructure,Miscellaneous Expenses,0060093656,NSL LTD,"1,555.00",14/12/2017
Commercial,Parking & Infrastructure,Miscellaneous Expenses,0060093892,OPENVIEW SECURITY SOLUTIONS LTD,"1,400.00",27/12/2017
Commercial,Parking & Infrastructure,Electricity,0060094312,NETWORK RAIL ACCOUNTS RECEIVABLE,63.70,22/12/2017
Commercial,Parking & Infrastructure,Electricity,0060094332,NETWORK RAIL ACCOUNTS RECEIVABLE,63.70,22/12/2017
Commercial,Public Health,Health authorities - Third Par,0060092963,LONDON BOROUGH OF HARROW,"2,640,300.00",06/12/2017
Commercial,Public Health,Other Transfer Payments to Soc,0060092650,CENTRAL LONDONCOMMUNITY HEALTHCARE,"356,000.00",15/12/2017
Commercial,Public Health,Professional Services,0060092605,CENTRAL LONDONCOMMUNITY HEALTHCARE,"85,834.00",15/12/2017
Commercial,Public Health,Professional Services,0060092608,CENTRAL LONDONCOMMUNITY HEALTHCARE,"9,583.00",15/12/2017
Commercial,Public Health,Other Transfer Payments to Soc,0060092586,CENTRAL LONDONCOMMUNITY HEALTHCARE,"29,167.00",15/12/2017
Commercial,Public Health,Professional Services,0060092528,CENTRAL LONDONCOMMUNITY HEALTHCARE,"4,917.00",05/12/2017
Commercial,Regional Enterprise,Other Local Authorities - Thir,EBX0205190,ENVIRONMENT AGENCY,"78,860.00",21/12/2017
Commercial,Regional Enterprise,Advertising,0060089686,TMP (UK) LTD,832.40,15/12/2017
Commercial,Regional Enterprise,Advertising,0060091768,TMP (UK) LTD,170.00,15/12/2017
Commercial,Regional Enterprise,Advertising,0060091769,TMP (UK) LTD,153.00,15/12/2017
Commercial,Regional Enterprise,Advertising,0060091784,TMP (UK) LTD,170.00,15/12/2017
Commercial,Regional Enterprise,Advertising,0060092575,TMP (UK) LTD,90.00,15/12/2017
Commercial,Regional Enterprise,Advertising,0060092589,TMP (UK) LTD,99.00,15/12/2017
Commercial,Regional Enterprise,Advertising,0060092601,TMP (UK) LTD,179.00,27/12/2017
Commercial,Regional Enterprise,Advertising,0060092612,TMP (UK) LTD,179.00,27/12/2017
Commercial,Regional Enterprise,Advertising,0060092616,TMP (UK) LTD,90.00,15/12/2017
Commercial,Regional Enterprise,Advertising,0060092621,TMP (UK) LTD,99.00,15/12/2017
Commercial,Regional Enterprise,Advertising,60092954,TMP (UK) LTD,502.50,15/12/2017
Commercial,Regional Enterprise,Advertising,0060092971,TMP (UK) LTD,260.00,15/12/2017
Commercial,Regional Enterprise,Advertising,60092996,TMP (UK) LTD,296.00,15/12/2017
Commercial,Regional Enterprise,Advertising,0060092998,TMP (UK) LTD,350.00,15/12/2017
Commercial,Regional Enterprise,Advertising,0060093001,TMP (UK) LTD,99.00,27/12/2017
Commercial,Regional Enterprise,Advertising,0060093016,TMP (UK) LTD,99.00,27/12/2017
Commercial,Regional Enterprise,Advertising,60093019,TMP (UK) LTD,570.00,15/12/2017
Commercial,Regional Enterprise,Advertising,0060093705,TMP (UK) LTD,530.00,15/12/2017
Commercial,Regional Enterprise,Other Services,0060093335,RM COUNTRYSIDE SERVICES LTD,860.00,14/12/2017
Commercial,Regional Enterprise,Other Services,0060094206,CONWAY AECOM LTD,"1,311.45",21/12/2017
Commercial,Regional Enterprise,Other Services,0060094236,CONWAY AECOM LTD,"1,311.45",21/12/2017
Commercial,Regional Enterprise,Other Services,0060094269,CONWAY AECOM LTD,"1,311.45",21/12/2017
Commercial,Regional Enterprise,Other Services,0060094488,CONWAY AECOM LTD,960.00,27/12/2017
Commercial,Regional Enterprise,Other Services,0060094503,CONWAY AECOM LTD,360.00,27/12/2017
Commercial,Regional Enterprise,Other Services,0060094507,CONWAY AECOM LTD,540.00,27/12/2017
Commercial,Regional Enterprise,Other Services,0060094520,CONWAY AECOM LTD,180.00,27/12/2017
Commercial,Regional Enterprise,Other Services,0060094522,CONWAY AECOM LTD,450.00,27/12/2017
Commercial,Regional Enterprise,Other Services,0060094525,CONWAY AECOM LTD,540.00,27/12/2017
Commercial,Regional Enterprise,Other Services,0060094526,CONWAY AECOM LTD,540.00,27/12/2017
Commercial,Regional Enterprise,Other Services,0060094540,CONWAY AECOM LTD,780.00,27/12/2017
Commercial,Regional Enterprise,Other Services,0060094554,CONWAY AECOM LTD,255.00,27/12/2017
Commercial,Regional Enterprise,Other Services,0060094588,CONWAY AECOM LTD,"1,440.00",27/12/2017
Commercial,Regional Enterprise,Other Services,0060094593,CONWAY AECOM LTD,780.00,27/12/2017
Commercial,Regional Enterprise,Other Services,0060094596,CONWAY AECOM LTD,405.00,27/12/2017
Commercial,Regional Enterprise,Other Services,0060094612,CONWAY AECOM LTD,"1,080.00",27/12/2017
Commercial,Regional Enterprise,Other Services,0060094594,CONWAY AECOM LTD,3.80,27/12/2017
Commercial,Regional Enterprise,Postage,0060093093,ROYAL MAIL GROUP LIMITED,52.00,06/12/2017
Commercial,Regional Enterprise,Professional Services,0060092800,PUBLIC ANALYST SCIENTIFIC SERVS. LT,960.00,11/12/2017
Commercial,Regional Enterprise,Miscellaneous Expenses,0020035159,PUBLISH - REDACT NAME,100.00,01/12/2017
Commercial,Regional Enterprise,Other Services,0060092956,CONWAY AECOM LTD,428.91,21/12/2017
Commercial,Regional Enterprise,Other Services,0060092962,CONWAY AECOM LTD,421.24,21/12/2017
Commercial,Regional Enterprise,Other Services,0060093032,CONWAY AECOM LTD,104.64,21/12/2017
Commercial,Regional Enterprise,Other Services,0060094301,CONWAY AECOM LTD,612.11,21/12/2017
Commercial,Regional Enterprise,Other Services,0060092232,CONWAY AECOM LTD,607.68,14/12/2017
Commercial,Regional Enterprise,Other Services,0060092243,CONWAY AECOM LTD,873.54,14/12/2017
Commercial,Regional Enterprise,Other Services,0060092261,CONWAY AECOM LTD,582.36,14/12/2017
Commercial,Regional Enterprise,Other Services,0060092276,CONWAY AECOM LTD,"1,101.42",14/12/2017
Commercial,Regional Enterprise,Other Services,0060092285,CONWAY AECOM LTD,"1,063.44",14/12/2017
Commercial,Regional Enterprise,Other Services,0060092286,CONWAY AECOM LTD,"1,025.46",14/12/2017
Commercial,Regional Enterprise,Other Services,0060092288,CONWAY AECOM LTD,"1,063.44",14/12/2017
Commercial,Regional Enterprise,Other Services,0060092292,CONWAY AECOM LTD,633.00,14/12/2017
Commercial,Regional Enterprise,Other Services,0060092295,CONWAY AECOM LTD,569.70,14/12/2017
Commercial,Regional Enterprise,Other Services,0060092300,CONWAY AECOM LTD,"1,284.99",14/12/2017
Commercial,Regional Enterprise,Other Services,0060092944,CONWAY AECOM LTD,"1,215.36",21/12/2017
Commercial,Regional Enterprise,Other Services,0060092949,CONWAY AECOM LTD,379.80,21/12/2017
Commercial,Regional Enterprise,Other Services,0060092951,CONWAY AECOM LTD,908.36,21/12/2017
Commercial,Regional Enterprise,Other Services,0060092955,CONWAY AECOM LTD,"1,063.44",21/12/2017
Commercial,Regional Enterprise,Other Services,0060092964,CONWAY AECOM LTD,"1,012.80",21/12/2017
Commercial,Regional Enterprise,Other Services,0060092967,CONWAY AECOM LTD,626.67,21/12/2017
Commercial,Regional Enterprise,Other Services,0060092974,CONWAY AECOM LTD,797.58,21/12/2017
Commercial,Regional Enterprise,Other Services,0060092976,CONWAY AECOM LTD,"1,367.28",21/12/2017
Commercial,Regional Enterprise,Other Services,0060092978,CONWAY AECOM LTD,791.25,12/12/2017
Commercial,Regional Enterprise,Other Services,0060092983,CONWAY AECOM LTD,104.64,21/12/2017
Commercial,Regional Enterprise,Other Services,0060092984,CONWAY AECOM LTD,822.90,21/12/2017
Commercial,Regional Enterprise,Other Services,0060092990,CONWAY AECOM LTD,987.48,21/12/2017
Commercial,Regional Enterprise,Other Services,0060093014,CONWAY AECOM LTD,455.76,21/12/2017
Commercial,Regional Enterprise,Other Services,0060093017,CONWAY AECOM LTD,590.80,21/12/2017
Commercial,Regional Enterprise,Other Services,0060093024,CONWAY AECOM LTD,455.76,21/12/2017
Commercial,Regional Enterprise,Professional Services,0060092791,GLENDALE COUNTRYSIDE LTD,"1,850.00",21/12/2017
Commercial,Regional Enterprise,Grant Payments,0080014152,SOUTH HERTFORDSHIRE,"3,307.50",06/12/2017
Commercial,Regional Enterprise,Grant Payments,0080014161,MCP PROPERTY SERVICES LTD,"2,992.50",08/12/2017
Commercial,Regional Enterprise,Grant Payments,0080014267,H D PROPERTY SERVICES LTD,"1,472.10",15/12/2017
Commercial,Regional Enterprise,Grant Payments,0080014295,H D PROPERTY SERVICES LTD,235.00,18/12/2017
Commercial,Regional Enterprise,Grant Payments,0080014500,STANNAH STAIRLIFTS LTD,500.00,20/12/2017
Commercial,Regional Enterprise,Grant Payments,0080014518,MCP PROPERTY SERVICES LTD,"2,010.00",27/12/2017
Commercial,Regional Enterprise,Grant Payments,0080014539,H D PROPERTY SERVICES LTD,"3,717.00",22/12/2017
Commercial,Regional Enterprise,Grant Payments,0080014549,DP BUILDERS DISABLED ADAPTATIONS,"3,307.50",27/12/2017
Commercial,Regional Enterprise,Grant Payments,0080014563,DP BUILDERS DISABLED ADAPTATIONS,"3,948.00",27/12/2017
Commercial,Regional Enterprise,Grant Payments,0080014573,MCP PROPERTY SERVICES LTD,"1,522.50",27/12/2017
Commercial,Regional Enterprise,Other Establishments - Third P,0080013909,PUBLISH - REDACT NAME,"1,937.00",05/12/2017
Commercial,Regional Enterprise,Grant Payments,0080014493,PUBLISH - REDACT NAME,400.00,20/12/2017
Commercial,Regional Enterprise,Grant Payments,0080014504,STANNAH STAIRLIFTS LTD,585.38,20/12/2017
Commercial,Regional Enterprise,Fees and Charges,0020035216,PUBLISH - REDACT NAME,581.28,07/12/2017
Commercial,Regional Enterprise,Consultants Fees,0060086429,WE MADE THAT LLP,"2,699.81",20/12/2017
Commercial,Regional Enterprise,Consultants Fees,0060094387,WE MADE THAT LLP,"5,550.00",27/12/2017
Commercial,Regional Enterprise,RE Services Contract Payment,0010013936,RE (REGIONAL ENTERPRISE) LIMITED,"820,480.16",27/12/2017
Commercial,Regional Enterprise,RE Services Contract Payment,0010013938,RE (REGIONAL ENTERPRISE) LIMITED,"463,456.63",27/12/2017
Commercial,Regional Enterprise,RE Services Contract Payment,0060094111,RE (REGIONAL ENTERPRISE) LIMITED,"553,013.93",27/12/2017
Commercial,Regional Enterprise,RE Services Contract Payment,0060094184,RE (REGIONAL ENTERPRISE) LIMITED,"745,701.89",27/12/2017
Commercial,Regional Enterprise,RE Services Contract Payment,0060094367,RE (REGIONAL ENTERPRISE) LIMITED,"737,015.26",27/12/2017
Commercial,Regional Enterprise,RE Services Contract Payment,0060090804,RE (REGIONAL ENTERPRISE) LIMITED,"167,500.00",06/12/2017
Commercial,Regional Enterprise,Grant Payments,0080013925,SCOOTER STORE,298.80,19/12/2017
Commercial,Regional Enterprise,Grant Payments,0080014163,ARTHUR J. FERRYMAN ASSOCIATES,240.00,06/12/2017
Commercial,Regional Enterprise,Grant Payments,0080014189,PUBLISH - REDACT NAME,"5,145.00",15/12/2017
Commercial,Regional Enterprise,Grant Payments,0080014286,ORIGIN HOUSNG,"5,842.00",15/12/2017
Commercial,Regional Enterprise,Grant Payments,0080014290,H D PROPERTY SERVICES LTD,"5,025.00",18/12/2017
Commercial,Regional Enterprise,Grant Payments,0080014307,DP BUILDERS DISABLED ADAPTATIONS,"2,140.00",20/12/2017
Commercial,Regional Enterprise,Grant Payments,0080014346,AMWELL CONSTRUCTION LTD,"7,375.00",18/12/2017
Commercial,Regional Enterprise,Grant Payments,0080014349,EMS STAIRLIFTS,"18,692.00",19/12/2017
Commercial,Regional Enterprise,Grant Payments,0080014390,BG BUILDING SOLUTIONS LTD,"12,554.20",18/12/2017
Commercial,Regional Enterprise,Grant Payments,0080014391,ARTHUR J. FERRYMAN ASSOCIATES,"3,286.80",18/12/2017
Commercial,Regional Enterprise,Grant Payments,0080014501,DP BUILDERS DISABLED ADAPTATIONS,"3,281.00",27/12/2017
Commercial,Regional Enterprise,Grant Payments,0080014508,PUBLISH - REDACT NAME,"4,433.00",21/12/2017
Commercial,Regional Enterprise,Grant Payments,0080014519,PUBLISH - REDACT NAME,"20,000.00",21/12/2017
Commercial,Regional Enterprise,Grant Payments,0080014521,PUBLISH - REDACT NAME,"11,782.89",21/12/2017
Commercial,Regional Enterprise,Grant Payments,0080014522,DP BUILDERS DISABLED ADAPTATIONS,"7,290.00",27/12/2017
Commercial,Regional Enterprise,Grant Payments,0080014523,ARTHUR J. FERRYMAN ASSOCIATES,874.80,21/12/2017
Commercial,Regional Enterprise,Grant Payments,0080014525,SOUTH HERTFORDSHIRE,"5,227.00",21/12/2017
Commercial,Regional Enterprise,Grant Payments,0080014530,ACCESS & AUTOMATION LTD,"2,700.00",22/12/2017
Commercial,Regional Enterprise,Grant Payments,0080014534,SOUTH HERTFORDSHIRE,"4,561.00",22/12/2017
Commercial,Regional Enterprise,Grant Payments,0080014541,H D PROPERTY SERVICES LTD,"5,003.00",22/12/2017
Commercial,Regional Enterprise,Grant Payments,0080014556,SOUTH HERTFORDSHIRE,"12,712.00",22/12/2017
Commercial,Regional Enterprise,Grant Payments,0080014561,CJM BUILDINGS,"10,730.00",22/12/2017
Commercial,Regional Enterprise,Grant Payments,0080014562,DP BUILDERS DISABLED ADAPTATIONS,450.00,27/12/2017
Commercial,Regional Enterprise,Grant Payments,0080014185,PUBLISH - REDACT NAME,275.00,19/12/2017
Commercial,Regional Enterprise,Grant Payments,0080014453,R.S ELECTRICAL,"6,000.00",19/12/2017
Commercial,Regional Enterprise,Grant Payments,0080014470,STERLING HEAT,"14,212.80",19/12/2017
Commercial,Regional Enterprise,Grant Payments,0080014472,DS MAINTENANCE,"3,215.00",19/12/2017
Commercial,Regional Enterprise,Grant Payments,0080014162,DP BUILDERS DISABLED ADAPTATIONS,504.00,08/12/2017
Commercial,Regional Enterprise,Grant Payments,0080014450,H D PROPERTY SERVICES LTD,"3,646.65",20/12/2017
Commercial,Regional Enterprise,Other Services,0060091718,ALL MEDIA WORKS LTD,"3,257.00",07/12/2017
Commercial,Regional Enterprise,Other Services,0060074024,CONWAY AECOM LTD,40.66,27/12/2017
Commercial,Regional Enterprise,Other Services,0060089274,BARNET LIGHTING SERVICES LTD,"(1,034.51)",21/12/2017
Commercial,Regional Enterprise,Other Services,0060094239,CONWAY AECOM LTD,"10,743.54",21/12/2017
Commercial,Regional Enterprise,Other Services,0060092530,CONWAY AECOM LTD,"3,459.39",14/12/2017
Commercial,Regional Enterprise,Other Services,0060092644,CONWAY AECOM LTD,"3,383.51",14/12/2017
Commercial,Regional Enterprise,Other Services,0060093691,CONWAY AECOM LTD,"5,312.08",14/12/2017
Commercial,Regional Enterprise,Other Services,0060093862,CYCLE CONFIDENT LTD,"11,227.18",27/12/2017
Commercial,Regional Enterprise,Advertising,0060093018,TMP (UK) LTD,462.00,15/12/2017
Commercial,Regional Enterprise,Advertising,0060093023,TMP (UK) LTD,278.00,15/12/2017
Commercial,Regional Enterprise,Other Services,0060093688,SUN HILL SURVEYS,"1,475.00",27/12/2017
Commercial,Regional Enterprise,Other Services,0060094465,BARNET LIGHTING SERVICES LTD,345.00,27/12/2017
Commercial,Regional Enterprise,Other Services,0060094484,CONWAY AECOM LTD,"11,846.63",27/12/2017
Commercial,Regional Enterprise,Other Services,0060092810,CONWAY AECOM LTD,876.34,14/12/2017
Commercial,Regional Enterprise,Other Services,0060094512,BARNET LIGHTING SERVICES LTD,"46,281.41",27/12/2017
Commercial,Regional Enterprise,Other Services,0060092047,WESTCOTEC LIMITED,"5,500.00",12/12/2017
Commercial,Regional Enterprise,Capital Construction and Works,0060092066,CONWAY AECOM LTD,145.80,06/12/2017
Commercial,Regional Enterprise,Other Services,0060090465,TRANSPORT FOR LONDON,"11,446.93",15/12/2017
Commercial,Regional Enterprise,Other Services,0060092832,MACLEOD SIMMONDS LTD,"1,915.00",20/12/2017
Commercial,Regional Enterprise,Other Services,0060093002,MACLEOD SIMMONDS LTD,"2,442.50",13/12/2017
Commercial,Regional Enterprise,Other Services,0080014593,CONWAY AECOM LTD,"800,857.73",27/12/2017
Commercial,Regional Enterprise,Other Services,0060093636,CONWAY AECOM LTD,"72,410.51",20/12/2017
Commercial,Regional Enterprise,Other Services,0060093657,CONWAY AECOM LTD,"24,311.78",14/12/2017
Commercial,Regional Enterprise,Other Services,0060093666,CONWAY AECOM LTD,"20,231.35",14/12/2017
Commercial,Regional Enterprise,Other Services,0060093690,CONWAY AECOM LTD,"3,509.70",20/12/2017
Commercial,Regional Enterprise,Other Services,0060093709,CONWAY AECOM LTD,"13,212.22",15/12/2017
Commercial,Regional Enterprise,Other Services,0060093720,CONWAY AECOM LTD,"23,838.57",15/12/2017
Commercial,Regional Enterprise,Other Services,0060093749,CONWAY AECOM LTD,"11,771.88",15/12/2017
Commercial,Regional Enterprise,Other Services,0060093773,CONWAY AECOM LTD,"41,212.17",20/12/2017
Commercial,Regional Enterprise,Other Services,0060093779,CONWAY AECOM LTD,"9,635.85",15/12/2017
Commercial,Regional Enterprise,Other Services,0060093789,CONWAY AECOM LTD,"8,250.92",15/12/2017
Commercial,Regional Enterprise,Other Services,0060093801,CONWAY AECOM LTD,"12,455.28",15/12/2017
Commercial,Regional Enterprise,Other Services,0060093826,CONWAY AECOM LTD,"6,715.67",15/12/2017
Commercial,Regional Enterprise,Other Services,0060093844,CONWAY AECOM LTD,"9,478.46",15/12/2017
Commercial,Regional Enterprise,Other Services,0060093867,CONWAY AECOM LTD,"17,983.22",15/12/2017
Commercial,Regional Enterprise,Other Services,0060093868,CONWAY AECOM LTD,"6,478.80",19/12/2017
Commercial,Regional Enterprise,Other Services,0060094000,CONWAY AECOM LTD,"13,155.13",19/12/2017
Commercial,Regional Enterprise,Other Services,0060094092,CONWAY AECOM LTD,"36,476.71",19/12/2017
Commercial,Regional Enterprise,Other Services,0060055824,CONWAY AECOM LTD,"68,000.00",19/12/2017
Commercial,Regional Enterprise,Other Services,0060093621,CONWAY AECOM LTD,"8,991.64",14/12/2017
Commercial,Regional Enterprise,Other Services,0060093629,CONWAY AECOM LTD,"18,666.00",14/12/2017
Commercial,Regional Enterprise,Other Services,0060093642,CONWAY AECOM LTD,"14,309.20",14/12/2017
Commercial,Regional Enterprise,Other Services,0060093647,CONWAY AECOM LTD,"120,512.00",14/12/2017
Commercial,Regional Enterprise,Other Services,0060093648,CONWAY AECOM LTD,"29,296.00",14/12/2017
Commercial,Regional Enterprise,Other Services,0060093651,CONWAY AECOM LTD,"11,424.00",14/12/2017
Commercial,Regional Enterprise,Other Services,0060093664,CONWAY AECOM LTD,"20,236.80",14/12/2017
Commercial,Regional Enterprise,Other Services,0060093667,CONWAY AECOM LTD,"36,985.20",14/12/2017
Commercial,Regional Enterprise,Other Services,0060093677,CONWAY AECOM LTD,"37,504.00",14/12/2017
Commercial,Regional Enterprise,Other Services,0060093681,CONWAY AECOM LTD,"6,596.70",14/12/2017
Commercial,Regional Enterprise,Other Services,0060093685,CONWAY AECOM LTD,"19,472.00",14/12/2017
Commercial,Regional Enterprise,Other Services,0060093686,CONWAY AECOM LTD,"33,241.60",14/12/2017
Commercial,Regional Enterprise,Other Services,0060093689,CONWAY AECOM LTD,"25,402.30",20/12/2017
Commercial,Regional Enterprise,Other Services,0060093850,CONWAY AECOM LTD,"12,385.00",15/12/2017
Commercial,Regional Enterprise,Other Services,0080014590,CONWAY AECOM LTD,"442,159.28",27/12/2017
Commercial,Regional Enterprise,Other Services,0060092230,CONWAY AECOM LTD,"2,504.38",14/12/2017
Commercial,Regional Enterprise,Other Services,0060092247,CONWAY AECOM LTD,"3,824.41",14/12/2017
Commercial,Regional Enterprise,Other Services,0060092794,CONWAY AECOM LTD,"2,766.31",14/12/2017
Commercial,Regional Enterprise,Other Services,0060093602,CONWAY AECOM LTD,"6,952.62",14/12/2017
Commercial,Regional Enterprise,Other Services,0060093634,CONWAY AECOM LTD,"12,115.83",14/12/2017
Commercial,Regional Enterprise,Other Services,0060093643,CONWAY AECOM LTD,"25,885.61",14/12/2017
Commercial,Regional Enterprise,Other Services,0060093680,CONWAY AECOM LTD,"8,432.26",14/12/2017
Commercial,Regional Enterprise,Other Services,0060093843,CONWAY AECOM LTD,"28,219.00",15/12/2017
Commercial,Regional Enterprise,Other Services,0060093644,CONWAY AECOM LTD,"11,113.56",14/12/2017
Commercial,Regional Enterprise,Other Services,0060093615,CONWAY AECOM LTD,"3,509.70",14/12/2017
Commercial,Regional Enterprise,Consultants Fees,0060094081,BOLT & HEEKS LTD,"32,283.48",27/12/2017
Commercial,Regional Enterprise,Other Services,0060093605,CONWAY AECOM LTD,"1,648.80",14/12/2017
Commercial,Regional Enterprise,Other Services,0060093612,CONWAY AECOM LTD,"1,648.80",14/12/2017
Commercial,Regional Enterprise,Other Services,0060093617,CONWAY AECOM LTD,824.40,14/12/2017
Commercial,Regional Enterprise,Other Services,0060093625,CONWAY AECOM LTD,"3,297.60",14/12/2017
Commercial,Regional Enterprise,Equipment and Materials Purcha,0060093641,CONWAY AECOM LTD,"167,200.00",14/12/2017
Commercial,Regional Enterprise,Other Services,0060093649,CONWAY AECOM LTD,"1,648.80",14/12/2017
Commercial,Regional Enterprise,Other Services,0060093659,CONWAY AECOM LTD,"3,297.60",14/12/2017
Commercial,Regional Enterprise,Other Services,0060093687,CONWAY AECOM LTD,"1,648.80",14/12/2017
Commercial,Regional Enterprise,Other Services,0060094083,CONWAY AECOM LTD,"1,356.04",19/12/2017
Commercial,Regional Enterprise,Consultants Fees,0010013930,CROWN MORAN HOTEL,"3,200.00",14/12/2017
Commercial,Regional Enterprise,Consultants Fees,0060091623,NETWORK RAIL INFRASTRUCTURE LTD,"595,558.37",08/12/2017
Commercial,Regional Enterprise,Consultants Fees,0060091765,ARIANA BANQUETING HALL,800.00,14/12/2017
Commercial,Regional Enterprise,Consultants Fees,0060092279,RAILFREIGHT CONSULTING LTD,"6,105.00",13/12/2017
Commercial,Regional Enterprise,Consultants Fees,0060092676,NETWORK RAIL INFRASTRUCTURE LTD,"709,952.79",21/12/2017
Commercial,Regional Enterprise,Other Services,0060087880,BRITISH TELECOM PLC,"7,478.00",22/12/2017
Commercial,Regional Enterprise,Other Services,0060090375,TRAFFIC SURVEY PARTNERS (TSP) LTD,690.00,21/12/2017
Commercial,Regional Enterprise,Other Services,0060092925,BRITISH TELECOMMUNICATIONS PLC,"2,991.20",04/12/2017
Commercial,Regional Enterprise,Other Services,0060093358,GOOD IMPRESSIONS (LONDON) LIMITED,210.00,27/12/2017
Commercial,Regional Enterprise,Other Services,0060093420,GOOD IMPRESSIONS (LONDON) LIMITED,480.00,27/12/2017
Commercial,Regional Enterprise,Other Services,0060093825,VODAFONE LTD (BILLS ONLY),"2,500.00",15/12/2017
Commissioning,Commissioning,Professional Services,0060093254,LONDON BOROUGH OF BRENT,"115,000.00",15/12/2017
Commissioning,Commissioning,Other Local Authorities - Thir,EBX0201297,NORTH LONDON WASTE,"872,077.00",01/12/2017
Commissioning,Commissioning,Building Repairs & Maintenance,0060088134,SECOM PLC,"1,548.00",05/12/2017
Commissioning,Commissioning,Building Repairs & Maintenance,0060089853,RGE SERVICES,496.00,21/12/2017
Commissioning,Commissioning,Building Repairs & Maintenance,0060093077,TECALEMIT GARAGE EQUIPMENT CO LTD,"1,825.00",14/12/2017
Commissioning,Commissioning,Building Repairs & Maintenance,0060093110,TECALEMIT GARAGE EQUIPMENT CO LTD,"6,009.00",14/12/2017
Commissioning,Commissioning,Furniture-Purchase-Repair,0060093125,SECOM PLC,531.00,27/12/2017
Commissioning,Commissioning,Capital Construction and Works,0060093512,S W BRUCE & CO LTD,"2,116.76",27/12/2017
Commissioning,Commissioning,Building Repairs & Maintenance,0060093520,CONWAY AECOM LTD,976.93,13/12/2017
Commissioning,Commissioning,Building Repairs & Maintenance,0060094086,S W BRUCE & CO LTD,82.84,19/12/2017
Commissioning,Commissioning,Building Repairs & Maintenance,0060092767,S W BRUCE & CO LTD,"13,646.00",14/12/2017
Commissioning,Commissioning,Professional Services,0060093589,RE (REGIONAL ENTERPRISE) LIMITED,"1,200.00",27/12/2017
Commissioning,Commissioning,Building Repairs & Maintenance,0060094585,UK POWER NETWORKS,"6,146.00",27/12/2017
Commissioning,Commissioning,Consultants Fees,0060093576,GALLIFORD TRY,"1,704,441.17",21/12/2017
Commissioning,Commissioning,Other Services,0060093604,AMU SURVEYS LTD,"1,200.00",27/12/2017
Commissioning,Commissioning,Other Services,0060092002,CONWAY AECOM LTD,489.00,06/12/2017
Commissioning,Commissioning,Other Services,0060092778,AMU SURVEYS LTD,"1,200.00",21/12/2017
Commissioning,Commissioning,Equipment and Materials Purcha,0060093028,CONWAY AECOM LTD,"24,702.63",05/12/2017
Commissioning,Commissioning,Professional Services,0060093669,THE BARNETGROUP LIMITED,28.20,14/12/2017
Commissioning,Commissioning,Ttl IT & Comms,0060090866,STOR-A FILE LTD,(2.72),27/12/2017
Commissioning,Commissioning,Ttl IT & Comms,0060093166,STOR-A FILE LTD,"5,966.13",27/12/2017
Commissioning,Commissioning,Professional Services,0060091466,QM LEGAL COSTS SOLUTIONS LTD,"1,638.19",05/12/2017
Commissioning,Commissioning,Professional Services,0060092897,QM LEGAL COSTS SOLUTIONS LTD,309.98,22/12/2017
Commissioning,Commissioning,Grant Payments,0080014075,BARNET BOROUGH ARTS COUNCIL,"1,073.00",07/12/2017
Commissioning,Commissioning,Grant Payments,0080014186,SOMALI BRAVANESE WELFARE ASSOCIATION,"5,000.00",07/12/2017
Commissioning,Commissioning,Training,0060092825,CIPFA BUSINESS LIMITED,195.00,01/12/2017
Commissioning,Commissioning,Other Services,0080014121,PUBLISH - REDACT NAME,100.00,05/12/2017
Commissioning,Commissioning,Consultants Fees,0060092111,LEIDOS INNOVATIONS UK LTD,"14,028.00",14/12/2017
Commissioning,Commissioning,Other Agencies - Third Party P,0060089752,FAMILY FUND TRADING LTD,"(1,264.88)",14/12/2017
Commissioning,Commissioning,Other Agencies - Third Party P,0060091825,FAMILY FUND TRADING LTD,131.00,14/12/2017
Commissioning,Commissioning,Other Agencies - Third Party P,0060093105,FAMILY FUND TRADING LTD,186.00,14/12/2017
Commissioning,Commissioning,Professional Services,0060092981,GROUNDWORK LONDON,"19,867.58",07/12/2017
Commissioning,Commissioning,Equipment and Materials Purcha,0060092807,OCS GROUP UK LIMITED,"47,050.00",27/12/2017
Commissioning,Commissioning,Other Services,0060091742,MIDDLESEX UNIVERSITY,225.00,04/12/2017
Commissioning,Commissioning,Other Services,0060091773,MIDDLESEX UNIVERSITY,221.00,04/12/2017
Commissioning,Commissioning,Other Transfer Payments to Soc,0060092686,SOLACE WOMEN'S AID,"74,552.50",22/12/2017
Commissioning,Commissioning,Other Transfer Payments to Soc,0060092694,SOLACE WOMEN'S AID,"51,571.25",22/12/2017
Commissioning,Commissioning,Private Contractors - Third Pa,0010013917,GREENWICH LEISURE LTD,"121,987.03",06/12/2017
Commissioning,Commissioning,Private Contractors - Third Pa,0060092871,GREENWICH LEISURE LTD,"121,987.03",08/12/2017
Commissioning,Commissioning,Private Contractors - Third Pa,0060094348,GREENWICH LEISURE LTD,"121,987.03",27/12/2017
Commissioning,Commissioning,Professional Services,0060091706,MIDDLESEX UNIVERSITY,"1,160.00",04/12/2017
Commissioning,Commissioning,Other Services,0060093157,ART AGAINST KNIVES,865.00,27/12/2017
Commissioning,Commissioning,Consultants Fees,0060092444,CITY OF LONDON,"5,000.00",07/12/2017
Commissioning,Commissioning,Consultants Fees,0060092769,AVENTIS SOLUTIONS LIMITED,"34,500.00",13/12/2017
Commissioning,Commissioning,Employee Expenses,0060092985,TMP (UK) LTD,890.00,14/12/2017
Commissioning,Commissioning,Professional Services,0060093356,FLUID DESIGN LTD,"13,277.50",22/12/2017
Commissioning,Commissioning,Professional Services,0060093390,FLUID DESIGN LTD,"1,190.20",22/12/2017
Commissioning,Commissioning,Professional Services,0060093730,MAUNDER TAYLOR CHARTERED SURVEYORS,"1,000.00",19/12/2017
Commissioning,Commissioning,Professional Services,0060093796,MAUNDER TAYLOR CHARTERED SURVEYORS,"1,000.00",19/12/2017
Commissioning,Commissioning,Professional Services,0080014177,BIG HOUSING DEBATE,186.75,06/12/2017
Commissioning,Commissioning,Consultants Fees,0060093848,PUBLISH - REDACT NAME,500.00,18/12/2017
Commissioning,Commissioning,Consultants Fees,0080014351,PUBLISH - REDACT NAME,40.96,14/12/2017
Commissioning,Commissioning,Consultants Fees,0080014527,MIDDLESEX UNI,200.00,21/12/2017
Commissioning,Commissioning,Consultants Fees,0060093292,L G FUTURES,"3,000.00",20/12/2017
Commissioning,Commissioning,Professional Services,0060091951,C A C I LTD,"2,500.00",13/12/2017
Commissioning,Commissioning,Professional Services,0060092975,MYSTERY SHOPPERS LTD,399.80,27/12/2017
Commissioning,Commissioning,Training,0060092843,CAPITA BUSINESS SERVICES LTD,750.00,13/12/2017
Commissioning,Commissioning,Advertising,0060093003,BUFFALO7 LTD,95.00,05/12/2017
Commissioning,Commissioning,Publications,0060093237,LETTERBOX DISTRIBUTION.COM,300.00,08/12/2017
Commissioning,Commissioning,Publications,0060093295,LETTERBOX DISTRIBUTION.COM,300.00,08/12/2017
Commissioning,Commissioning,Advertising,0060093324,NEW BARNET COMMUNITY ASSOCIATION,45.00,11/12/2017
Commissioning,Commissioning,Grant Payments,0060093609,THE BARNETGROUP LIMITED,"23,389.06",15/12/2017
Commissioning,Commissioning,Employee Expenses,0060094130,TMP (UK) LTD,841.00,27/12/2017
Commissioning,Commissioning,Consultants Fees,0060093933,FMG CONSULTING LTD,"1,043.62",27/12/2017
Commissioning,Commissioning,Consultants Fees,0060092827,CAPITA BUSINESS SERVICES LTD,"1,500.00",13/12/2017
Commissioning,Commissioning,Consultants Fees,0060092851,CAPITA BUSINESS SERVICES LTD,375.00,13/12/2017
Commissioning,Commissioning,Consultants Fees,0060092862,INCLUSION BARNET,"8,280.00",22/12/2017
Commissioning,Commissioning,Consultants Fees,0060093249,GATENBY SANDERSON,"11,404.00",21/12/2017
Commissioning,Commissioning,Other Services,0060092883,PELL FRISCHMAN CONSULTING ENGINEERS LTD,"1,545.30",20/12/2017
Commissioning,Commissioning,Advertising,0060059675,NEWSQUEST (LONDON) LIMITED,(119.30),22/12/2017
Commissioning,Commissioning,Other Services,0060093238,BLUE 9 SECURITY LIMITED,"2,094.17",14/12/2017
Commissioning,Commissioning,Other Services,0060093251,BLUE 9 SECURITY LIMITED,"2,382.21",14/12/2017
Commissioning,Commissioning,Other Services,0060093255,BLUE 9 SECURITY LIMITED,"7,216.70",14/12/2017
Commissioning,Commissioning,Other Services,0060093258,BLUE 9 SECURITY LIMITED,"2,413.35",14/12/2017
Commissioning,Commissioning,Other Services,0060093265,BLUE 9 SECURITY LIMITED,"2,358.86",13/12/2017
Commissioning,Commissioning,Other Services,0060093276,BLUE 9 SECURITY LIMITED,"2,351.07",13/12/2017
Commissioning,Commissioning,Other Services,0060093278,BLUE 9 SECURITY LIMITED,"2,296.58",13/12/2017
Commissioning,Commissioning,Other Services,0060093280,BLUE 9 SECURITY LIMITED,"2,281.01",13/12/2017
Commissioning,Commissioning,Other Services,0060093293,BLUE 9 SECURITY LIMITED,"2,413.35",13/12/2017
Commissioning,Commissioning,Other Services,0060093301,BLUE 9 SECURITY LIMITED,"2,763.68",13/12/2017
Commissioning,Commissioning,Other Services,0060093836,BLUE 9 SECURITY LIMITED,124.56,19/12/2017
Commissioning,Commissioning,Professional Services,0060093011,TRACEY HILL TRAINING & CONSULTANCY LTD,"3,844.40",27/12/2017
Commissioning,Commissioning,Consultants Fees,0060084395,JON SHEAFF AND ASSOCIATES,"2,440.00",19/12/2017
Corporate Accounting,Corporate Accounting,Grant Payments,0080014076,BARNET BOROUGH ARTS COUNCIL,327.00,07/12/2017
Corporate Accounting,Corporate Accounting,Grant Payments,0080014200,THE LARCHES TRUST,"2,500.00",07/12/2017
Corporate Accounting,Corporate Accounting,Other Transfer Payments to Soc,0080014082,WIRECARD (FS INSTANT 2040880892973),10.00,01/12/2017
Corporate Accounting,Corporate Accounting,Other Transfer Payments to Soc,0080014083,WIRECARD (FS ONGOING 2040881670310,20.00,01/12/2017
Corporate Accounting,Corporate Accounting,Other Transfer Payments to Soc,0080014195,WIRECARD (FS INSTANT 2040880892973),"9,566.26",07/12/2017
Corporate Accounting,Corporate Accounting,Other Transfer Payments to Soc,0080014210,WIRECARD (FS INSTANT 2040880892973),"5,788.69",11/12/2017
Corporate Accounting,Corporate Accounting,Other Transfer Payments to Soc,0080014212,WIRECARD (FS ONGOING 2040881670310,"6,755.54",11/12/2017
Corporate Accounting,Corporate Accounting,Other Transfer Payments to Soc,0080014433,WIRECARD (FS INSTANT 2040880892973),"6,504.86",19/12/2017
Corporate Accounting,Corporate Accounting,Other Transfer Payments to Soc,0080014434,WIRECARD (FS ONGOING 2040881670310,"8,962.82",19/12/2017
Corporate Accounting,Corporate Accounting,Other Local Authorities - Thir,EBX0205622,GREATER LONDON AUTHORITY,"49,828.80",27/12/2017
Corporate Accounting,Corporate Accounting,Other Local Authorities - Thir,EBX0202548,GREATER LONDON AUTHORITY,"234,605.00",07/12/2017
Corporate Accounting,Corporate Accounting,Other Local Authorities - Thir,EBX0203278,GREATER LONDON AUTHORITY,"3,428,215.84",11/12/2017
Corporate Accounting,Corporate Accounting,Other Local Authorities - Thir,EBX0205495,GREATER LONDON AUTHORITY,"4,014,752.61",22/12/2017
Delivery Units,Adults and Communities,Equipment and Materials Purcha,0060086723,JOHN GRAHAM CONSTRUCTION LTD,"215,250.00",04/12/2017
Delivery Units,Adults and Communities,Equipment and Materials Purcha,0060086749,JOHN GRAHAM CONSTRUCTION LTD,"94,889.00",04/12/2017
Delivery Units,Adults and Communities,Ttl IT & Comms,0060093741,P A CONSULTING SERVICES LTD,"187,634.00",27/12/2017
Delivery Units,Adults and Communities,Other Agencies - Third Party P,0030173479,ACER HEALTHCARE OPERATIONS LTD,154.69,08/12/2017
Delivery Units,Adults and Communities,Other Agencies - Third Party P,0030173483,FOUR SEASONS HEALTH CARE,"2,246.44",08/12/2017
Delivery Units,Adults and Communities,Other Agencies - Third Party P,0030174354,ACER HEALTHCARE OPERATIONS LTD,(362.82),18/12/2017
Delivery Units,Adults and Communities,Other Agencies - Third Party P,0030174356,FOUR SEASONS HEALTH CARE,325.04,18/12/2017
Delivery Units,Adults and Communities,Other Agencies - Third Party P,0030174358,FOUR SEASONS HEALTH CARE,"1,744.93",18/12/2017
Delivery Units,Adults and Communities,Other Agencies - Third Party P,0080014329,NEWCENTURY CARE LTD,"7,528.58",19/12/2017
Delivery Units,Adults and Communities,Other Agencies - Third Party P,0090040014,BONDCARE LONDON (THE FOUNTAINS),"2,138.00",01/12/2017
Delivery Units,Adults and Communities,Other Agencies - Third Party P,0090040015,BONDCARE LONDON (THE FOUNTAINS),"2,138.00",01/12/2017
Delivery Units,Adults and Communities,Other Agencies - Third Party P,0090040016,BONDCARE LONDON (THE FOUNTAINS),"1,908.93",01/12/2017
Delivery Units,Adults and Communities,Other Agencies - Third Party P,0090040017,BONDCARE LONDON (THE FOUNTAINS),"2,138.00",01/12/2017
Delivery Units,Adults and Communities,Other Agencies - Third Party P,0090040044,APPLE TREE COURT CARE HOME,232.04,01/12/2017
Delivery Units,Adults and Communities,Other Agencies - Third Party P,0090040231,FOUR SEASONS HEALTH CARE,364.39,04/12/2017
Delivery Units,Adults and Communities,Other Agencies - Third Party P,0090040232,FOUR SEASONS HEALTH CARE,"2,291.36",04/12/2017
Delivery Units,Adults and Communities,Other Agencies - Third Party P,0090040234,FOUR SEASONS HEALTH CARE,"2,551.52",04/12/2017
Delivery Units,Adults and Communities,Other Agencies - Third Party P,0090040236,FOUR SEASONS HEALTH CARE,"2,291.36",04/12/2017
Delivery Units,Adults and Communities,Other Agencies - Third Party P,0090040237,FOUR SEASONS HEALTH CARE,"2,550.72",04/12/2017
Delivery Units,Adults and Communities,Other Agencies - Third Party P,0090040238,FOUR SEASONS HEALTH CARE,"2,550.72",04/12/2017
Delivery Units,Adults and Communities,Other Agencies - Third Party P,0090040240,FOUR SEASONS HEALTH CARE,"2,550.72",04/12/2017
Delivery Units,Adults and Communities,Other Agencies - Third Party P,0090040241,FOUR SEASONS HEALTH CARE,"2,313.51",04/12/2017
Delivery Units,Adults and Communities,Other Agencies - Third Party P,0090040242,MURRAYFIELD CARE HOME,"2,211.80",04/12/2017
Delivery Units,Adults and Communities,Other Agencies - Third Party P,0090040330,BUPA CARE HOMES,"2,165.68",04/12/2017
Delivery Units,Adults and Communities,Other Agencies - Third Party P,0090040345,ABBEY RAVENSCROFT PARK NURSING HOME,"3,000.00",04/12/2017
Delivery Units,Adults and Communities,Other Agencies - Third Party P,0090040347,SONESTA NURSING HOME LTD.,"2,165.68",04/12/2017
Delivery Units,Adults and Communities,Other Agencies - Third Party P,0090040350,SONESTA NURSING HOME LTD.," 2,398.56 ",04/12/2017
Delivery Units,Adults and Communities,Other Agencies - Third Party P,0090040352,LIFESTYLE CARE PLC," 2,569.89 ",04/12/2017
Delivery Units,Adults and Communities,Other Agencies - Third Party P,0090040353,LIFESTYLE CARE PLC," 2,569.89 ",04/12/2017
Delivery Units,Adults and Communities,Other Agencies - Third Party P,0090040354,LIFESTYLE CARE PLC," 2,320.37 ",04/12/2017
Delivery Units,Adults and Communities,Other Agencies - Third Party P,0090040904,JEWISH CARE, 183.49 ,06/12/2017
Delivery Units,Adults and Communities,Other Agencies - Third Party P,0090040909,ABBEY RAVENSCROFT PARK NURSING HOME," 3,100.00 ",06/12/2017
Delivery Units,Adults and Communities,Other Agencies - Third Party P,0090040911,AGUDAS ISRAEL HOUSING ASSCTN LTD," 2,648.57 ",14/12/2017
Delivery Units,Adults and Communities,Other Agencies - Third Party P,0090040915,CLARE HOUSE NURSING HOME," 2,228.72 ",06/12/2017
Delivery Units,Adults and Communities,Other Agencies - Third Party P,0090041064,THE LEONARD CHESHIRE FOUNDATION," 6,321.43 ",27/12/2017
Delivery Units,Adults and Communities,Other Agencies - Third Party P,0090041071,CARLTON COURT (TLC GROUP),-856.63 ,15/12/2017
Delivery Units,Adults and Communities,Other Agencies - Third Party P,0090041073,BUPA CARE HOMES LTD (SUTTON LODGE)," 1,987.86 ",06/12/2017
Delivery Units,Adults and Communities,Other Agencies - Third Party P,0090041074,BUPA CARE HOMES LTD (SUTTON LODGE)," 2,420.00 ",06/12/2017
Delivery Units,Adults and Communities,Other Agencies - Third Party P,0090041075,BUPA CARE HOMES LTD (SUTTON LODGE)," 2,420.00 ",06/12/2017
Delivery Units,Adults and Communities,Other Agencies - Third Party P,0090041076,BUPA CARE HOMES LTD (SUTTON LODGE),"2,420.00",06/12/2017
Delivery Units,Adults and Communities,Other Agencies - Third Party P,0090041080,BUPA CARE HOMES," 2,387.19 ",08/12/2017
Delivery Units,Adults and Communities,Other Agencies - Third Party P,0090041083,BUPA CARE HOMES,"2,386.50",14/12/2017
Delivery Units,Adults and Communities,Other Agencies - Third Party P,0090041085,BUPA CARE HOMES,"2,386.50",14/12/2017
Delivery Units,Adults and Communities,Other Agencies - Third Party P,0090041760,BUPA CARE HOMES," 2,165.68 ",07/12/2017
Delivery Units,Adults and Communities,Other Agencies - Third Party P,0090041761,BUPA CARE HOMES, 728.57 ,07/12/2017
Delivery Units,Adults and Communities,Other Agencies - Third Party P,0090041776,SAGE NURSING HOME," 5,142.86 ",07/12/2017
Delivery Units,Adults and Communities,Other Agencies - Third Party P,0090041779,SAGE NURSING HOME,"2,320.37",07/12/2017
Delivery Units,Adults and Communities,Other Agencies - Third Party P,0090041780,SAGE NURSING HOME," 2,320.37 ",07/12/2017
Delivery Units,Adults and Communities,Other Agencies - Third Party P,0090041782,SAGE NURSING HOME," 2,698.37 ",07/12/2017
Delivery Units,Adults and Communities,Other Agencies - Third Party P,0090041783,SAGE NURSING HOME," 2,436.39 ",07/12/2017
Delivery Units,Adults and Communities,Other Agencies - Third Party P,0090041983,BUPA CARE HOMES, 252.72 ,15/12/2017
Delivery Units,Adults and Communities,Other Agencies - Third Party P,0090041984,MURRAYFIELD CARE HOME,"2,211.80",08/12/2017
Delivery Units,Adults and Communities,Other Agencies - Third Party P,0090041985,MURRAYFIELD CARE HOME,"2,211.80",08/12/2017
Delivery Units,Adults and Communities,Other Agencies - Third Party P,0090042626,JEWISH CARE," 4,638.88 ",08/12/2017
Delivery Units,Adults and Communities,Other Agencies - Third Party P,0090042628,JEWISH CARE," 4,638.88 ",08/12/2017
Delivery Units,Adults and Communities,Other Agencies - Third Party P,0090042630,JEWISH CARE," 5,137.68 ",08/12/2017
Delivery Units,Adults and Communities,Other Agencies - Third Party P,0090042631,JEWISH CARE," 5,137.68 ",08/12/2017
Delivery Units,Adults and Communities,Other Agencies - Third Party P,0090042632,JEWISH CARE,"4,638.88",08/12/2017
Delivery Units,Adults and Communities,Other Agencies - Third Party P,0090042633,JEWISH CARE," 4,638.88 ",08/12/2017
Delivery Units,Adults and Communities,Other Agencies - Third Party P,0090042634,JEWISH CARE," 5,137.68 ",08/12/2017
Delivery Units,Adults and Communities,Other Agencies - Third Party P,0090042635,JEWISH CARE,"4,638.88",08/12/2017
Delivery Units,Adults and Communities,Other Agencies - Third Party P,0090042636,JEWISH CARE," 5,137.68 ",08/12/2017
Delivery Units,Adults and Communities,Other Agencies - Third Party P,0090042637,JEWISH CARE," 5,137.68 ",08/12/2017
Delivery Units,Adults and Communities,Other Agencies - Third Party P,0090042638,JEWISH CARE," 5,137.68 ",08/12/2017
Delivery Units,Adults and Communities,Other Agencies - Third Party P,0090042639,JEWISH CARE,"4,638.88",08/12/2017
Delivery Units,Adults and Communities,Other Agencies - Third Party P,0090042640,JEWISH CARE," 5,137.68 ",08/12/2017
Delivery Units,Adults and Communities,Other Agencies - Third Party P,0090042641,JEWISH CARE," 5,137.68 ",08/12/2017
Delivery Units,Adults and Communities,Other Agencies - Third Party P,0090042642,JEWISH CARE," 4,638.88 ",08/12/2017
Delivery Units,Adults and Communities,Other Agencies - Third Party P,0090042643,JEWISH CARE," 4,638.88 ",08/12/2017
Delivery Units,Adults and Communities,Other Agencies - Third Party P,0090042645,JEWISH CARE," 5,137.68 ",08/12/2017
Delivery Units,Adults and Communities,Other Agencies - Third Party P,0090042646,JEWISH CARE," 5,137.68 ",08/12/2017
Delivery Units,Adults and Communities,Other Agencies - Third Party P,0090042647,JEWISH CARE," 4,638.88 ",08/12/2017
Delivery Units,Adults and Communities,Other Agencies - Third Party P,0090042648,JEWISH CARE," 2,568.84 ",08/12/2017
Delivery Units,Adults and Communities,Other Agencies - Third Party P,0090042649,JEWISH CARE," 4,638.88 ",08/12/2017
Delivery Units,Adults and Communities,Other Agencies - Third Party P,0090042678,JEWISH CARE," 4,638.88 ",08/12/2017
Delivery Units,Adults and Communities,Other Agencies - Third Party P,0090042679,JEWISH CARE," 5,137.68 ",08/12/2017
Delivery Units,Adults and Communities,Other Agencies - Third Party P,0090042711,JEWISH CARE,"4,638.88",08/12/2017
Delivery Units,Adults and Communities,Other Agencies - Third Party P,0090042721,JEWISH CARE," 4,638.88 ",08/12/2017
Delivery Units,Adults and Communities,Other Agencies - Third Party P,0090043707,NEWCENTURY CARE LTD,"5,014.28",12/12/2017
Delivery Units,Adults and Communities,Other Agencies - Third Party P,0090043714,BUPA NURSING HOMES LTD - ARKLEY," 2,214.76 ",13/12/2017
Delivery Units,Adults and Communities,Other Agencies - Third Party P,0090043715,BUPA NURSING HOMES LTD - ARKLEY," 2,227.40 ",13/12/2017
Delivery Units,Adults and Communities,Other Agencies - Third Party P,0090043717,BUPA NURSING HOMES LTD - ARKLEY," 2,227.24 ",13/12/2017
Delivery Units,Adults and Communities,Other Agencies - Third Party P,0090043718,BUPA NURSING HOMES LTD - ARKLEY,"2,227.24",13/12/2017
Delivery Units,Adults and Communities,Other Agencies - Third Party P,0090043719,BUPA NURSING HOMES LTD - ARKLEY," 2,227.52 ",13/12/2017
Delivery Units,Adults and Communities,Other Agencies - Third Party P,0090043720,FOUR SEASONS HEALTH CARE (NO.4) LTD," 2,004.00 ",12/12/2017
Delivery Units,Adults and Communities,Other Agencies - Third Party P,0090043815,AUTUMN GARDENS," 4,800.00 ",12/12/2017
Delivery Units,Adults and Communities,Other Agencies - Third Party P,0090043818,AUTUMN GARDENS," 4,800.00 ",12/12/2017
Delivery Units,Adults and Communities,Other Agencies - Third Party P,0090043999,WESTGATE HOUSE CARE CENTRE," 3,725.76 ",12/12/2017
Delivery Units,Adults and Communities,Other Agencies - Third Party P,0090044000,SANCTUARY CARE LTD,"2,573.84",12/12/2017
Delivery Units,Adults and Communities,Other Agencies - Third Party P,0090044010,BUPA CARE HOMES," 2,642.87 ",14/12/2017
Delivery Units,Adults and Communities,Other Agencies - Third Party P,0090044016,FERNBANK NURSING HOME.," 2,318.80 ",12/12/2017
Delivery Units,Adults and Communities,Other Agencies - Third Party P,0090044017,FERNBANK NURSING HOME.," 2,397.54 ",12/12/2017
Delivery Units,Adults and Communities,Other Agencies - Third Party P,0090044019,FERNBANK NURSING HOME.," 2,318.80 ",12/12/2017
Delivery Units,Adults and Communities,Other Agencies - Third Party P,0090044020,FERNBANK NURSING HOME.," 2,318.80 ",12/12/2017
Delivery Units,Adults and Communities,Other Agencies - Third Party P,0090044021,FERNBANK NURSING HOME.," 2,397.54 ",12/12/2017
Delivery Units,Adults and Communities,Other Agencies - Third Party P,0090044023,FERNBANK NURSING HOME.," 2,397.54 ",12/12/2017
Delivery Units,Adults and Communities,Other Agencies - Third Party P,0090044024,FERNBANK NURSING HOME.," 3,072.10 ",12/12/2017
Delivery Units,Adults and Communities,Other Agencies - Third Party P,0090044025,FERNBANK NURSING HOME.," 2,397.54 ",12/12/2017
Delivery Units,Adults and Communities,Other Agencies - Third Party P,0090044031,ASHTON LODGE CARE CENTRE," 2,320.37 ",12/12/2017
Delivery Units,Adults and Communities,Other Agencies - Third Party P,0090044032,ASHTON LODGE CARE CENTRE,"2,397.72",12/12/2017
Delivery Units,Adults and Communities,Other Agencies - Third Party P,0090044033,ASHTON LODGE CARE CENTRE," 2,397.72 ",12/12/2017
Delivery Units,Adults and Communities,Other Agencies - Third Party P,0090044034,ASHTON LODGE CARE CENTRE," 2,320.37 ",12/12/2017
Delivery Units,Adults and Communities,Other Agencies - Third Party P,0090044035,ASHTON LODGE CARE CENTRE," 2,567.95 ",12/12/2017
Delivery Units,Adults and Communities,Other Agencies - Third Party P,0090044036,ASHTON LODGE CARE CENTRE, 801.44 ,12/12/2017
Delivery Units,Adults and Communities,Other Agencies - Third Party P,0090044040,ASHTON LODGE CARE CENTRE," 4,044.01 ",12/12/2017
Delivery Units,Adults and Communities,Other Agencies - Third Party P,0090044349,ST ANNS HOME-LITTLE SISTERS OF THE POOR," 2,320.38 ",12/12/2017
Delivery Units,Adults and Communities,Other Agencies - Third Party P,0090044629,NEWCENTURY CARE LTD," 2,397.72 ",12/12/2017
Delivery Units,Adults and Communities,Other Agencies - Third Party P,0090044630,NEWCENTURY CARE LTD," 3,764.29 ",12/12/2017
Delivery Units,Adults and Communities,Other Agencies - Third Party P,0090044631,NEWCENTURY CARE LTD," 5,159.15 ",12/12/2017
Delivery Units,Adults and Communities,Other Agencies - Third Party P,0090044634,NEWCENTURY CARE LTD," 3,985.71 ",12/12/2017
Delivery Units,Adults and Communities,Other Agencies - Third Party P,0090044635,NEWCENTURY CARE LTD," 2,655.55 ",12/12/2017
Delivery Units,Adults and Communities,Other Agencies - Third Party P,0090044637,NEWCENTURY CARE LTD," 2,655.55 ",12/12/2017
Delivery Units,Adults and Communities,Other Agencies - Third Party P,0090044652,BUPA CARE HOMES,"2,466.76",12/12/2017
Delivery Units,Adults and Communities,Other Agencies - Third Party P,0090044655,BUPA CARE HOMES," 3,416.11 ",14/12/2017
Delivery Units,Adults and Communities,Other Agencies - Third Party P,0090044940,WESTMINSTER HEALTH CARE LTD," 2,244.13 ",13/12/2017
Delivery Units,Adults and Communities,Other Agencies - Third Party P,0090044949,ASHTON LODGE CARE CENTRE," 2,397.72 ",13/12/2017
Delivery Units,Adults and Communities,Other Agencies - Third Party P,0090044951,BUPA CARE HOMES," 3,621.21 ",14/12/2017
Delivery Units,Adults and Communities,Other Agencies - Third Party P,0090044952,BUPA CARE HOMES," 2,384.57 ",14/12/2017
Delivery Units,Adults and Communities,Other Agencies - Third Party P,0090044956,BUPA CARE HOMES, 968.39 ,14/12/2017
Delivery Units,Adults and Communities,Other Agencies - Third Party P,0090044957,BUPA CARE HOMES," 2,641.07 ",14/12/2017
Delivery Units,Adults and Communities,Other Agencies - Third Party P,0090044958,BUPA CARE HOMES,"2,729.11",14/12/2017
Delivery Units,Adults and Communities,Other Agencies - Third Party P,0090044959,BUPA CARE HOMES," 2,641.07 ",14/12/2017
Delivery Units,Adults and Communities,Other Agencies - Third Party P,0090044983,ABBEY RAVENSCROFT PARK NURSING HOME,"3,801.88",15/12/2017
Delivery Units,Adults and Communities,Other Agencies - Third Party P,0090044984,ABBEY RAVENSCROFT PARK NURSING HOME," 2,788.32 ",15/12/2017
Delivery Units,Adults and Communities,Other Agencies - Third Party P,0090044985,ABBEY RAVENSCROFT PARK NURSING HOME," 2,788.32 ",15/12/2017
Delivery Units,Adults and Communities,Other Agencies - Third Party P,0090044986,ABBEY RAVENSCROFT PARK NURSING HOME,"3,255.00",15/12/2017
Delivery Units,Adults and Communities,Other Agencies - Third Party P,0090044989,ABBEY RAVENSCROFT PARK NURSING HOME," 3,100.00 ",15/12/2017
Delivery Units,Adults and Communities,Other Agencies - Third Party P,0090044990,ABBEY RAVENSCROFT PARK NURSING HOME," 2,788.32 ",15/12/2017
Delivery Units,Adults and Communities,Other Agencies - Third Party P,0090044992,ABBEY RAVENSCROFT PARK NURSING HOME," 3,255.00 ",15/12/2017
Delivery Units,Adults and Communities,Other Agencies - Third Party P,0090044994,ABBEY RAVENSCROFT PARK NURSING HOME," 2,788.32 ",15/12/2017
Delivery Units,Adults and Communities,Other Agencies - Third Party P,0090044996,ABBEY RAVENSCROFT PARK NURSING HOME,"2,788.32",15/12/2017
Delivery Units,Adults and Communities,Other Agencies - Third Party P,0090044997,ABBEY RAVENSCROFT PARK NURSING HOME," 3,321.43 ",15/12/2017
Delivery Units,Adults and Communities,Other Agencies - Third Party P,0090044998,ABBEY RAVENSCROFT PARK NURSING HOME," 2,788.32 ",15/12/2017
Delivery Units,Adults and Communities,Other Agencies - Third Party P,0090044999,ABBEY RAVENSCROFT PARK NURSING HOME," 2,788.32 ",15/12/2017
Delivery Units,Adults and Communities,Other Agencies - Third Party P,0090045000,ABBEY RAVENSCROFT PARK NURSING HOME," 3,255.00 ",15/12/2017
Delivery Units,Adults and Communities,Other Agencies - Third Party P,0090045001,ABBEY RAVENSCROFT PARK NURSING HOME," 3,255.00 ",15/12/2017
Delivery Units,Adults and Communities,Other Agencies - Third Party P,0090045002,ABBEY RAVENSCROFT PARK NURSING HOME," 3,321.43 ",15/12/2017
Delivery Units,Adults and Communities,Other Agencies - Third Party P,0090045004,ABBEY RAVENSCROFT PARK NURSING HOME," 3,321.43 ",15/12/2017
Delivery Units,Adults and Communities,Other Agencies - Third Party P,0090045007,ABBEY RAVENSCROFT PARK NURSING HOME," 2,788.32 ",15/12/2017
Delivery Units,Adults and Communities,Other Agencies - Third Party P,0090045008,ABBEY RAVENSCROFT PARK NURSING HOME," 3,321.43 ",15/12/2017
Delivery Units,Adults and Communities,Other Agencies - Third Party P,0090045009,ABBEY RAVENSCROFT PARK NURSING HOME," 3,321.43 ",15/12/2017
Delivery Units,Adults and Communities,Other Agencies - Third Party P,0090045021,CARE UK COMMUNITY PARTNERSHIPS," 3,426.61 ",15/12/2017
Delivery Units,Adults and Communities,Other Agencies - Third Party P,0090045022,ASHTON LODGE CARE CENTRE,"2,844.07",15/12/2017
Delivery Units,Adults and Communities,Other Agencies - Third Party P,0090045023,ASHTON LODGE CARE CENTRE," 3,871.86 ",15/12/2017
Delivery Units,Adults and Communities,Other Agencies - Third Party P,0090045024,ASHTON LODGE CARE CENTRE,"3,321.43",15/12/2017
Delivery Units,Adults and Communities,Other Agencies - Third Party P,0090045025,ASHTON LODGE CARE CENTRE," 3,133.79 ",15/12/2017
Delivery Units,Adults and Communities,Other Agencies - Third Party P,0090045026,ASHTON LODGE CARE CENTRE," 3,265.85 ",15/12/2017
Delivery Units,Adults and Communities,Other Agencies - Third Party P,0090045028,ASHTON LODGE CARE CENTRE," 2,844.07 ",15/12/2017
Delivery Units,Adults and Communities,Other Agencies - Third Party P,0090045030,ASHTON LODGE CARE CENTRE," 3,520.49 ",15/12/2017
Delivery Units,Adults and Communities,Other Agencies - Third Party P,0090045031,ASHTON LODGE CARE CENTRE,"3,077.64",15/12/2017
Delivery Units,Adults and Communities,Other Agencies - Third Party P,0090045032,ASHTON LODGE CARE CENTRE," 2,844.07 ",15/12/2017
Delivery Units,Adults and Communities,Other Agencies - Third Party P,0090045035,ASHTON LODGE CARE CENTRE," 2,844.07 ",15/12/2017
Delivery Units,Adults and Communities,Other Agencies - Third Party P,0090045037,ASHTON LODGE CARE CENTRE," 3,542.86 ",15/12/2017
Delivery Units,Adults and Communities,Other Agencies - Third Party P,0090045038,ASHTON LODGE CARE CENTRE,"3,764.29",15/12/2017
Delivery Units,Adults and Communities,Other Agencies - Third Party P,0090045039,ASHTON LODGE CARE CENTRE," 2,567.95 ",15/12/2017
Delivery Units,Adults and Communities,Other Agencies - Third Party P,0090045042,ASHTON LODGE CARE CENTRE,"2,936.14",15/12/2017
Delivery Units,Adults and Communities,Other Agencies - Third Party P,0090045066,ASHTON LODGE CARE CENTRE," 2,397.72 ",15/12/2017
Delivery Units,Adults and Communities,Other Agencies - Third Party P,0090045177,CARLTON COURT (TLC GROUP)," 2,655.55 ",15/12/2017
Delivery Units,Adults and Communities,Other Agencies - Third Party P,0090045178,CARLTON COURT (TLC GROUP),"2,655.55",15/12/2017
Delivery Units,Adults and Communities,Other Agencies - Third Party P,0090045180,CARLTON COURT (TLC GROUP)," 3,736.61 ",15/12/2017
Delivery Units,Adults and Communities,Other Agencies - Third Party P,0090045182,CARLTON COURT (TLC GROUP)," 3,741.92 ",15/12/2017
Delivery Units,Adults and Communities,Other Agencies - Third Party P,0090045183,CARLTON COURT (TLC GROUP)," 2,448.78 ",15/12/2017
Delivery Units,Adults and Communities,Other Agencies - Third Party P,0090045185,CARLTON COURT (TLC GROUP)," 3,741.92 ",15/12/2017
Delivery Units,Adults and Communities,Other Agencies - Third Party P,0090045207,MEERA NURSING HOME LIMITED,"2,907.93",15/12/2017
Delivery Units,Adults and Communities,Other Agencies - Third Party P,0090045209,MEERA NURSING HOME LIMITED," 2,445.68 ",15/12/2017
Delivery Units,Adults and Communities,Other Agencies - Third Party P,0090045210,MEERA NURSING HOME LIMITED," 2,445.68 ",15/12/2017
Delivery Units,Adults and Communities,Other Agencies - Third Party P,0090045211,MEERA NURSING HOME LIMITED," 2,708.65 ",15/12/2017
Delivery Units,Adults and Communities,Other Agencies - Third Party P,0090045212,MEERA NURSING HOME LIMITED," 2,445.68 ",15/12/2017
Delivery Units,Adults and Communities,Other Agencies - Third Party P,0090045213,MEERA NURSING HOME LIMITED," 2,445.68 ",15/12/2017
Delivery Units,Adults and Communities,Other Agencies - Third Party P,0090045214,MEERA NURSING HOME LIMITED," 2,708.65 ",15/12/2017
Delivery Units,Adults and Communities,Other Agencies - Third Party P,0090045215,LADY OF THE VALE NURSING HOME," 2,657.14 ",15/12/2017
Delivery Units,Adults and Communities,Other Agencies - Third Party P,0090045216,CARLTON COURT (TLC GROUP)," 5,314.29 ",15/12/2017
Delivery Units,Adults and Communities,Other Agencies - Third Party P,0090045947,FERNBANK NURSING HOME.," 2,397.54 ",20/12/2017
Delivery Units,Adults and Communities,Other Agencies - Third Party P,0090045952,B & M CARE," 3,800.00 ",20/12/2017
Delivery Units,Adults and Communities,Other Agencies - Third Party P,0090045977,FOUR SEASONS HEALTH CARE," 2,246.44 ",20/12/2017
Delivery Units,Adults and Communities,Other Agencies - Third Party P,0090045983,FOUR SEASONS HEALTH CARE," 2,291.36 ",20/12/2017
Delivery Units,Adults and Communities,Other Agencies - Third Party P,0090045984,FOUR SEASONS HEALTH CARE," 2,123.48 ",20/12/2017
Delivery Units,Adults and Communities,Other Agencies - Third Party P,0090045985,FOUR SEASONS HEALTH CARE," 4,286.95 ",20/12/2017
Delivery Units,Adults and Communities,Other Agencies - Third Party P,0090046526,FOUR SEASONS HEALTH CARE,"2,291.36",22/12/2017
Delivery Units,Adults and Communities,Other Agencies - Third Party P,0090046528,FOUR SEASONS HEALTH CARE," 2,291.36 ",22/12/2017
Delivery Units,Adults and Communities,Other Agencies - Third Party P,0090046529,FOUR SEASONS HEALTH CARE," 2,551.52 ",22/12/2017
Delivery Units,Adults and Communities,Other Agencies - Third Party P,0090046530,FOUR SEASONS HEALTH CARE," 2,291.36 ",22/12/2017
Delivery Units,Adults and Communities,Other Agencies - Third Party P,0090046532,FOUR SEASONS HEALTH CARE," 2,291.36 ",22/12/2017
Delivery Units,Adults and Communities,Other Agencies - Third Party P,0090046533,FOUR SEASONS HEALTH CARE," 2,550.72 ",22/12/2017
Delivery Units,Adults and Communities,Other Agencies - Third Party P,0090046534,FOUR SEASONS HEALTH CARE," 2,550.72 ",22/12/2017
Delivery Units,Adults and Communities,Other Agencies - Third Party P,0090046535,FOUR SEASONS HEALTH CARE," 2,550.72 ",22/12/2017
Delivery Units,Adults and Communities,Other Agencies - Third Party P,0090046537,FOUR SEASONS HEALTH CARE," 2,291.36 ",22/12/2017
Delivery Units,Adults and Communities,Other Agencies - Third Party P,0090046541,SAGE NURSING HOME," 5,314.29 ",27/12/2017
Delivery Units,Adults and Communities,Other Agencies - Third Party P,0090046543,SAGE NURSING HOME," 2,397.72 ",27/12/2017
Delivery Units,Adults and Communities,Other Agencies - Third Party P,0090046544,SAGE NURSING HOME," 2,397.72 ",27/12/2017
Delivery Units,Adults and Communities,Other Agencies - Third Party P,0090046546,SAGE NURSING HOME," 2,788.32 ",27/12/2017
Delivery Units,Adults and Communities,Other Agencies - Third Party P,0090046547,SAGE NURSING HOME," 3,741.92 ",27/12/2017
Delivery Units,Adults and Communities,Other Agencies - Third Party P,0090046548,SAGE NURSING HOME," 3,321.43 ",27/12/2017
Delivery Units,Adults and Communities,Other Agencies - Third Party P,0090046549,SAGE NURSING HOME," 2,517.60 ",27/12/2017
Delivery Units,Adults and Communities,Other Agencies - Third Party P,0030173478,ACER HEALTHCARE OPERATIONS LTD, 228.57 ,08/12/2017
Delivery Units,Adults and Communities,Other Agencies - Third Party P,0030173481,ACER HEALTHCARE OPERATIONS LTD," 3,845.83 ",08/12/2017
Delivery Units,Adults and Communities,Other Agencies - Third Party P,0030173482,ACER HEALTHCARE OPERATIONS LTD, 145.13 ,08/12/2017
Delivery Units,Adults and Communities,Other Agencies - Third Party P,0030174349,THE LIMES RESIDENTIAL HOME," 1,184.89 ",18/12/2017
Delivery Units,Adults and Communities,Other Agencies - Third Party P,0030174353,ACER HEALTHCARE OPERATIONS LTD," 13,061.32 ",18/12/2017
Delivery Units,Adults and Communities,Other Agencies - Third Party P,0030174361,JEWISH CARE, 497.66 ,18/12/2017
Delivery Units,Adults and Communities,Other Agencies - Third Party P,0030174362,JEWISH CARE, 165.89 ,18/12/2017
Delivery Units,Adults and Communities,Other Agencies - Third Party P,0030174718,ROSEACRES CARE HOME LIMITED," 3,107.14 ",22/12/2017
Delivery Units,Adults and Communities,Other Agencies - Third Party P,0030174719,ROSEACRES CARE HOME LIMITED, 214.29 ,22/12/2017
Delivery Units,Adults and Communities,Other Agencies - Third Party P,0080014330,CATHERINE LODGE," 2,211.80 ",19/12/2017
Delivery Units,Adults and Communities,Other Agencies - Third Party P,0090040008,ROSEACRES CARE HOME LIMITED," 2,283.57 ",01/12/2017
Delivery Units,Adults and Communities,Other Agencies - Third Party P,0090040009,QUANTUM CARE LIMITED," 4,502.59 ",01/12/2017
Delivery Units,Adults and Communities,Other Agencies - Third Party P,0090040010,QUANTUM CARE LIMITED," 2,448.78 ",01/12/2017
Delivery Units,Adults and Communities,Other Agencies - Third Party P,0090040019,ROSEACRES CARE HOME LIMITED," 2,369.79 ",01/12/2017
Delivery Units,Adults and Communities,Other Agencies - Third Party P,0090040020,ROSEACRES CARE HOME LIMITED," 3,214.29 ",01/12/2017
Delivery Units,Adults and Communities,Other Agencies - Third Party P,0090040023,ROSEACRES CARE HOME LIMITED,"2,460.30",01/12/2017
Delivery Units,Adults and Communities,Other Agencies - Third Party P,0090040024,ROSEACRES CARE HOME LIMITED," 2,460.30 ",01/12/2017
Delivery Units,Adults and Communities,Other Agencies - Third Party P,0090040027,ROSEACRES CARE HOME LIMITED," 2,260.03 ",01/12/2017
Delivery Units,Adults and Communities,Other Agencies - Third Party P,0090040028,ROSEACRES CARE HOME LIMITED," 2,460.30 ",01/12/2017
Delivery Units,Adults and Communities,Other Agencies - Third Party P,0090040029,ROSEACRES CARE HOME LIMITED,"2,460.30",01/12/2017
Delivery Units,Adults and Communities,Other Agencies - Third Party P,0090040030,ROSEACRES CARE HOME LIMITED," 2,460.30 ",01/12/2017
Delivery Units,Adults and Communities,Other Agencies - Third Party P,0090040032,ROSEACRES CARE HOME LIMITED," 2,988.53 ",01/12/2017
Delivery Units,Adults and Communities,Other Agencies - Third Party P,0090040034,ROSEACRES CARE HOME LIMITED," 2,460.30 ",01/12/2017
Delivery Units,Adults and Communities,Other Agencies - Third Party P,0090040035,ROSEACRES CARE HOME LIMITED,"2,460.17",01/12/2017
Delivery Units,Adults and Communities,Other Agencies - Third Party P,0090040036,ROSEACRES CARE HOME LIMITED,"2,542.31",01/12/2017
Delivery Units,Adults and Communities,Other Agencies - Third Party P,0090040042,APPLE TREE COURT CARE HOME," 2,031.76 ",01/12/2017
Delivery Units,Adults and Communities,Other Agencies - Third Party P,0090040043,APPLE TREE COURT CARE HOME, 72.56 ,01/12/2017
Delivery Units,Adults and Communities,Other Agencies - Third Party P,0090040249,HILTON LODGE LTD.," 1,542.85 ",04/12/2017
Delivery Units,Adults and Communities,Other Agencies - Third Party P,0090040250,HILTON LODGE LTD.," 2,880.00 ",04/12/2017
Delivery Units,Adults and Communities,Other Agencies - Third Party P,0090040251,HILTON LODGE LTD.," 2,880.00 ",04/12/2017
Delivery Units,Adults and Communities,Other Agencies - Third Party P,0090040252,HILTON LODGE LTD.,"2,880.00",04/12/2017
Delivery Units,Adults and Communities,Other Agencies - Third Party P,0090040253,HILTON LODGE LTD.," 2,880.00 ",04/12/2017
Delivery Units,Adults and Communities,Other Agencies - Third Party P,0090040327,TORRINGTON HOMES," 2,448.78 ",04/12/2017
Delivery Units,Adults and Communities,Other Agencies - Third Party P,0090040328,TORRINGTON HOMES," 2,369.78 ",04/12/2017
Delivery Units,Adults and Communities,Other Agencies - Third Party P,0090040346,JEWISH CARE," 4,495.29 ",04/12/2017
Delivery Units,Adults and Communities,Other Agencies - Third Party P,0090040363,SWANBOROUGH HOUSE," 7,444.88 ",04/12/2017
Delivery Units,Adults and Communities,Other Agencies - Third Party P,0090040918,THE LIMES RESIDENTIAL HOME," 2,369.79 ",06/12/2017
Delivery Units,Adults and Communities,Other Agencies - Third Party P,0090040919,THE LIMES RESIDENTIAL HOME," 2,448.78 ",06/12/2017
Delivery Units,Adults and Communities,Other Agencies - Third Party P,0090040920,THE LIMES RESIDENTIAL HOME," 2,369.79 ",06/12/2017
Delivery Units,Adults and Communities,Other Agencies - Third Party P,0090040921,THE LIMES RESIDENTIAL HOME,"2,448.78",06/12/2017
Delivery Units,Adults and Communities,Other Agencies - Third Party P,0090040923,THE LIMES RESIDENTIAL HOME,"1,105.90",06/12/2017
Delivery Units,Adults and Communities,Other Agencies - Third Party P,0090040924,THE LIMES RESIDENTIAL HOME," 2,369.79 ",06/12/2017
Delivery Units,Adults and Communities,Other Agencies - Third Party P,0090040925,THE LIMES RESIDENTIAL HOME," 2,369.79 ",06/12/2017
Delivery Units,Adults and Communities,Other Agencies - Third Party P,0090040926,THE LIMES RESIDENTIAL HOME," 2,369.79 ",06/12/2017
Delivery Units,Adults and Communities,Other Agencies - Third Party P,0090041072,ALEXANDRA HOUSE (RUNWOOD HOMES)," 2,189.70 ",06/12/2017
Delivery Units,Adults and Communities,Other Agencies - Third Party P,0090041077,BUPA CARE HOMES," 2,239.59 ",08/12/2017
Delivery Units,Adults and Communities,Other Agencies - Third Party P,0090041078,BUPA CARE HOMES," 2,369.79 ",08/12/2017
Delivery Units,Adults and Communities,Other Agencies - Third Party P,0090041079,BUPA CARE HOMES,"2,239.59",08/12/2017
Delivery Units,Adults and Communities,Other Agencies - Third Party P,0090041084,BUPA CARE HOMES," 2,910.39 ",14/12/2017
Delivery Units,Adults and Communities,Other Agencies - Third Party P,0090041767,NAZARETH HOUSE," 2,031.76 ",06/12/2017
Delivery Units,Adults and Communities,Other Agencies - Third Party P,0090041768,NAZARETH HOUSE," 2,211.80 ",06/12/2017
Delivery Units,Adults and Communities,Other Agencies - Third Party P,0090041769,NAZARETH HOUSE,"1,741.51",06/12/2017
Delivery Units,Adults and Communities,Other Agencies - Third Party P,0090041770,NAZARETH HOUSE, 217.68 ,06/12/2017
Delivery Units,Adults and Communities,Other Agencies - Third Party P,0090041771,NAZARETH HOUSE," 1,814.08 ",06/12/2017
Delivery Units,Adults and Communities,Other Agencies - Third Party P,0090041778,SAGE NURSING HOME," 2,176.89 ",07/12/2017
Delivery Units,Adults and Communities,Other Agencies - Third Party P,0090041781,SAGE NURSING HOME," 2,571.43 ",07/12/2017
Delivery Units,Adults and Communities,Other Agencies - Third Party P,0090041784,HILTON LODGE LTD.," 1,392.86 ",06/12/2017
Delivery Units,Adults and Communities,Other Agencies - Third Party P,0090041786,CATHERINE LODGE," 3,140.00 ",06/12/2017
Delivery Units,Adults and Communities,Other Agencies - Third Party P,0090041949,JEWISH CARE," 4,830.56 ",08/12/2017
Delivery Units,Adults and Communities,Other Agencies - Third Party P,0090041950,JEWISH CARE," 4,437.36 ",08/12/2017
Delivery Units,Adults and Communities,Other Agencies - Third Party P,0090041951,JEWISH CARE," 4,437.36 ",08/12/2017
Delivery Units,Adults and Communities,Other Agencies - Third Party P,0090041952,JEWISH CARE," 4,437.36 ",08/12/2017
Delivery Units,Adults and Communities,Other Agencies - Third Party P,0090041954,JEWISH CARE," 4,830.56 ",08/12/2017
Delivery Units,Adults and Communities,Other Agencies - Third Party P,0090041955,JEWISH CARE," 4,830.56 ",08/12/2017
Delivery Units,Adults and Communities,Other Agencies - Third Party P,0090041956,JEWISH CARE,"4,437.36",08/12/2017
Delivery Units,Adults and Communities,Other Agencies - Third Party P,0090041958,JEWISH CARE," 1,347.06 ",08/12/2017
Delivery Units,Adults and Communities,Other Agencies - Third Party P,0090041959,JEWISH CARE," 4,437.36 ",08/12/2017
Delivery Units,Adults and Communities,Other Agencies - Third Party P,0090041960,JEWISH CARE," 1,743.25 ",08/12/2017
Delivery Units,Adults and Communities,Other Agencies - Third Party P,0090041961,JEWISH CARE," 4,437.36 ",08/12/2017
Delivery Units,Adults and Communities,Other Agencies - Third Party P,0090041962,JEWISH CARE,"4,437.36",08/12/2017
Delivery Units,Adults and Communities,Other Agencies - Third Party P,0090041963,JEWISH CARE," 4,830.56 ",08/12/2017
Delivery Units,Adults and Communities,Other Agencies - Third Party P,0090041964,JEWISH CARE," 4,830.56 ",08/12/2017
Delivery Units,Adults and Communities,Other Agencies - Third Party P,0090041966,JEWISH CARE,"4,437.36",08/12/2017
Delivery Units,Adults and Communities,Other Agencies - Third Party P,0090041968,JEWISH CARE," 4,437.36 ",08/12/2017
Delivery Units,Adults and Communities,Other Agencies - Third Party P,0090041969,JEWISH CARE," 4,437.36 ",08/12/2017
Delivery Units,Adults and Communities,Other Agencies - Third Party P,0090041970,JEWISH CARE," 4,437.36 ",08/12/2017
Delivery Units,Adults and Communities,Other Agencies - Third Party P,0090041971,JEWISH CARE," 4,830.56 ",08/12/2017
Delivery Units,Adults and Communities,Other Agencies - Third Party P,0090041972,JEWISH CARE,"4,830.56",08/12/2017
Delivery Units,Adults and Communities,Other Agencies - Third Party P,0090041973,JEWISH CARE," 4,437.36 ",08/12/2017
Delivery Units,Adults and Communities,Other Agencies - Third Party P,0090041974,JEWISH CARE, 677.57 ,08/12/2017
Delivery Units,Adults and Communities,Other Agencies - Third Party P,0090041975,JEWISH CARE," 4,830.56 ",08/12/2017
Delivery Units,Adults and Communities,Other Agencies - Third Party P,0090041976,JEWISH CARE," 4,830.56 ",08/12/2017
Delivery Units,Adults and Communities,Other Agencies - Third Party P,0090041977,JEWISH CARE," 4,830.56 ",08/12/2017
Delivery Units,Adults and Communities,Other Agencies - Third Party P,0090041978,JEWISH CARE," 4,437.36 ",08/12/2017
Delivery Units,Adults and Communities,Other Agencies - Third Party P,0090041979,JEWISH CARE," 9,016.00 ",08/12/2017
Delivery Units,Adults and Communities,Other Agencies - Third Party P,0090041980,JEWISH CARE," 4,437.36 ",08/12/2017
Delivery Units,Adults and Communities,Other Agencies - Third Party P,0090041981,JEWISH CARE," 4,437.36 ",08/12/2017
Delivery Units,Adults and Communities,Other Agencies - Third Party P,0090041987,ELEANOR PALMER TRUST NO 2 A/C.," 2,339.44 ",08/12/2017
Delivery Units,Adults and Communities,Other Agencies - Third Party P,0090041988,ELEANOR PALMER TRUST NO 2 A/C.,"2,546.74",08/12/2017
Delivery Units,Adults and Communities,Other Agencies - Third Party P,0090041990,ELEANOR PALMER TRUST NO 2 A/C.," 2,546.74 ",08/12/2017
Delivery Units,Adults and Communities,Other Agencies - Third Party P,0090041991,ELEANOR PALMER TRUST NO 2 A/C.," 2,339.44 ",08/12/2017
Delivery Units,Adults and Communities,Other Agencies - Third Party P,0090041992,ELEANOR PALMER TRUST NO 2 A/C.," 2,339.44 ",08/12/2017
Delivery Units,Adults and Communities,Other Agencies - Third Party P,0090041993,ELEANOR PALMER TRUST NO 2 A/C.," 2,546.74 ",08/12/2017
Delivery Units,Adults and Communities,Other Agencies - Third Party P,0090041994,ELEANOR PALMER TRUST NO 2 A/C.,"2,546.74",08/12/2017
Delivery Units,Adults and Communities,Other Agencies - Third Party P,0090041995,ELEANOR PALMER TRUST NO 2 A/C.," 2,339.44 ",08/12/2017
Delivery Units,Adults and Communities,Other Agencies - Third Party P,0090041996,ELEANOR PALMER TRUST NO 2 A/C.,"2,339.44",08/12/2017
Delivery Units,Adults and Communities,Other Agencies - Third Party P,0090041997,ELEANOR PALMER TRUST NO 2 A/C.," 2,546.74 ",08/12/2017
Delivery Units,Adults and Communities,Other Agencies - Third Party P,0090041998,ELEANOR PALMER TRUST NO 2 A/C.," 2,339.44 ",08/12/2017
Delivery Units,Adults and Communities,Other Agencies - Third Party P,0090042600,JEWISH CARE," 4,830.56 ",08/12/2017
Delivery Units,Adults and Communities,Other Agencies - Third Party P,0090042601,JEWISH CARE," 4,830.56 ",08/12/2017
Delivery Units,Adults and Communities,Other Agencies - Third Party P,0090042602,JEWISH CARE," 4,571.78 ",08/12/2017
Delivery Units,Adults and Communities,Other Agencies - Third Party P,0090042603,JEWISH CARE,"4,437.36",08/12/2017
Delivery Units,Adults and Communities,Other Agencies - Third Party P,0090042605,JEWISH CARE," 4,830.56 ",08/12/2017
Delivery Units,Adults and Communities,Other Agencies - Third Party P,0090042607,JEWISH CARE," 4,204.00 ",08/12/2017
Delivery Units,Adults and Communities,Other Agencies - Third Party P,0090042611,JEWISH CARE,"4,830.56",08/12/2017
Delivery Units,Adults and Communities,Other Agencies - Third Party P,0090042612,JEWISH CARE," 4,830.56 ",08/12/2017
Delivery Units,Adults and Communities,Other Agencies - Third Party P,0090042616,JEWISH CARE," 4,830.56 ",08/12/2017
Delivery Units,Adults and Communities,Other Agencies - Third Party P,0090042618,JEWISH CARE," 4,830.56 ",08/12/2017
Delivery Units,Adults and Communities,Other Agencies - Third Party P,0090042619,JEWISH CARE," 4,830.56 ",08/12/2017
Delivery Units,Adults and Communities,Other Agencies - Third Party P,0090042621,JEWISH CARE," 4,830.56 ",08/12/2017
Delivery Units,Adults and Communities,Other Agencies - Third Party P,0090042622,JEWISH CARE," 4,830.56 ",08/12/2017
Delivery Units,Adults and Communities,Other Agencies - Third Party P,0090042624,JEWISH CARE," 4,054.22 ",08/12/2017
Delivery Units,Adults and Communities,Other Agencies - Third Party P,0090042625,JEWISH CARE," 4,830.56 ",08/12/2017
Delivery Units,Adults and Communities,Other Agencies - Third Party P,0090042629,JEWISH CARE,"5,137.68",08/12/2017
Delivery Units,Adults and Communities,Other Agencies - Third Party P,0090042655,R.M.B.I," 2,176.89 ",08/12/2017
Delivery Units,Adults and Communities,Other Agencies - Third Party P,0090042671,CLOVELLY HOUSE RESID. HOME LTD," 1,489.29 ",08/12/2017
Delivery Units,Adults and Communities,Other Agencies - Third Party P,0090042672,CLOVELLY HOUSE RESID. HOME LTD," 2,780.00 ",08/12/2017
Delivery Units,Adults and Communities,Other Agencies - Third Party P,0090042680,JEWISH CARE," 4,830.56 ",08/12/2017
Delivery Units,Adults and Communities,Other Agencies - Third Party P,0090042681,JEWISH CARE,"4,830.56",08/12/2017
Delivery Units,Adults and Communities,Other Agencies - Third Party P,0090042682,JEWISH CARE," 4,830.56 ",08/12/2017
Delivery Units,Adults and Communities,Other Agencies - Third Party P,0090042683,JEWISH CARE,"4,830.56",08/12/2017
Delivery Units,Adults and Communities,Other Agencies - Third Party P,0090042684,JEWISH CARE,"4,830.56",08/12/2017
Delivery Units,Adults and Communities,Other Agencies - Third Party P,0090042686,JEWISH CARE," 4,830.56 ",08/12/2017
Delivery Units,Adults and Communities,Other Agencies - Third Party P,0090042688,JEWISH CARE," 4,830.56 ",08/12/2017
Delivery Units,Adults and Communities,Other Agencies - Third Party P,0090042689,JEWISH CARE," 4,830.56 ",08/12/2017
Delivery Units,Adults and Communities,Other Agencies - Third Party P,0090042690,JEWISH CARE," 4,437.36 ",08/12/2017
Delivery Units,Adults and Communities,Other Agencies - Third Party P,0090042691,JEWISH CARE," 4,830.56 ",08/12/2017
Delivery Units,Adults and Communities,Other Agencies - Third Party P,0090042692,JEWISH CARE," 4,830.56 ",08/12/2017
Delivery Units,Adults and Communities,Other Agencies - Third Party P,0090042693,JEWISH CARE," 4,830.56 ",08/12/2017
Delivery Units,Adults and Communities,Other Agencies - Third Party P,0090042695,JEWISH CARE," 4,830.56 ",08/12/2017
Delivery Units,Adults and Communities,Other Agencies - Third Party P,0090042697,JEWISH CARE," 4,830.56 ",08/12/2017
Delivery Units,Adults and Communities,Other Agencies - Third Party P,0090042698,JEWISH CARE," 4,830.56 ",08/12/2017
Delivery Units,Adults and Communities,Other Agencies - Third Party P,0090042699,JEWISH CARE," 4,437.36 ",08/12/2017
Delivery Units,Adults and Communities,Other Agencies - Third Party P,0090042700,JEWISH CARE," 4,830.56 ",08/12/2017
Delivery Units,Adults and Communities,Other Agencies - Third Party P,0090042701,JEWISH CARE,"4,830.56",08/12/2017
Delivery Units,Adults and Communities,Other Agencies - Third Party P,0090042702,JEWISH CARE," 4,437.36 ",08/12/2017
Delivery Units,Adults and Communities,Other Agencies - Third Party P,0090042703,JEWISH CARE," 4,830.56 ",08/12/2017
Delivery Units,Adults and Communities,Other Agencies - Third Party P,0090042705,JEWISH CARE," 4,437.36 ",08/12/2017
Delivery Units,Adults and Communities,Other Agencies - Third Party P,0090042706,JEWISH CARE," 4,830.56 ",08/12/2017
Delivery Units,Adults and Communities,Other Agencies - Third Party P,0090042707,JEWISH CARE," 4,437.36 ",08/12/2017
Delivery Units,Adults and Communities,Other Agencies - Third Party P,0090042709,JEWISH CARE," 4,830.56 ",08/12/2017
Delivery Units,Adults and Communities,Other Agencies - Third Party P,0090042710,JEWISH CARE," 4,830.56 ",08/12/2017
Delivery Units,Adults and Communities,Other Agencies - Third Party P,0090043676,NAZARETH HOUSE," 2,031.76 ",12/12/2017
Delivery Units,Adults and Communities,Other Agencies - Third Party P,0090043677,NAZARETH HOUSE," 3,036.00 ",12/12/2017
Delivery Units,Adults and Communities,Other Agencies - Third Party P,0090043678,NAZARETH HOUSE," 2,031.76 ",12/12/2017
Delivery Units,Adults and Communities,Other Agencies - Third Party P,0090043679,NAZARETH HOUSE,"2,031.76",12/12/2017
Delivery Units,Adults and Communities,Other Agencies - Third Party P,0090043680,NAZARETH HOUSE," 2,031.76 ",12/12/2017
Delivery Units,Adults and Communities,Other Agencies - Third Party P,0090043681,NAZARETH HOUSE,"2,031.76",12/12/2017
Delivery Units,Adults and Communities,Other Agencies - Third Party P,0090043683,NAZARETH HOUSE," 2,650.40 ",12/12/2017
Delivery Units,Adults and Communities,Other Agencies - Third Party P,0090043684,NAZARETH HOUSE," 2,211.80 ",12/12/2017
Delivery Units,Adults and Communities,Other Agencies - Third Party P,0090043685,NAZARETH HOUSE," 2,031.76 ",12/12/2017
Delivery Units,Adults and Communities,Other Agencies - Third Party P,0090043686,NAZARETH HOUSE,"2,031.76",12/12/2017
Delivery Units,Adults and Communities,Other Agencies - Third Party P,0090043687,NAZARETH HOUSE,"2,031.76",12/12/2017
Delivery Units,Adults and Communities,Other Agencies - Third Party P,0090043688,NAZARETH HOUSE,"2,211.80",12/12/2017
Delivery Units,Adults and Communities,Other Agencies - Third Party P,0090043689,NAZARETH HOUSE,"2,031.76",12/12/2017
Delivery Units,Adults and Communities,Other Agencies - Third Party P,0090043690,NAZARETH HOUSE,"2,031.76",12/12/2017
Delivery Units,Adults and Communities,Other Agencies - Third Party P,0090043691,NAZARETH HOUSE," 2,031.76 ",12/12/2017
Delivery Units,Adults and Communities,Other Agencies - Third Party P,0090043692,NAZARETH HOUSE,"2,031.76",12/12/2017
Delivery Units,Adults and Communities,Other Agencies - Third Party P,0090043699,LIVABILITY," 2,400.00 ",12/12/2017
Delivery Units,Adults and Communities,Other Agencies - Third Party P,0090043703,NAZARETH HOUSE,"2,211.80",12/12/2017
Delivery Units,Adults and Communities,Other Agencies - Third Party P,0090043704,NAZARETH HOUSE,"2,031.76",12/12/2017
Delivery Units,Adults and Communities,Other Agencies - Third Party P,0090043705,NAZARETH HOUSE,"2,080.00",12/12/2017
Delivery Units,Adults and Communities,Other Agencies - Third Party P,0090043706,NAZARETH HOUSE," 2,031.76 ",12/12/2017
Delivery Units,Adults and Communities,Other Agencies - Third Party P,0090043708,CATHERINE LODGE," 3,140.00 ",12/12/2017
Delivery Units,Adults and Communities,Other Agencies - Third Party P,0090043716,BUPA NURSING HOMES LTD - ARKLEY,"2,089.68",13/12/2017
Delivery Units,Adults and Communities,Other Agencies - Third Party P,0090043721,CLOVELLY HOUSE RESID. HOME LTD," 2,780.00 ",12/12/2017
Delivery Units,Adults and Communities,Other Agencies - Third Party P,0090043723,CATHERINE LODGE,"3,040.00",14/12/2017
Delivery Units,Adults and Communities,Other Agencies - Third Party P,0090043724,CATHERINE LODGE," 2,920.00 ",14/12/2017
Delivery Units,Adults and Communities,Other Agencies - Third Party P,0090043727,CATHERINE LODGE,"2,211.80",14/12/2017
Delivery Units,Adults and Communities,Other Agencies - Third Party P,0090043728,CATHERINE LODGE," 2,211.80 ",14/12/2017
Delivery Units,Adults and Communities,Other Agencies - Third Party P,0090043729,CATHERINE LODGE,"3,040.00",14/12/2017
Delivery Units,Adults and Communities,Other Agencies - Third Party P,0090043795,AARANDALE LODGE," 2,600.00 ",12/12/2017
Delivery Units,Adults and Communities,Other Agencies - Third Party P,0090043796,ANGEL HEALTHCARE LTD - GLENMUIR HOUSE,"2,211.72",12/12/2017
Delivery Units,Adults and Communities,Other Agencies - Third Party P,0090043800,CLOVELLY HOUSE RESID. HOME LTD," 2,600.00 ",12/12/2017
Delivery Units,Adults and Communities,Other Agencies - Third Party P,0090043801,CLOVELLY HOUSE RESID. HOME LTD," 2,780.00 ",12/12/2017
Delivery Units,Adults and Communities,Other Agencies - Third Party P,0090043802,CLOVELLY HOUSE RESID. HOME LTD," 2,780.00 ",12/12/2017
Delivery Units,Adults and Communities,Other Agencies - Third Party P,0090043805,CLOVELLY HOUSE RESID. HOME LTD," 2,600.00 ",12/12/2017
Delivery Units,Adults and Communities,Other Agencies - Third Party P,0090043806,CLOVELLY HOUSE RESID. HOME LTD," 2,211.80 ",12/12/2017
Delivery Units,Adults and Communities,Other Agencies - Third Party P,0090043807,CLOVELLY HOUSE RESID. HOME LTD,"2,600.00",12/12/2017
Delivery Units,Adults and Communities,Other Agencies - Third Party P,0090043808,CLOVELLY HOUSE RESID. HOME LTD," 2,211.80 ",12/12/2017
Delivery Units,Adults and Communities,Other Agencies - Third Party P,0090043812,Z & M CARE LTD," 2,322.40 ",12/12/2017
Delivery Units,Adults and Communities,Other Agencies - Third Party P,0090043813,ANASTASIA LODGE," 2,800.00 ",12/12/2017
Delivery Units,Adults and Communities,Other Agencies - Third Party P,0090043814,AUTUMN GARDENS," 2,880.00 ",12/12/2017
Delivery Units,Adults and Communities,Other Agencies - Third Party P,0090043817,AUTUMN GARDENS," 3,160.00 ",12/12/2017
Delivery Units,Adults and Communities,Other Agencies - Third Party P,0090043819,EASTSIDE HOUSE RESIDENTIAL CARE HOM," 3,080.00 ",12/12/2017
Delivery Units,Adults and Communities,Other Agencies - Third Party P,0090043821,THE CHRISTIAN CARE TRUST,"2,031.76",12/12/2017
Delivery Units,Adults and Communities,Other Agencies - Third Party P,0090043822,SWANBOROUGH HOUSE," 3,722.44 ",12/12/2017
Delivery Units,Adults and Communities,Other Agencies - Third Party P,0090043824,THE GRANGE,"2,496.00",12/12/2017
Delivery Units,Adults and Communities,Other Agencies - Third Party P,0090043826,THE GRANGE," 2,300.28 ",12/12/2017
Delivery Units,Adults and Communities,Other Agencies - Third Party P,0090043828,METHODIST HOMES FOR THE AGED,"2,631.76",12/12/2017
Delivery Units,Adults and Communities,Other Agencies - Third Party P,0090043829,METHODIST HOMES FOR THE AGED," 2,001.92 ",12/12/2017
Delivery Units,Adults and Communities,Other Agencies - Third Party P,0090043833,VILLA SCALABRINI," 2,502.14 ",27/12/2017
Delivery Units,Adults and Communities,Other Agencies - Third Party P,0090043844,FINBOND LIMITED," 2,144.91 ",12/12/2017
Delivery Units,Adults and Communities,Other Agencies - Third Party P,0090043846,FINBOND LIMITED," 2,352.86 ",12/12/2017
Delivery Units,Adults and Communities,Other Agencies - Third Party P,0090043997,R.M.B.I,"2,249.45",12/12/2017
Delivery Units,Adults and Communities,Other Agencies - Third Party P,0090043998,AARON COURT CARE HOME," 2,216.41 ",12/12/2017
Delivery Units,Adults and Communities,Other Agencies - Third Party P,0090044008,HALLMARK CARE (KINGS LYNN) LTD," 2,890.31 ",15/12/2017
Delivery Units,Adults and Communities,Other Agencies - Third Party P,0090044028,PARCS HEALTHCARE LTD - VRANDAN CARE HOME," 1,708.57 ",12/12/2017
Delivery Units,Adults and Communities,Other Agencies - Third Party P,0090044029,SCIMITAR CARE HOTELS PLC,"3,985.71",27/12/2017
Delivery Units,Adults and Communities,Other Agencies - Third Party P,0090044030,SCIMITAR CARE HOTELS PLC,"3,421.07",27/12/2017
Delivery Units,Adults and Communities,Other Agencies - Third Party P,0090044039,CATHERINE LODGE," 3,040.00 ",12/12/2017
Delivery Units,Adults and Communities,Other Agencies - Third Party P,0090044041,Z & M CARE LTD," 2,322.40 ",12/12/2017
Delivery Units,Adults and Communities,Other Agencies - Third Party P,0090044044,THE LIMES RESIDENTIAL HOME,"1,658.85",12/12/2017
Delivery Units,Adults and Communities,Other Agencies - Third Party P,0090044045,THE LIMES RESIDENTIAL HOME,"2,369.79",12/12/2017
Delivery Units,Adults and Communities,Other Agencies - Third Party P,0090044046,THE LIMES RESIDENTIAL HOME," 2,448.78 ",12/12/2017
Delivery Units,Adults and Communities,Other Agencies - Third Party P,0090044047,SPRINGDENE," 3,214.29 ",12/12/2017
Delivery Units,Adults and Communities,Other Agencies - Third Party P,0090044049,SPRINGVIEW," 3,000.00 ",12/12/2017
Delivery Units,Adults and Communities,Other Agencies - Third Party P,0090044312,B & M CARE,"2,522.25",12/12/2017
Delivery Units,Adults and Communities,Other Agencies - Third Party P,0090044313,B & M CARE,"2,316.94",12/12/2017
Delivery Units,Adults and Communities,Other Agencies - Third Party P,0090044314,B & M CARE,"2,249.45",12/12/2017
Delivery Units,Adults and Communities,Other Agencies - Third Party P,0090044328,HILTON LODGE LTD.," 2,480.00 ",12/12/2017
Delivery Units,Adults and Communities,Other Agencies - Third Party P,0090044329,HILTON LODGE LTD.," 2,880.00 ",12/12/2017
Delivery Units,Adults and Communities,Other Agencies - Third Party P,0090044330,HILTON LODGE LTD.," 2,880.00 ",12/12/2017
Delivery Units,Adults and Communities,Other Agencies - Third Party P,0090044337,SUNRIDGE HOUSING ASSOCIATION LTD,"2,902.40",13/12/2017
Delivery Units,Adults and Communities,Other Agencies - Third Party P,0090044351,TORRINGTON HOMES,473.96,15/12/2017
Delivery Units,Adults and Communities,Other Agencies - Third Party P,0090044352,TORRINGTON HOMES," 2,448.78 ",15/12/2017
Delivery Units,Adults and Communities,Other Agencies - Third Party P,0090044353,TORRINGTON HOMES,"2,249.45",15/12/2017
Delivery Units,Adults and Communities,Other Agencies - Third Party P,0090044354,TORRINGTON HOMES," 2,448.78 ",15/12/2017
Delivery Units,Adults and Communities,Other Agencies - Third Party P,0090044355,TORRINGTON HOMES,"2,448.78",15/12/2017
Delivery Units,Adults and Communities,Other Agencies - Third Party P,0090044356,TORRINGTON HOMES,"2,448.78",15/12/2017
Delivery Units,Adults and Communities,Other Agencies - Third Party P,0090044357,TORRINGTON HOMES,"2,448.78",15/12/2017
Delivery Units,Adults and Communities,Other Agencies - Third Party P,0090044618,ROLAND RESIDENTIAL CARE HOMES LTD,"3,678.02",12/12/2017
Delivery Units,Adults and Communities,Other Agencies - Third Party P,0090044622,SONNET CARE HOMES (ESSEX) LTD," 4,871.43 ",27/12/2017
Delivery Units,Adults and Communities,Other Agencies - Third Party P,0090044623,BIRCHWOOD GRANGE CARE HOME," 2,657.14 ",12/12/2017
Delivery Units,Adults and Communities,Other Agencies - Third Party P,0090044628,DELAMER HOUSE,"2,435.71",12/12/2017
Delivery Units,Adults and Communities,Other Agencies - Third Party P,0090044638,THE CHRISTIAN CARE TRUST,"2,211.80",12/12/2017
Delivery Units,Adults and Communities,Other Agencies - Third Party P,0090044641,ANGEL HEALTHCARE LTD - GLENMUIR HOUSE," 2,211.72 ",12/12/2017
Delivery Units,Adults and Communities,Other Agencies - Third Party P,0090044646,NAZARETH HOUSE," 2,216.41 ",12/12/2017
Delivery Units,Adults and Communities,Other Agencies - Third Party P,0090044650,SUNRIDGE HOUSING ASSOCIATION LTD," 2,989.58 ",13/12/2017
Delivery Units,Adults and Communities,Other Agencies - Third Party P,0090044658,THE LIMES RESIDENTIAL HOME," 2,448.78 ",14/12/2017
Delivery Units,Adults and Communities,Other Agencies - Third Party P,0090044659,THE LIMES RESIDENTIAL HOME," 2,249.45 ",14/12/2017
Delivery Units,Adults and Communities,Other Agencies - Third Party P,0090044660,THE LIMES RESIDENTIAL HOME,"2,249.45",14/12/2017
Delivery Units,Adults and Communities,Other Agencies - Third Party P,0090044661,THE LIMES RESIDENTIAL HOME,"2,448.78",14/12/2017
Delivery Units,Adults and Communities,Other Agencies - Third Party P,0090044662,THE LIMES RESIDENTIAL HOME," 2,448.78 ",14/12/2017
Delivery Units,Adults and Communities,Other Agencies - Third Party P,0090044664,THE LIMES RESIDENTIAL HOME," 2,448.78 ",14/12/2017
Delivery Units,Adults and Communities,Other Agencies - Third Party P,0090044665,THE LIMES RESIDENTIAL HOME," 2,448.78 ",14/12/2017
Delivery Units,Adults and Communities,Other Agencies - Third Party P,0090044666,THE LIMES RESIDENTIAL HOME,"2,249.45",14/12/2017
Delivery Units,Adults and Communities,Other Agencies - Third Party P,0090044667,THE LIMES RESIDENTIAL HOME," 2,448.78 ",14/12/2017
Delivery Units,Adults and Communities,Other Agencies - Third Party P,0090044668,THE LIMES RESIDENTIAL HOME," 2,878.57 ",14/12/2017
Delivery Units,Adults and Communities,Other Agencies - Third Party P,0090044670,THE LIMES RESIDENTIAL HOME,"2,448.78",14/12/2017
Delivery Units,Adults and Communities,Other Agencies - Third Party P,0090044673,SEAFORTH LODGE," 2,448.78 ",12/12/2017
Delivery Units,Adults and Communities,Other Agencies - Third Party P,0090044674,SEAFORTH LODGE," 2,448.78 ",12/12/2017
Delivery Units,Adults and Communities,Other Agencies - Third Party P,0090044675,SEAFORTH LODGE,"2,448.78",12/12/2017
Delivery Units,Adults and Communities,Other Agencies - Third Party P,0090044677,SEAFORTH LODGE,"2,448.78",12/12/2017
Delivery Units,Adults and Communities,Other Agencies - Third Party P,0090044678,SEAFORTH LODGE," 2,448.78 ",12/12/2017
Delivery Units,Adults and Communities,Other Agencies - Third Party P,0090044679,SEAFORTH LODGE," 2,657.14 ",12/12/2017
Delivery Units,Adults and Communities,Other Agencies - Third Party P,0090044849,THE WOODSIDE HOME," 2,278.16 ",13/12/2017
Delivery Units,Adults and Communities,Other Agencies - Third Party P,0090044850,THE WOODSIDE HOME," 2,092.72 ",13/12/2017
Delivery Units,Adults and Communities,Other Agencies - Third Party P,0090044851,THE WOODSIDE HOME, 298.96 ,13/12/2017
Delivery Units,Adults and Communities,Other Agencies - Third Party P,0090044852,THE WOODSIDE HOME,"2,092.72",13/12/2017
Delivery Units,Adults and Communities,Other Agencies - Third Party P,0090044853,THE WOODSIDE HOME,"2,092.72",13/12/2017
Delivery Units,Adults and Communities,Other Agencies - Third Party P,0090044854,THE WOODSIDE HOME,"2,278.16",13/12/2017
Delivery Units,Adults and Communities,Other Agencies - Third Party P,0090044855,THE WOODSIDE HOME," 2,092.72 ",13/12/2017
Delivery Units,Adults and Communities,Other Agencies - Third Party P,0090044856,THE WOODSIDE HOME," 2,278.16 ",13/12/2017
Delivery Units,Adults and Communities,Other Agencies - Third Party P,0090044954,THE RED HOUSE," 2,094.52 ",13/12/2017
Delivery Units,Adults and Communities,Other Agencies - Third Party P,0090044962,SEVA CARE HOME," 2,216.41 ",14/12/2017
Delivery Units,Adults and Communities,Other Agencies - Third Party P,0090044963,SEVA CARE HOME," 2,216.41 ",14/12/2017
Delivery Units,Adults and Communities,Other Agencies - Third Party P,0090045003,ABBEY RAVENSCROFT PARK NURSING HOME," 2,657.14 ",15/12/2017
Delivery Units,Adults and Communities,Other Agencies - Third Party P,0090045013,SYDMAR LODGE," 2,420.30 ",15/12/2017
Delivery Units,Adults and Communities,Other Agencies - Third Party P,0090045014,SYDMAR LODGE," 2,901.60 ",15/12/2017
Delivery Units,Adults and Communities,Other Agencies - Third Party P,0090045015,SYDMAR LODGE,"2,456.40",15/12/2017
Delivery Units,Adults and Communities,Other Agencies - Third Party P,0090045016,SYDMAR LODGE," 2,456.40 ",15/12/2017
Delivery Units,Adults and Communities,Other Agencies - Third Party P,0090045017,SYDMAR LODGE," 2,674.06 ",15/12/2017
Delivery Units,Adults and Communities,Other Agencies - Third Party P,0090045018,SYDMAR LODGE,"2,456.40",15/12/2017
Delivery Units,Adults and Communities,Other Agencies - Third Party P,0090045019,SYDMAR LODGE," 3,143.40 ",15/12/2017
Delivery Units,Adults and Communities,Other Agencies - Third Party P,0090045027,ASHTON LODGE CARE CENTRE,"2,622.64",15/12/2017
Delivery Units,Adults and Communities,Other Agencies - Third Party P,0090045040,ASHTON LODGE CARE CENTRE," 2,844.07 ",15/12/2017
Delivery Units,Adults and Communities,Other Agencies - Third Party P,0090045074,JEWISH CARE,"1,638.94",15/12/2017
Delivery Units,Adults and Communities,Other Agencies - Third Party P,0090045087,GCH (NORTH LONDON) T/A THE TUDORS," 2,382.14 ",15/12/2017
Delivery Units,Adults and Communities,Other Agencies - Third Party P,0090045088,GCH (NORTH LONDON) T/A THE TUDORS," 2,300.00 ",15/12/2017
Delivery Units,Adults and Communities,Other Agencies - Third Party P,0090045089,GCH (NORTH LONDON) T/A THE TUDORS,"2,300.00",15/12/2017
Delivery Units,Adults and Communities,Other Agencies - Third Party P,0090045090,GCH (NORTH LONDON) T/A THE TUDORS," 2,300.00 ",15/12/2017
Delivery Units,Adults and Communities,Other Agencies - Third Party P,0090045091,GCH (NORTH LONDON) T/A THE TUDORS,"2,300.00",15/12/2017
Delivery Units,Adults and Communities,Other Agencies - Third Party P,0090045092,GCH (NORTH LONDON) T/A THE TUDORS," 2,300.00 ",15/12/2017
Delivery Units,Adults and Communities,Other Agencies - Third Party P,0090045093,QUANTUM CARE LIMITED,"2,369.79",15/12/2017
Delivery Units,Adults and Communities,Other Agencies - Third Party P,0090045098,JEWISH CARE," 1,552.68 ",15/12/2017
Delivery Units,Adults and Communities,Other Agencies - Third Party P,0090045099,JEWISH CARE,475.43,15/12/2017
Delivery Units,Adults and Communities,Other Agencies - Third Party P,0090045104,ASHFIELDS RESIDENTIAL CARE HOME," 2,448.78 ",15/12/2017
Delivery Units,Adults and Communities,Other Agencies - Third Party P,0090045105,ASHFIELDS RESIDENTIAL CARE HOME," 2,448.78 ",15/12/2017
Delivery Units,Adults and Communities,Other Agencies - Third Party P,0090045106,ASHFIELDS RESIDENTIAL CARE HOME," 1,533.57 ",15/12/2017
Delivery Units,Adults and Communities,Other Agencies - Third Party P,0090045107,ASHFIELDS RESIDENTIAL CARE HOME," 2,249.27 ",15/12/2017
Delivery Units,Adults and Communities,Other Agencies - Third Party P,0090045108,ASHFIELDS RESIDENTIAL CARE HOME,"2,448.78",15/12/2017
Delivery Units,Adults and Communities,Other Agencies - Third Party P,0090045110,ASHFIELDS RESIDENTIAL CARE HOME," 2,448.78 ",15/12/2017
Delivery Units,Adults and Communities,Other Agencies - Third Party P,0090045111,ASHFIELDS RESIDENTIAL CARE HOME,"2,448.78",15/12/2017
Delivery Units,Adults and Communities,Other Agencies - Third Party P,0090045174,CARLTON COURT (TLC GROUP)," 2,249.45 ",15/12/2017
Delivery Units,Adults and Communities,Other Agencies - Third Party P,0090045186,NAZARETH HOUSE,"2,031.76",15/12/2017
Delivery Units,Adults and Communities,Other Agencies - Third Party P,0090045187,NAZARETH HOUSE,"3,036.00",15/12/2017
Delivery Units,Adults and Communities,Other Agencies - Third Party P,0090045188,NAZARETH HOUSE,"2,031.76",15/12/2017
Delivery Units,Adults and Communities,Other Agencies - Third Party P,0090045189,NAZARETH HOUSE,"2,031.76",15/12/2017
Delivery Units,Adults and Communities,Other Agencies - Third Party P,0090045190,NAZARETH HOUSE," 2,031.76 ",15/12/2017
Delivery Units,Adults and Communities,Other Agencies - Third Party P,0090045191,NAZARETH HOUSE,"2,211.80",15/12/2017
Delivery Units,Adults and Communities,Other Agencies - Third Party P,0090045192,NAZARETH HOUSE,"2,031.76",15/12/2017
Delivery Units,Adults and Communities,Other Agencies - Third Party P,0090045194,NAZARETH HOUSE,"2,650.40",15/12/2017
Delivery Units,Adults and Communities,Other Agencies - Third Party P,0090045195,NAZARETH HOUSE," 2,211.80 ",15/12/2017
Delivery Units,Adults and Communities,Other Agencies - Third Party P,0090045196,NAZARETH HOUSE,"2,031.76",15/12/2017
Delivery Units,Adults and Communities,Other Agencies - Third Party P,0090045197,NAZARETH HOUSE," 2,031.76 ",15/12/2017
Delivery Units,Adults and Communities,Other Agencies - Third Party P,0090045198,NAZARETH HOUSE,"2,031.76",15/12/2017
Delivery Units,Adults and Communities,Other Agencies - Third Party P,0090045199,NAZARETH HOUSE," 2,211.80 ",15/12/2017
Delivery Units,Adults and Communities,Other Agencies - Third Party P,0090045200,NAZARETH HOUSE," 2,031.76 ",15/12/2017
Delivery Units,Adults and Communities,Other Agencies - Third Party P,0090045201,NAZARETH HOUSE,"2,031.76",15/12/2017
Delivery Units,Adults and Communities,Other Agencies - Third Party P,0090045202,NAZARETH HOUSE," 2,031.76 ",15/12/2017
Delivery Units,Adults and Communities,Other Agencies - Third Party P,0090045203,NAZARETH HOUSE,"2,031.76",15/12/2017
Delivery Units,Adults and Communities,Other Agencies - Third Party P,0090045204,NAZARETH HOUSE," 2,080.00 ",15/12/2017
Delivery Units,Adults and Communities,Other Agencies - Third Party P,0090045205,NAZARETH HOUSE," 2,080.00 ",15/12/2017
Delivery Units,Adults and Communities,Other Agencies - Third Party P,0090045206,NAZARETH HOUSE,"2,080.00",15/12/2017
Delivery Units,Adults and Communities,Other Agencies - Third Party P,0090045225,FINBOND LIMITED,"2,216.41",18/12/2017
Delivery Units,Adults and Communities,Other Agencies - Third Party P,0090045226,FINBOND LIMITED," 3,321.43 ",18/12/2017
Delivery Units,Adults and Communities,Other Agencies - Third Party P,0090045953,B & M CARE,"1,392.86",20/12/2017
Delivery Units,Adults and Communities,Other Agencies - Third Party P,0090045954,B & M CARE," 3,214.29 ",20/12/2017
Delivery Units,Adults and Communities,Other Agencies - Third Party P,0090045957,ROSEACRES CARE HOME LIMITED,"3,321.43",20/12/2017
Delivery Units,Adults and Communities,Other Agencies - Third Party P,0090045958,ROSEACRES CARE HOME LIMITED,"3,214.29",20/12/2017
Delivery Units,Adults and Communities,Other Agencies - Third Party P,0090045959,ROSEACRES CARE HOME LIMITED,"2,892.86",20/12/2017
Delivery Units,Adults and Communities,Other Agencies - Third Party P,0090045961,ROSEACRES CARE HOME LIMITED," 2,988.53 ",20/12/2017
Delivery Units,Adults and Communities,Other Agencies - Third Party P,0090045962,ROSEACRES CARE HOME LIMITED," 2,892.13 ",20/12/2017
Delivery Units,Adults and Communities,Other Agencies - Third Party P,0090045963,ASHFIELDS RESIDENTIAL CARE HOME,"2,369.79",20/12/2017
Delivery Units,Adults and Communities,Other Agencies - Third Party P,0090045965,ASHFIELDS RESIDENTIAL CARE HOME," 2,369.79 ",20/12/2017
Delivery Units,Adults and Communities,Other Agencies - Third Party P,0090045967,ASHFIELDS RESIDENTIAL CARE HOME," 2,421.43 ",20/12/2017
Delivery Units,Adults and Communities,Other Agencies - Third Party P,0090045968,ASHFIELDS RESIDENTIAL CARE HOME," 2,176.71 ",20/12/2017
Delivery Units,Adults and Communities,Other Agencies - Third Party P,0090045969,ASHFIELDS RESIDENTIAL CARE HOME," 2,369.79 ",20/12/2017
Delivery Units,Adults and Communities,Other Agencies - Third Party P,0090045970,ASHFIELDS RESIDENTIAL CARE HOME," 3,238.71 ",20/12/2017
Delivery Units,Adults and Communities,Other Agencies - Third Party P,0090045971,ASHFIELDS RESIDENTIAL CARE HOME," 2,369.79 ",20/12/2017
Delivery Units,Adults and Communities,Other Agencies - Third Party P,0090045972,ASHFIELDS RESIDENTIAL CARE HOME," 2,421.43 ",20/12/2017
Delivery Units,Adults and Communities,Other Agencies - Third Party P,0090045973,DR FRENCH MEMORIAL HOME LTD," 2,400.00 ",27/12/2017
Delivery Units,Adults and Communities,Other Agencies - Third Party P,0090045974,DR FRENCH MEMORIAL HOME LTD,"2,369.79",27/12/2017
Delivery Units,Adults and Communities,Other Agencies - Third Party P,0090045975,DR FRENCH MEMORIAL HOME LTD," 2,448.78 ",27/12/2017
Delivery Units,Adults and Communities,Other Agencies - Third Party P,0090045976,DR FRENCH MEMORIAL HOME LTD," 3,542.86 ",27/12/2017
Delivery Units,Adults and Communities,Other Agencies - Third Party P,0090046522,ROSEACRES CARE HOME LIMITED," 3,321.43 ",22/12/2017
Delivery Units,Adults and Communities,Other Agencies - Third Party P,0090046523,ROSEACRES CARE HOME LIMITED,"3,214.29",22/12/2017
Delivery Units,Adults and Communities,Other Agencies - Third Party P,0090046524,ROSEACRES CARE HOME LIMITED,"3,321.43",22/12/2017
Delivery Units,Adults and Communities,Other Agencies - Third Party P,0090046545,SAGE NURSING HOME,"2,657.14",27/12/2017
Delivery Units,Adults and Communities,Other Agencies - Third Party P,0090046550,SAGE NURSING HOME," 2,249.45 ",27/12/2017
Delivery Units,Adults and Communities,Direct Transfer Payments to So,0030174344,PUBLISH - REDACT NAME,201.50,18/12/2017
Delivery Units,Adults and Communities,Other Agencies - Third Party P,0080014144,WESTMINSTER HOMECARE LTD, 184.91 ,11/12/2017
Delivery Units,Adults and Communities,Direct Transfer Payments to So,0080014207,PUBLISH - REDACT NAME," 1,025.52 ",11/12/2017
Delivery Units,Adults and Communities,Direct Transfer Payments to So,0090039602,PUBLISH - REDACT NAME,"1,930.80",01/12/2017
Delivery Units,Adults and Communities,Direct Transfer Payments to So,0090039603,PUBLISH - REDACT NAME,"10,476.23",01/12/2017
Delivery Units,Adults and Communities,Direct Transfer Payments to So,0090040728,PUBLISH - REDACT NAME," 1,312.64 ",05/12/2017
Delivery Units,Adults and Communities,Direct Transfer Payments to So,0090040730,PUBLISH - REDACT NAME,80.00,05/12/2017
Delivery Units,Adults and Communities,Direct Transfer Payments to So,0090040739,PUBLISH - REDACT NAME, 775.04 ,05/12/2017
Delivery Units,Adults and Communities,Direct Transfer Payments to So,0090040740,PUBLISH - REDACT NAME, 968.80 ,05/12/2017
Delivery Units,Adults and Communities,Direct Transfer Payments to So,0090040759,PUBLISH - REDACT NAME, 168.28 ,05/12/2017
Delivery Units,Adults and Communities,Direct Transfer Payments to So,0090040760,PUBLISH - REDACT NAME,"1,346.24",05/12/2017
Delivery Units,Adults and Communities,Direct Transfer Payments to So,0090040761,PUBLISH - REDACT NAME,336.56,05/12/2017
Delivery Units,Adults and Communities,Direct Transfer Payments to So,0090040768,PUBLISH - REDACT NAME, 347.20 ,05/12/2017
Delivery Units,Adults and Communities,Direct Transfer Payments to So,0090040775,PUBLISH - REDACT NAME," 1,346.24 ",05/12/2017
Delivery Units,Adults and Communities,Direct Transfer Payments to So,0090040777,PUBLISH - REDACT NAME," 3,173.00 ",05/12/2017
Delivery Units,Adults and Communities,Direct Transfer Payments to So,0090040778,PUBLISH - REDACT NAME,610.60,05/12/2017
Delivery Units,Adults and Communities,Direct Transfer Payments to So,0090040784,PUBLISH - REDACT NAME," 1,802.08 ",05/12/2017
Delivery Units,Adults and Communities,Direct Transfer Payments to So,0090040787,PUBLISH - REDACT NAME, 186.00 ,05/12/2017
Delivery Units,Adults and Communities,Direct Transfer Payments to So,0090040803,PUBLISH - REDACT NAME,571.56,05/12/2017
Delivery Units,Adults and Communities,Direct Transfer Payments to So,0090040804,PUBLISH - REDACT NAME, 700.00 ,05/12/2017
Delivery Units,Adults and Communities,Direct Transfer Payments to So,0090040806,PUBLISH - REDACT NAME," 1,005.12 ",05/12/2017
Delivery Units,Adults and Communities,Direct Transfer Payments to So,0090040814,PUBLISH - REDACT NAME," 1,092.00 ",05/12/2017
Delivery Units,Adults and Communities,Direct Transfer Payments to So,0090040819,PUBLISH - REDACT NAME, 870.00 ,05/12/2017
Delivery Units,Adults and Communities,Direct Transfer Payments to So,0090040823,PUBLISH - REDACT NAME," 1,239.72 ",05/12/2017
Delivery Units,Adults and Communities,Direct Transfer Payments to So,0090040824,PUBLISH - REDACT NAME, 649.08 ,05/12/2017
Delivery Units,Adults and Communities,Direct Transfer Payments to So,0090040827,PUBLISH - REDACT NAME," 1,063.72 ",05/12/2017
Delivery Units,Adults and Communities,Direct Transfer Payments to So,0090040833,PUBLISH - REDACT NAME,980.52,05/12/2017
Delivery Units,Adults and Communities,Direct Transfer Payments to So,0090040834,PUBLISH - REDACT NAME, 218.24 ,05/12/2017
Delivery Units,Adults and Communities,Direct Transfer Payments to So,0090040835,PUBLISH - REDACT NAME, 235.20 ,05/12/2017
Delivery Units,Adults and Communities,Direct Transfer Payments to So,0090040836,PUBLISH - REDACT NAME,231.40,05/12/2017
Delivery Units,Adults and Communities,Direct Transfer Payments to So,0090040846,PUBLISH - REDACT NAME, 440.00 ,05/12/2017
Delivery Units,Adults and Communities,Direct Transfer Payments to So,0090040853,PUBLISH - REDACT NAME," 2,436.00 ",05/12/2017
Delivery Units,Adults and Communities,Direct Transfer Payments to So,0090040861,PUBLISH - REDACT NAME,442.88,05/12/2017
Delivery Units,Adults and Communities,Direct Transfer Payments to So,0090040874,PUBLISH - REDACT NAME, 124.00 ,05/12/2017
Delivery Units,Adults and Communities,Direct Transfer Payments to So,0090040875,PUBLISH - REDACT NAME," 1,550.84 ",05/12/2017
Delivery Units,Adults and Communities,Direct Transfer Payments to So,0090040877,PUBLISH - REDACT NAME,"2,092.96",05/12/2017
Delivery Units,Adults and Communities,Direct Transfer Payments to So,0090040880,PUBLISH - REDACT NAME,"1,351.56",05/12/2017
Delivery Units,Adults and Communities,Direct Transfer Payments to So,0090040887,PUBLISH - REDACT NAME," 1,930.80 ",05/12/2017
Delivery Units,Adults and Communities,Direct Transfer Payments to So,0090040892,PUBLISH - REDACT NAME,"2,298.44",05/12/2017
Delivery Units,Adults and Communities,Direct Transfer Payments to So,0090040895,PUBLISH - REDACT NAME, 352.36 ,05/12/2017
Delivery Units,Adults and Communities,Direct Transfer Payments to So,0090040896,PUBLISH - REDACT NAME, 333.84 ,05/12/2017
Delivery Units,Adults and Communities,Direct Transfer Payments to So,0090041131,PUBLISH - REDACT NAME, 781.32 ,06/12/2017
Delivery Units,Adults and Communities,Direct Transfer Payments to So,0090041133,PUBLISH - REDACT NAME," 3,834.44 ",06/12/2017
Delivery Units,Adults and Communities,Direct Transfer Payments to So,0090041184,PUBLISH - REDACT NAME," 1,710.24 ",06/12/2017
Delivery Units,Adults and Communities,Direct Transfer Payments to So,0090041190,PUBLISH - REDACT NAME, 295.68 ,06/12/2017
Delivery Units,Adults and Communities,Direct Transfer Payments to So,0090041210,PUBLISH - REDACT NAME," 1,248.16 ",06/12/2017
Delivery Units,Adults and Communities,Direct Transfer Payments to So,0090041212,PUBLISH - REDACT NAME, 732.64 ,06/12/2017
Delivery Units,Adults and Communities,Direct Transfer Payments to So,0090041215,PUBLISH - REDACT NAME, 913.52 ,06/12/2017
Delivery Units,Adults and Communities,Direct Transfer Payments to So,0090041226,PUBLISH - REDACT NAME,"1,881.00",06/12/2017
Delivery Units,Adults and Communities,Direct Transfer Payments to So,0090041255,PUBLISH - REDACT NAME," 1,514.52 ",06/12/2017
Delivery Units,Adults and Communities,Direct Transfer Payments to So,0090041259,PUBLISH - REDACT NAME," 1,104.00 ",06/12/2017
Delivery Units,Adults and Communities,Direct Transfer Payments to So,0090041273,PUBLISH - REDACT NAME," 2,931.20 ",06/12/2017
Delivery Units,Adults and Communities,Direct Transfer Payments to So,0090041295,PUBLISH - REDACT NAME,"2,852.68",06/12/2017
Delivery Units,Adults and Communities,Direct Transfer Payments to So,0090041297,PUBLISH - REDACT NAME,432.72,06/12/2017
Delivery Units,Adults and Communities,Direct Transfer Payments to So,0090041298,PUBLISH - REDACT NAME,687.12,06/12/2017
Delivery Units,Adults and Communities,Fees and Charges,0090041310,PUBLISH - REDACT NAME,(58.20),06/12/2017
Delivery Units,Adults and Communities,Direct Transfer Payments to So,0090041313,PUBLISH - REDACT NAME," 1,009.68 ",06/12/2017
Delivery Units,Adults and Communities,Fees and Charges,0090041336,PUBLISH - REDACT NAME,-39.04 ,06/12/2017
Delivery Units,Adults and Communities,Fees and Charges,0090041338,PUBLISH - REDACT NAME,-63.84 ,06/12/2017
Delivery Units,Adults and Communities,Fees and Charges,0090041344,PUBLISH - REDACT NAME,(74.80),06/12/2017
Delivery Units,Adults and Communities,Direct Transfer Payments to So,0090041360,WIRECARD - ADULT SERVICES,480.80,06/12/2017
Delivery Units,Adults and Communities,Direct Transfer Payments to So,0090041366,WIRECARD - ADULT SERVICES,280.00,06/12/2017
Delivery Units,Adults and Communities,Direct Transfer Payments to So,0090041368,WIRECARD - ADULT SERVICES, 462.00 ,06/12/2017
Delivery Units,Adults and Communities,Fees and Charges,0090041371,PUBLISH - REDACT NAME,-494.04 ,06/12/2017
Delivery Units,Adults and Communities,Direct Transfer Payments to So,0090041374,WIRECARD - ADULT SERVICES, 301.20 ,06/12/2017
Delivery Units,Adults and Communities,Direct Transfer Payments to So,0090041384,WIRECARD - ADULT SERVICES," 1,612.56 ",06/12/2017
Delivery Units,Adults and Communities,Fees and Charges,0090041386,PUBLISH - REDACT NAME,(57.96),06/12/2017
Delivery Units,Adults and Communities,Direct Transfer Payments to So,0090041394,WIRECARD - ADULT SERVICES," 10,584.00 ",06/12/2017
Delivery Units,Adults and Communities,Direct Transfer Payments to So,0090041941,PUBLISH - REDACT NAME,"(1,000.47)",08/12/2017
Delivery Units,Adults and Communities,Direct Transfer Payments to So,0090041942,PUBLISH - REDACT NAME,"1,260.95",08/12/2017
Delivery Units,Adults and Communities,Direct Transfer Payments to So,0090041945,PUBLISH - REDACT NAME," 1,351.59 ",08/12/2017
Delivery Units,Adults and Communities,Direct Transfer Payments to So,0090041946,PUBLISH - REDACT NAME, 403.71 ,08/12/2017
Delivery Units,Adults and Communities,Direct Transfer Payments to So,0090041948,PUBLISH - REDACT NAME,491.31,08/12/2017
Delivery Units,Adults and Communities,Direct Transfer Payments to So,0090042099,PUBLISH - REDACT NAME, 589.00 ,08/12/2017
Delivery Units,Adults and Communities,Direct Transfer Payments to So,0090042109,PUBLISH - REDACT NAME,202.20,08/12/2017
Delivery Units,Adults and Communities,Direct Transfer Payments to So,0090042115,PUBLISH - REDACT NAME," 1,774.76 ",08/12/2017
Delivery Units,Adults and Communities,Direct Transfer Payments to So,0090042133,PUBLISH - REDACT NAME,925.40,08/12/2017
Delivery Units,Adults and Communities,Direct Transfer Payments to So,0090042136,PUBLISH - REDACT NAME, 600.00 ,08/12/2017
Delivery Units,Adults and Communities,Direct Transfer Payments to So,0090042140,PUBLISH - REDACT NAME,502.40,08/12/2017
Delivery Units,Adults and Communities,Direct Transfer Payments to So,0090042143,PUBLISH - REDACT NAME, 456.76 ,08/12/2017
Delivery Units,Adults and Communities,Direct Transfer Payments to So,0090042172,PUBLISH - REDACT NAME," 1,185.32 ",08/12/2017
Delivery Units,Adults and Communities,Direct Transfer Payments to So,0090042189,PUBLISH - REDACT NAME, 801.00 ,08/12/2017
Delivery Units,Adults and Communities,Direct Transfer Payments to So,0090042203,PUBLISH - REDACT NAME, 975.36 ,08/12/2017
Delivery Units,Adults and Communities,Direct Transfer Payments to So,0090042212,PUBLISH - REDACT NAME, 636.56 ,08/12/2017
Delivery Units,Adults and Communities,Direct Transfer Payments to So,0090042227,PUBLISH - REDACT NAME, 504.00 ,08/12/2017
Delivery Units,Adults and Communities,Direct Transfer Payments to So,0090042254,PUBLISH - REDACT NAME, 439.92 ,08/12/2017
Delivery Units,Adults and Communities,Direct Transfer Payments to So,0090042261,PUBLISH - REDACT NAME, 420.72 ,08/12/2017
Delivery Units,Adults and Communities,Direct Transfer Payments to So,0090042266,PUBLISH - REDACT NAME,"2,031.88",08/12/2017
Delivery Units,Adults and Communities,Direct Transfer Payments to So,0090042270,PUBLISH - REDACT NAME,"1,746.64",08/12/2017
Delivery Units,Adults and Communities,Direct Transfer Payments to So,0090042282,PUBLISH - REDACT NAME,480.80,08/12/2017
Delivery Units,Adults and Communities,Direct Transfer Payments to So,0090042283,PUBLISH - REDACT NAME,451.92,08/12/2017
Delivery Units,Adults and Communities,Direct Transfer Payments to So,0090042284,PUBLISH - REDACT NAME," 4,093.84 ",08/12/2017
Delivery Units,Adults and Communities,Direct Transfer Payments to So,0090042286,PUBLISH - REDACT NAME,347.20,08/12/2017
Delivery Units,Adults and Communities,Direct Transfer Payments to So,0090042288,PUBLISH - REDACT NAME,"1,035.24",08/12/2017
Delivery Units,Adults and Communities,Direct Transfer Payments to So,0090042291,PUBLISH - REDACT NAME,"2,686.00",08/12/2017
Delivery Units,Adults and Communities,Direct Transfer Payments to So,0090042296,PUBLISH - REDACT NAME,"2,211.80",08/12/2017
Delivery Units,Adults and Communities,Direct Transfer Payments to So,0090042297,PUBLISH - REDACT NAME,"1,545.48",08/12/2017
Delivery Units,Adults and Communities,Direct Transfer Payments to So,0090042301,PUBLISH - REDACT NAME,926.68,08/12/2017
Delivery Units,Adults and Communities,Direct Transfer Payments to So,0090042306,PUBLISH - REDACT NAME,588.24,08/12/2017
Delivery Units,Adults and Communities,Direct Transfer Payments to So,0090042307,PUBLISH - REDACT NAME,"3,444.00",08/12/2017
Delivery Units,Adults and Communities,Direct Transfer Payments to So,0090042311,PUBLISH - REDACT NAME,207.60,08/12/2017
Delivery Units,Adults and Communities,Direct Transfer Payments to So,0090042318,PUBLISH - REDACT NAME, 470.40 ,08/12/2017
Delivery Units,Adults and Communities,Direct Transfer Payments to So,0090042319,PUBLISH - REDACT NAME,612.48,08/12/2017
Delivery Units,Adults and Communities,Direct Transfer Payments to So,0090042323,PUBLISH - REDACT NAME,"1,375.92",08/12/2017
Delivery Units,Adults and Communities,Direct Transfer Payments to So,0090042325,PUBLISH - REDACT NAME," 1,560.72 ",08/12/2017
Delivery Units,Adults and Communities,Direct Transfer Payments to So,0090042330,PUBLISH - REDACT NAME,775.04,08/12/2017
Delivery Units,Adults and Communities,Direct Transfer Payments to So,0090042331,PUBLISH - REDACT NAME, 392.00 ,08/12/2017
Delivery Units,Adults and Communities,Direct Transfer Payments to So,0090042334,PUBLISH - REDACT NAME, 889.48 ,08/12/2017
Delivery Units,Adults and Communities,Direct Transfer Payments to So,0090042338,PUBLISH - REDACT NAME,775.04,08/12/2017
Delivery Units,Adults and Communities,Direct Transfer Payments to So,0090042342,PUBLISH - REDACT NAME, 917.80 ,08/12/2017
Delivery Units,Adults and Communities,Direct Transfer Payments to So,0090042347,PUBLISH - REDACT NAME, 825.44 ,08/12/2017
Delivery Units,Adults and Communities,Direct Transfer Payments to So,0090042353,PUBLISH - REDACT NAME,808.48,08/12/2017
Delivery Units,Adults and Communities,Direct Transfer Payments to So,0090042364,PUBLISH - REDACT NAME, 208.68 ,08/12/2017
Delivery Units,Adults and Communities,Fees and Charges,0090042372,PUBLISH - REDACT NAME,-184.00 ,08/12/2017
Delivery Units,Adults and Communities,Direct Transfer Payments to So,0090042814,PUBLISH - REDACT NAME, 700.00 ,08/12/2017
Delivery Units,Adults and Communities,Direct Transfer Payments to So,0090042815,PUBLISH - REDACT NAME," 1,766.96 ",08/12/2017
Delivery Units,Adults and Communities,Direct Transfer Payments to So,0090042821,PUBLISH - REDACT NAME, 837.68 ,08/12/2017
Delivery Units,Adults and Communities,Direct Transfer Payments to So,0090042826,PUBLISH - REDACT NAME, 961.60 ,08/12/2017
Delivery Units,Adults and Communities,Direct Transfer Payments to So,0090042838,PUBLISH - REDACT NAME,"1,524.00",08/12/2017
Delivery Units,Adults and Communities,Direct Transfer Payments to So,0090042867,PUBLISH - REDACT NAME,"1,730.88",08/12/2017
Delivery Units,Adults and Communities,Direct Transfer Payments to So,0090042926,PUBLISH - REDACT NAME," 1,113.84 ",08/12/2017
Delivery Units,Adults and Communities,Direct Transfer Payments to So,0090042929,PUBLISH - REDACT NAME," 3,846.40 ",08/12/2017
Delivery Units,Adults and Communities,Direct Transfer Payments to So,0090042934,PUBLISH - REDACT NAME,576.00,08/12/2017
Delivery Units,Adults and Communities,Direct Transfer Payments to So,0090042936,PUBLISH - REDACT NAME," 1,191.36 ",08/12/2017
Delivery Units,Adults and Communities,Direct Transfer Payments to So,0090042938,PUBLISH - REDACT NAME, 999.72 ,08/12/2017
Delivery Units,Adults and Communities,Direct Transfer Payments to So,0090042953,PUBLISH - REDACT NAME,"1,187.20",08/12/2017
Delivery Units,Adults and Communities,Direct Transfer Payments to So,0090042969,PUBLISH - REDACT NAME, 409.08 ,08/12/2017
Delivery Units,Adults and Communities,Direct Transfer Payments to So,0090042979,PUBLISH - REDACT NAME, 770.40 ,08/12/2017
Delivery Units,Adults and Communities,Direct Transfer Payments to So,0090043007,PUBLISH - REDACT NAME, 348.00 ,08/12/2017
Delivery Units,Adults and Communities,Direct Transfer Payments to So,0090043019,PUBLISH - REDACT NAME," 1,803.68 ",08/12/2017
Delivery Units,Adults and Communities,Direct Transfer Payments to So,0090043020,PUBLISH - REDACT NAME," 1,525.44 ",08/12/2017
Delivery Units,Adults and Communities,Direct Transfer Payments to So,0090043037,PUBLISH - REDACT NAME, 360.60 ,08/12/2017
Delivery Units,Adults and Communities,Direct Transfer Payments to So,0090043041,PUBLISH - REDACT NAME," 2,066.00 ",08/12/2017
Delivery Units,Adults and Communities,Direct Transfer Payments to So,0090043043,PUBLISH - REDACT NAME,901.04,08/12/2017
Delivery Units,Adults and Communities,Direct Transfer Payments to So,0090043069,PUBLISH - REDACT NAME," 2,211.80 ",08/12/2017
Delivery Units,Adults and Communities,Direct Transfer Payments to So,0090043070,PUBLISH - REDACT NAME," 2,284.00 ",08/12/2017
Delivery Units,Adults and Communities,Direct Transfer Payments to So,0090043075,PUBLISH - REDACT NAME,"1,869.00",08/12/2017
Delivery Units,Adults and Communities,Direct Transfer Payments to So,0090044466,PUBLISH - REDACT NAME, 490.85 ,12/12/2017
Delivery Units,Adults and Communities,Direct Transfer Payments to So,0090044472,PUBLISH - REDACT NAME,"-1,333.96 ",12/12/2017
Delivery Units,Adults and Communities,Direct Transfer Payments to So,0090044474,PUBLISH - REDACT NAME, 314.00 ,12/12/2017
Delivery Units,Adults and Communities,Direct Transfer Payments to So,0090044478,PUBLISH - REDACT NAME, 392.68 ,12/12/2017
Delivery Units,Adults and Communities,Direct Transfer Payments to So,0090044481,PUBLISH - REDACT NAME," 1,802.12 ",12/12/2017
Delivery Units,Adults and Communities,Direct Transfer Payments to So,0090044482,PUBLISH - REDACT NAME," 1,008.76 ",12/12/2017
Delivery Units,Adults and Communities,Direct Transfer Payments to So,0090044483,PUBLISH - REDACT NAME," 1,203.40 ",12/12/2017
Delivery Units,Adults and Communities,Direct Transfer Payments to So,0090044485,PUBLISH - REDACT NAME," 1,182.80 ",12/12/2017
Delivery Units,Adults and Communities,Direct Transfer Payments to So,0090044753,WIRECARD - ADULT SERVICES, 998.48 ,13/12/2017
Delivery Units,Adults and Communities,Direct Transfer Payments to So,0090044936,PUBLISH - REDACT NAME, 360.89 ,13/12/2017
Delivery Units,Adults and Communities,Direct Transfer Payments to So,0090044982,PUBLISH - REDACT NAME,"1,233.99",15/12/2017
Delivery Units,Adults and Communities,Direct Transfer Payments to So,0090045416,PUBLISH - REDACT NAME,541.35,18/12/2017
Delivery Units,Adults and Communities,Fees and Charges,0090046100,PUBLISH - REDACT NAME, 340.00 ,20/12/2017
Delivery Units,Adults and Communities,Fees and Charges,0090046102,PUBLISH - REDACT NAME,64.80,20/12/2017
Delivery Units,Adults and Communities,Direct Transfer Payments to So,0090046231,PUBLISH - REDACT NAME," 1,827.00 ",21/12/2017
Delivery Units,Adults and Communities,Other Agencies - Third Party P,0080014258,THE EXTRA MILE CARE CO LTD," 6,037.06 ",19/12/2017
Delivery Units,Adults and Communities,Other Agencies - Third Party P,0080014341,ARK HOME HEALTHCARE LTD,"100,000.00",13/12/2017
Delivery Units,Adults and Communities,Other Agencies - Third Party P,0080014389,HARTWIG CARE LIMITED," 14,590.83 ",19/12/2017
Delivery Units,Adults and Communities,Other Agencies - Third Party P,0080014552,THE BARNETGROUP LIMITED," 36,610.51 ",27/12/2017
Delivery Units,Adults and Communities,Other Agencies - Third Party P,0080014553,ALLIED HEALTHCARE LTD," 2,393.95 ",27/12/2017
